{"text_format":"1","workbook":"xlsx","n_sheets":17,"sheets":["График","График Начальный","Табель","График Печать","Табель Печать","Сотрудники","Типы Выходов","Типы Смен","Изменения","Праздники и Отпуска","Правила","Справочник","MultiLang","Источник Начальный","Источник","О программе","Инструкция"],"not_rendered":{"charts":0,"images":0,"macros":1,"external_links":0,"defined_names":9,"comments":0,"pivot_tables":0},"unopened":[],"bounds":{"document_bytes":16777216,"sheet_cells":100000,"rows_first":2000,"rows_last":500,"rows_between":2000,"halvings":0,"cell_chars":16384,"cell_head_chars":4096},"cells_cut":0,"cells_raw":0,"read":"whole","date_system":"1900"}

{"sheet":"График","index":0,"n_rows":18,"n_cols":71,"rows_kept":18,"cut":false,"hidden":false,"merged":[[0,4,0,12],[1,4,1,12],[10,1,11,1],[10,3,11,3],[10,4,11,4],[9,1,9,46],[3,18,3,26],[2,18,2,26],[10,41,11,41],[10,42,11,42],[10,43,11,43],[10,44,11,44],[10,45,11,45],[10,46,11,46],[10,64,11,64],[2,14,2,16],[3,14,3,16],[10,47,11,47],[10,48,11,48],[10,49,11,49],[10,52,11,52],[10,53,11,53],[10,54,11,54],[10,61,11,61],[10,63,11,63],[10,36,11,36],[10,37,11,37],[10,38,11,38],[10,39,11,39],[10,40,11,40],[10,68,11,68],[10,69,11,69],[10,70,11,70],[10,2,11,2],[10,57,11,57],[10,58,11,58],[10,59,11,59],[10,60,11,60],[10,55,11,55],[10,56,11,56],[10,62,11,62],[10,65,11,65],[10,66,11,66],[10,67,11,67],[10,50,11,50],[10,51,11,51]]}
[null,null,null,null,"По любым вопросам обращаться на email: skais675@mail.ru"]
[null,null,null,null,"Version 220628 All rights reserved by Ciahur Vladislav ©"]
[null,null,null,null,null,null,null,null,null,null,null,null,null,"Год","Месяц",null,null,null,"отдел"]
[null,null,null,null,null,null,null,null,null,null,null,null,null,2022,"май",null,null,null,"Сварочный"]
[]
[null,null,null,null,null,"1","2","3","4","5","6","7","8","9","10","11","12","13","14","15","16","17","18","19","20","21","22","23","24","25","26","27","28","29","30","31"]
[null,null,null,null,null,7,1,2,3,4,5,6,7,1,2,3,4,5,6,7,1,2,3,4,5,6,7,1,2,3,4,5,6,7,1,2]
[null,null,null,null,null,"2022-05-01","2022-05-02","2022-05-03","2022-05-04","2022-05-05","2022-05-06","2022-05-07","2022-05-08","2022-05-09","2022-05-10","2022-05-11","2022-05-12","2022-05-13","2022-05-14","2022-05-15","2022-05-16","2022-05-17","2022-05-18","2022-05-19","2022-05-20","2022-05-21","2022-05-22","2022-05-23","2022-05-24","2022-05-25","2022-05-26","2022-05-27","2022-05-28","2022-05-29","2022-05-30","2022-05-31"]
[null,null,null,null,null,"2022-05-01","2022-05-02","2022-05-03","2022-05-04","2022-05-05","2022-05-06","2022-05-07","2022-05-08","2022-05-09","2022-05-10","2022-05-11","2022-05-12","2022-05-13","2022-05-14","2022-05-15","2022-05-16","2022-05-17","2022-05-18","2022-05-19","2022-05-20","2022-05-21","2022-05-22","2022-05-23","2022-05-24","2022-05-25","2022-05-26","2022-05-27","2022-05-28","2022-05-29","2022-05-30","2022-05-31"]
[null,"Г р а ф и к"]
[null,{"$f":"TGrafik[[#Headers],[№ п/п]]","v":"№ п/п"},{"$f":"TGrafik[[#Headers],[id сотрудника]]","v":"id сотрудника"},{"$f":"TGrafik[[#Headers],[ФИО]]","v":"ФИО"},{"$f":"TGrafik[[#Headers],[Табельный номер]]","v":"Табельный номер"},{"$f":"F13","v":"1"},{"$f":"G13","v":"2"},"3","4","5","6","7","8","9","10","11","12","13","14","15","16","17","18","19","20","21","22","23","24","25","26","27","28","29","30","31",{"$f":"AK13","v":"Всего часов"},{"$f":"AL13","v":"Часы день"},"Часы вечер","Часы Ночь","Отпускные","Больничные","Дней","Декретные","Командировочные","Праздничные","Неявка разрешеный",null,null,null,null,null,null,null,null,null,null,null,null,null,"Должности","Очередной отпуск","отпуск по уходу за ребенком","отпуск в связи с родами и др.","Больничный","Неявки разрешенные законом и т.д.","Командировка","сверхурочные","выходные"]
[null,null,null,null,null,{"$f":"F9","v":"2022-05-01"},{"$f":"G9","v":"2022-05-02"},"2022-05-03","2022-05-04","2022-05-05","2022-05-06","2022-05-07","2022-05-08","2022-05-09","2022-05-10","2022-05-11","2022-05-12","2022-05-13","2022-05-14","2022-05-15","2022-05-16","2022-05-17","2022-05-18","2022-05-19","2022-05-20","2022-05-21","2022-05-22","2022-05-23","2022-05-24","2022-05-25","2022-05-26","2022-05-27","2022-05-28","2022-05-29","2022-05-30","2022-05-31"]
[null,"№ п/п","id сотрудника","ФИО","Табельный номер","1","2","3","4","5","6","7","8","9","10","11","12","13","14","15","16","17","18","19","20","21","22","23","24","25","26","27","28","29","30","31","Всего часов","Часы день","Часы вечер","Часы Ночь","Отпускные","Больничные","Дней","Декретные","Командировочные","Праздничные","Неявка разрешеный","Декретные2","Командировочные3","Праздничные4","Неявка разрешеный5","Выход3","Выход4","Выход5","Выход6","Отдел","Выход8","Выход9","Выход10","Отдел2","Должность","Сотрудник1","Сотрудник2","Сотрудник3","Сотрудник4","Сотрудник5","Сотрудник6","Сотрудник7","Сотрудник8","Сотрудник9","Сотрудник10"]
[null,1,1,"Сидоров И. П.",101,null,null,null,null,null,null,null,null,null,null,null,null,null,null,null,null,null," 8/17 "," 8/17 "," 8/17 ",null,null," 8/17 "," 8/17 "," 8/17 "," 8/17 "," 8/17 ",null,null," 8/17 "," 8/17 ",80,null,null,null,null,null,10,null,null,null,null,null,null,null,null,null,null,null,null,1,"Сварочный","Начальник","Начальник"]
[null,2,2,"Иванов И. И.",202,"20/24 "," 0/8 ",null," 8/20 "," 0/8 "," 0/8 ",null," 8/20 ","20/24 "," 0/8 ",null," 8/20 ","20/24 "," 0/8 ",null," 8/20 ","20/24 "," 0/8 ",null," 8/20 ","20/24 "," 0/8 ",null," 8/20 ","20/24 "," 0/8 ",null," 8/20 ","20/24 "," 0/8 ",null,88,null,28,68,null,null,23,null,null,null,null,null,null,null,null,null,null,null,null,2,"Сварочный","Инженер","Инженер"]
[null,3,3,"Петров Н. С.",155," 8/20 ","20/24 "," 0/8 ",null," 8/20 ","20/24 "," 0/8 ",null," 8/20 ","20/24 "," 0/8 ",null," 8/20 ","20/24 "," 0/8 ",null," 8/20 ","20/24 "," 0/8 ",null," 8/20 ","20/24 "," 0/8 ",null," 8/20 "," 0/8 "," 0/8 ",null," 8/20 ","20/24 "," 0/8 ",98,null,30,68,null,null,24,null,null,null,null,null,null,null,null,null,null,null,null,2,"Сварочный","Техник","Техник"]
[null,4,4,"Шариков Ю. С.",203,null," 8/20 ","20/24 "," 0/8 ",null," 8/20 ","20/24 "," 0/8 ",null," 8/20 ","20/24 "," 0/8 ",null," 8/20 ","20/24 "," 0/8 ",null," 8/20 "," 0/8 "," 0/8 ",null," 8/20 ","20/24 "," 0/8 ",null," 8/20 ","20/24 "," 0/8 ",null," 8/20 ","20/24 ",96,null,30,62,null,null,23,null,null,null,null,null,null,null,null,null,null,null,null,2,"Сварочный","Техник","Техник"]
[null,5,5,"Шарапов П. К.",206," 0/8 ",null," 8/20 ","20/24 "," 0/8 ",null," 8/20 ","20/24 "," 0/8 ",null," 8/20 "," 0/8 "," 0/8 ",null," 8/20 ","20/24 "," 0/8 ",null," 0/8 ",null," 8/20 ","20/24 "," 0/8 ",null," 8/20 "," 0/8 "," 0/8 ",null," 8/20 ","20/24 "," 0/8 ",92,null,24,76,null,null,23,null,null,null,null,null,null,null,null,null,null,null,null,2,"Сварочный","Техник","Техник"]

{"sheet":"График Начальный","index":1,"n_rows":16,"n_cols":66,"rows_kept":16,"cut":false,"hidden":true,"merged":[]}
[]
[]
[]
[]
[]
[]
[null,null,null,null,"1","2","3","4","5","6","7","8","9","10","11","12","13","14","15","16","17","18","19","20","21","22","23","24","25","26","27","28","29","30","31"]
[null,null,null,null,7,1,2,3,4,5,6,7,1,2,3,4,5,6,7,1,2,3,4,5,6,7,1,2,3,4,5,6,7,1,2]
[null,null,null,null,"2022-05-01","2022-05-02","2022-05-03","2022-05-04","2022-05-05","2022-05-06","2022-05-07","2022-05-08","2022-05-09","2022-05-10","2022-05-11","2022-05-12","2022-05-13","2022-05-14","2022-05-15","2022-05-16","2022-05-17","2022-05-18","2022-05-19","2022-05-20","2022-05-21","2022-05-22","2022-05-23","2022-05-24","2022-05-25","2022-05-26","2022-05-27","2022-05-28","2022-05-29","2022-05-30","2022-05-31"]
[null,null,null,null,"2022-05-01","2022-05-02","2022-05-03","2022-05-04","2022-05-05","2022-05-06","2022-05-07","2022-05-08","2022-05-09","2022-05-10","2022-05-11","2022-05-12","2022-05-13","2022-05-14","2022-05-15","2022-05-16","2022-05-17","2022-05-18","2022-05-19","2022-05-20","2022-05-21","2022-05-22","2022-05-23","2022-05-24","2022-05-25","2022-05-26","2022-05-27","2022-05-28","2022-05-29","2022-05-30","2022-05-31"]
[null,"id сотрудника","ФИО","Табельный номер","1","2","3","4","5","6","7","8","9","10","11","12","13","14","15","16","17","18","19","20","21","22","23","24","25","26","27","28","29","30","31","Всего часов","Часы день","Часы вечер","Часы Ночь","Отпускные","Больничные","Дней","Декретные","Командировочные","Праздничные","Выход2","Выход3","Выход4","Выход5","Выход6","Выход7","Выход8","Выход9","Выход10","Отдел","Должность","Сотрудник1","Сотрудник2","Сотрудник3","Сотрудник4","Сотрудник5","Сотрудник6","Сотрудник7","Сотрудник8","Сотрудник9","Сотрудник10"]
[null,1,"Сидоров И. П.",101,null,null,null,null,null,null,null,null,null,null,null,null,null,null,null,null,null," 8/17 "," 8/17 "," 8/17 ",null,null," 8/17 "," 8/17 "," 8/17 "," 8/17 "," 8/17 ",null,null," 8/17 "," 8/17 ",80,null,null,null,null,null,10,null,null,null,null,null,null,null,null,null,null,null,null,1,"Сварочный","Начальник","Начальник"]
[null,2,"Иванов И. И.",202,"20/24 "," 0/8 ",null," 8/20 "," 0/8 "," 0/8 ",null," 8/20 ","20/24 "," 0/8 ",null," 8/20 ","20/24 "," 0/8 ",null," 8/20 ","20/24 "," 0/8 ",null," 8/20 ","20/24 "," 0/8 ",null," 8/20 ","20/24 "," 0/8 ",null," 8/20 ","20/24 "," 0/8 ",null,88,null,28,68,null,null,23,null,null,null,null,null,null,null,null,null,null,null,null,2,"Сварочный","Инженер","Инженер"]
[null,3,"Петров Н. С.",155," 8/20 ","20/24 "," 0/8 ",null," 8/20 ","20/24 "," 0/8 ",null," 8/20 ","20/24 "," 0/8 ",null," 8/20 ","20/24 "," 0/8 ",null," 8/20 ","20/24 "," 0/8 ",null," 8/20 ","20/24 "," 0/8 ",null," 8/20 "," 0/8 "," 0/8 ",null," 8/20 ","20/24 "," 0/8 ",98,null,30,68,null,null,24,null,null,null,null,null,null,null,null,null,null,null,null,2,"Сварочный","Техник","Техник"]
[null,4,"Шариков Ю. С.",203,null," 8/20 ","20/24 "," 0/8 ",null," 8/20 ","20/24 "," 0/8 ",null," 8/20 ","20/24 "," 0/8 ",null," 8/20 ","20/24 "," 0/8 ",null," 8/20 "," 0/8 "," 0/8 ",null," 8/20 ","20/24 "," 0/8 ",null," 8/20 ","20/24 "," 0/8 ",null," 8/20 ","20/24 ",96,null,30,62,null,null,23,null,null,null,null,null,null,null,null,null,null,null,null,2,"Сварочный","Техник","Техник"]
[null,5,"Шарапов П. К.",206," 0/8 ",null," 8/20 ","20/24 "," 0/8 ",null," 8/20 ","20/24 "," 0/8 ",null," 8/20 "," 0/8 "," 0/8 ",null," 8/20 ","20/24 "," 0/8 ",null," 0/8 ",null," 8/20 ","20/24 "," 0/8 ",null," 8/20 "," 0/8 "," 0/8 ",null," 8/20 ","20/24 "," 0/8 ",92,null,24,76,null,null,23,null,null,null,null,null,null,null,null,null,null,null,null,2,"Сварочный","Техник","Техник"]

{"sheet":"Табель","index":2,"n_rows":18,"n_cols":67,"rows_kept":18,"cut":false,"hidden":false,"merged":[[9,1,9,42],[10,1,11,1],[10,2,11,2],[10,3,11,3],[10,4,11,4],[10,36,11,36],[10,37,11,37],[10,38,11,38],[10,39,11,39],[10,40,11,40],[10,41,11,41],[10,42,11,42]]}
[]
[]
[]
[]
[]
[null,null,null,null,null,"1","2","3","4","5","6","7","8","9","10","11","12","13","14","15","16","17","18","19","20","21","22","23","24","25","26","27","28","29","30","31"]
[null,null,null,null,null,7,1,2,3,4,5,6,7,1,2,3,4,5,6,7,1,2,3,4,5,6,7,1,2,3,4,5,6,7,1,2]
[null,null,null,null,null,"2022-05-01","2022-05-02","2022-05-03","2022-05-04","2022-05-05","2022-05-06","2022-05-07","2022-05-08","2022-05-09","2022-05-10","2022-05-11","2022-05-12","2022-05-13","2022-05-14","2022-05-15","2022-05-16","2022-05-17","2022-05-18","2022-05-19","2022-05-20","2022-05-21","2022-05-22","2022-05-23","2022-05-24","2022-05-25","2022-05-26","2022-05-27","2022-05-28","2022-05-29","2022-05-30","2022-05-31"]
[null,null,null,null,null,"2022-05-01","2022-05-02","2022-05-03","2022-05-04","2022-05-05","2022-05-06","2022-05-07","2022-05-08","2022-05-09","2022-05-10","2022-05-11","2022-05-12","2022-05-13","2022-05-14","2022-05-15","2022-05-16","2022-05-17","2022-05-18","2022-05-19","2022-05-20","2022-05-21","2022-05-22","2022-05-23","2022-05-24","2022-05-25","2022-05-26","2022-05-27","2022-05-28","2022-05-29","2022-05-30","2022-05-31"]
[null,"Т а б е л ь"]
[null,{"$f":"TTabel[[#Headers],[№ п/п]]","v":"№ п/п"},{"$f":"TTabel[[#Headers],[id сотрудника]]","v":"id сотрудника"},{"$f":"TTabel[[#Headers],[ФИО]]","v":"ФИО"},{"$f":"TTabel[[#Headers],[Табельный номер]]","v":"Табельный номер"},{"$f":"F13","v":"1"},{"$f":"G13","v":"2"},"3","4","5","6","7","8","9","10","11","12","13","14","15","16","17","18","19","20","21","22","23","24","25","26","27","28","29","30","31","Часы",null,"Вечер","Ночь","Отпуск","Больничный","Дни"]
[null,null,null,null,null,{"$f":"F9","v":"2022-05-01"},{"$f":"G9","v":"2022-05-02"},"2022-05-03","2022-05-04","2022-05-05","2022-05-06","2022-05-07","2022-05-08","2022-05-09","2022-05-10","2022-05-11","2022-05-12","2022-05-13","2022-05-14","2022-05-15","2022-05-16","2022-05-17","2022-05-18","2022-05-19","2022-05-20","2022-05-21","2022-05-22","2022-05-23","2022-05-24","2022-05-25","2022-05-26","2022-05-27","2022-05-28","2022-05-29","2022-05-30","2022-05-31"]
[null,"№ п/п","id сотрудника","ФИО","Табельный номер","1","2","3","4","5","6","7","8","9","10","11","12","13","14","15","16","17","18","19","20","21","22","23","24","25","26","27","28","29","30","31","Всего часов","Часы день","Часы вечер","Часы Ночь","Отпускные","Больничные","Дней","Декретные","Командировочные","Праздничные","Неявка разрешеный","Выход3","Выход4","Выход5","Выход6","Выход7","Выход8","Выход9","Выход10","Отдел","Должность","Сотрудник1","Сотрудник2","Сотрудник3","Сотрудник4","Сотрудник5","Сотрудник6","Сотрудник7","Сотрудник8","Сотрудник9","Сотрудник10"]
[null,1,1,"Сидоров И. П.",101,null,null,null,null,null,null,null,null,null,null,null,null,null,null,null,null,null,8,8,8,null,null,8,8,8,8,8,null,null,8,8,80,null,null,null,null,null,10,null,null,null,null,null,null,null,null,null,null,null,null,1,"Сварочный","Начальник","Начальник"]
[null,2,2,"Иванов И. И.",202,4,8,null,12,8,8,null,12,4,8,null,12,4,8,null,12,4,8,null,12,4,8,null,12,4,8,null,12,4,8,null,88,null,28,68,null,null,23,null,null,null,null,null,null,null,null,null,null,null,null,2,"Сварочный","Инженер","Инженер"]
[null,3,3,"Петров Н. С.",155,12,4,8,null,12,4,8,null,12,4,8,null,12,4,8,null,12,4,8,null,12,4,8,null,12,8,8,null,12,4,8,98,null,30,68,null,null,24,null,null,null,null,null,null,null,null,null,null,null,null,2,"Сварочный","Техник","Техник"]
[null,4,4,"Шариков Ю. С.",203,null,12,4,8,null,12,4,8,null,12,4,8,null,12,4,8,null,12,8,8,null,12,4,8,null,12,4,8,null,12,4,96,null,30,62,null,null,23,null,null,null,null,null,null,null,null,null,null,null,null,2,"Сварочный","Техник","Техник"]
[null,5,5,"Шарапов П. К.",206,8,null,12,4,8,null,12,4,8,null,12,8,8,null,12,4,8,null,8,null,12,4,8,null,12,8,8,null,12,4,8,92,null,24,76,null,null,23,null,null,null,null,null,null,null,null,null,null,null,null,2,"Сварочный","Техник","Техник"]

{"sheet":"График Печать","index":3,"n_rows":19,"n_cols":46,"rows_kept":19,"cut":false,"hidden":false,"merged":[[9,44,10,44],[9,43,10,43],[9,38,10,38],[9,39,10,39],[9,40,10,40],[9,41,10,41],[9,42,10,42],[7,1,7,42],[9,37,10,37],[9,1,10,1],[9,2,10,2],[9,3,10,3],[9,35,10,35],[9,36,10,36]]}
[]
[]
[]
[]
[]
[]
[]
[null,{"$f":"График!B10","v":"Г р а ф и к"}]
[null,null,null,null,{"$f":"График!F7","v":7},{"$f":"График!G7","v":1},{"$f":"График!H7","v":2},{"$f":"График!I7","v":3},{"$f":"График!J7","v":4},{"$f":"График!K7","v":5},{"$f":"График!L7","v":6},{"$f":"График!M7","v":7},{"$f":"График!N7","v":1},{"$f":"График!O7","v":2},{"$f":"График!P7","v":3},{"$f":"График!Q7","v":4},{"$f":"График!R7","v":5},{"$f":"График!S7","v":6},{"$f":"График!T7","v":7},{"$f":"График!U7","v":1},{"$f":"График!V7","v":2},{"$f":"График!W7","v":3},{"$f":"График!X7","v":4},{"$f":"График!Y7","v":5},{"$f":"График!Z7","v":6},{"$f":"График!AA7","v":7},{"$f":"График!AB7","v":1},{"$f":"График!AC7","v":2},{"$f":"График!AD7","v":3},{"$f":"График!AE7","v":4},{"$f":"График!AF7","v":5},{"$f":"График!AG7","v":6},{"$f":"График!AH7","v":7},{"$f":"График!AI7","v":1},{"$f":"График!AJ7","v":2}]
[null,{"$f":"График!B11","v":"№ п/п"},{"$f":"График!D11","v":"ФИО"},{"$f":"График!E11","v":"Табельный номер"},1,2,3,"4","5","6","7","8","9","10","11","12","13","14","15","16","17","18","19","20","21","22","23","24","25","26","27","28","29","30","31",{"$f":"График!AK11","v":"Всего часов"},{"$f":"График!AL11","v":"Часы день"},{"$f":"График!AM11","v":"Часы вечер"},{"$f":"График!AN11","v":"Часы Ночь"},{"$f":"График!AO11","v":"Отпускные"},{"$f":"График!AP11","v":"Больничные"},{"$f":"График!AQ11","v":"Дней"},"Декретные","Командировочные","Праздничные"]
[null,null,null,null,{"$f":"TEXT(График!F8,\"ДДД\")","v":"Вс"},{"$f":"TEXT(График!G8,\"ДДД\")","v":"Пн"},{"$f":"TEXT(График!H8,\"ДДД\")","v":"Вт"},{"$f":"TEXT(График!I8,\"ДДД\")","v":"Ср"},{"$f":"TEXT(График!J8,\"ДДД\")","v":"Чт"},{"$f":"TEXT(График!K8,\"ДДД\")","v":"Пт"},{"$f":"TEXT(График!L8,\"ДДД\")","v":"Сб"},{"$f":"TEXT(График!M8,\"ДДД\")","v":"Вс"},{"$f":"TEXT(График!N8,\"ДДД\")","v":"Пн"},{"$f":"TEXT(График!O8,\"ДДД\")","v":"Вт"},{"$f":"TEXT(График!P8,\"ДДД\")","v":"Ср"},{"$f":"TEXT(График!Q8,\"ДДД\")","v":"Чт"},{"$f":"TEXT(График!R8,\"ДДД\")","v":"Пт"},{"$f":"TEXT(График!S8,\"ДДД\")","v":"Сб"},{"$f":"TEXT(График!T8,\"ДДД\")","v":"Вс"},{"$f":"TEXT(График!U8,\"ДДД\")","v":"Пн"},{"$f":"TEXT(График!V8,\"ДДД\")","v":"Вт"},{"$f":"TEXT(График!W8,\"ДДД\")","v":"Ср"},{"$f":"TEXT(График!X8,\"ДДД\")","v":"Чт"},{"$f":"TEXT(График!Y8,\"ДДД\")","v":"Пт"},{"$f":"TEXT(График!Z8,\"ДДД\")","v":"Сб"},{"$f":"TEXT(График!AA8,\"ДДД\")","v":"Вс"},{"$f":"TEXT(График!AB8,\"ДДД\")","v":"Пн"},{"$f":"TEXT(График!AC8,\"ДДД\")","v":"Вт"},{"$f":"TEXT(График!AD8,\"ДДД\")","v":"Ср"},{"$f":"TEXT(График!AE8,\"ДДД\")","v":"Чт"},{"$f":"TEXT(График!AF8,\"ДДД\")","v":"Пт"},{"$f":"TEXT(График!AG8,\"ДДД\")","v":"Сб"},{"$f":"TEXT(График!AH8,\"ДДД\")","v":"Вс"},{"$f":"TEXT(График!AI8,\"ДДД\")","v":"Пн"},{"$f":"TEXT(График!AJ8,\"ДДД\")","v":"Вт"}]
[null,1,{"$f":"IF(График!D14=\"\",\"\",График!D14)","v":"Сидоров И. П."},{"$f":"IF(График!E14=\"\",\"\",График!E14)","v":101},{"$f":"IF(График!F14=\"\",\"\",График!F14)","v":""},{"$f":"IF(График!G14=\"\",\"\",График!G14)","v":""},{"$f":"IF(График!H14=\"\",\"\",График!H14)","v":""},{"$f":"IF(График!I14=\"\",\"\",График!I14)","v":""},{"$f":"IF(График!J14=\"\",\"\",График!J14)","v":""},{"$f":"IF(График!K14=\"\",\"\",График!K14)","v":""},{"$f":"IF(График!L14=\"\",\"\",График!L14)","v":""},{"$f":"IF(График!M14=\"\",\"\",График!M14)","v":""},{"$f":"IF(График!N14=\"\",\"\",График!N14)","v":""},{"$f":"IF(График!O14=\"\",\"\",График!O14)","v":""},{"$f":"IF(График!P14=\"\",\"\",График!P14)","v":""},{"$f":"IF(График!Q14=\"\",\"\",График!Q14)","v":""},{"$f":"IF(График!R14=\"\",\"\",График!R14)","v":""},{"$f":"IF(График!S14=\"\",\"\",График!S14)","v":""},{"$f":"IF(График!T14=\"\",\"\",График!T14)","v":""},{"$f":"IF(График!U14=\"\",\"\",График!U14)","v":""},{"$f":"IF(График!V14=\"\",\"\",График!V14)","v":""},{"$f":"IF(График!W14=\"\",\"\",График!W14)","v":" 8/17 "},{"$f":"IF(График!X14=\"\",\"\",График!X14)","v":" 8/17 "},{"$f":"IF(График!Y14=\"\",\"\",График!Y14)","v":" 8/17 "},{"$f":"IF(График!Z14=\"\",\"\",График!Z14)","v":""},{"$f":"IF(График!AA14=\"\",\"\",График!AA14)","v":""},{"$f":"IF(График!AB14=\"\",\"\",График!AB14)","v":" 8/17 "},{"$f":"IF(График!AC14=\"\",\"\",График!AC14)","v":" 8/17 "},{"$f":"IF(График!AD14=\"\",\"\",График!AD14)","v":" 8/17 "},{"$f":"IF(График!AE14=\"\",\"\",График!AE14)","v":" 8/17 "},{"$f":"IF(График!AF14=\"\",\"\",График!AF14)","v":" 8/17 "},{"$f":"IF(График!AG14=\"\",\"\",График!AG14)","v":""},{"$f":"IF(График!AH14=\"\",\"\",График!AH14)","v":""},{"$f":"IF(График!AI14=\"\",\"\",График!AI14)","v":" 8/17 "},{"$f":"IF(График!AJ14=\"\",\"\",График!AJ14)","v":" 8/17 "},{"$f":"IF(График!AK14=\"\",\"\",График!AK14)","v":80},{"$f":"IF(График!AL14=\"\",\"\",График!AL14)","v":""},{"$f":"IF(График!AM14=\"\",\"\",График!AM14)","v":""},{"$f":"IF(График!AN14=\"\",\"\",График!AN14)","v":""},{"$f":"IF(График!AO14=\"\",\"\",График!AO14)","v":""},{"$f":"IF(График!AP14=\"\",\"\",График!AP14)","v":""},{"$f":"IF(График!AU14=\"\",\"\",График!AU14)","v":""},{"$f":"IF(График!AV14=\"\",\"\",График!AV14)","v":""},{"$f":"IF(График!AW14=\"\",\"\",График!AW14)","v":""},{"$f":"IF(График!AX14=\"\",\"\",График!AX14)","v":""},{"$f":"AJ12-AB1","v":80}]
[null,2,{"$f":"IF(График!#REF!=\"\",\"\",График!#REF!)","v":{"$error":"#REF!"}},{"$f":"IF(График!#REF!=\"\",\"\",График!#REF!)","v":{"$error":"#REF!"}},{"$f":"IF(График!#REF!=\"\",\"\",График!#REF!)","v":{"$error":"#REF!"}},{"$f":"IF(График!#REF!=\"\",\"\",График!#REF!)","v":{"$error":"#REF!"}},{"$f":"IF(График!#REF!=\"\",\"\",График!#REF!)","v":{"$error":"#REF!"}},{"$f":"IF(График!#REF!=\"\",\"\",График!#REF!)","v":{"$error":"#REF!"}},{"$f":"IF(График!#REF!=\"\",\"\",График!#REF!)","v":{"$error":"#REF!"}},{"$f":"IF(График!#REF!=\"\",\"\",График!#REF!)","v":{"$error":"#REF!"}},{"$f":"IF(График!#REF!=\"\",\"\",График!#REF!)","v":{"$error":"#REF!"}},{"$f":"IF(График!#REF!=\"\",\"\",График!#REF!)","v":{"$error":"#REF!"}},{"$f":"IF(График!#REF!=\"\",\"\",График!#REF!)","v":{"$error":"#REF!"}},{"$f":"IF(График!#REF!=\"\",\"\",График!#REF!)","v":{"$error":"#REF!"}},{"$f":"IF(График!#REF!=\"\",\"\",График!#REF!)","v":{"$error":"#REF!"}},{"$f":"IF(График!#REF!=\"\",\"\",График!#REF!)","v":{"$error":"#REF!"}},{"$f":"IF(График!#REF!=\"\",\"\",График!#REF!)","v":{"$error":"#REF!"}},{"$f":"IF(График!#REF!=\"\",\"\",График!#REF!)","v":{"$error":"#REF!"}},{"$f":"IF(График!#REF!=\"\",\"\",График!#REF!)","v":{"$error":"#REF!"}},{"$f":"IF(График!#REF!=\"\",\"\",График!#REF!)","v":{"$error":"#REF!"}},{"$f":"IF(График!#REF!=\"\",\"\",График!#REF!)","v":{"$error":"#REF!"}},{"$f":"IF(График!#REF!=\"\",\"\",График!#REF!)","v":{"$error":"#REF!"}},{"$f":"IF(График!#REF!=\"\",\"\",График!#REF!)","v":{"$error":"#REF!"}},{"$f":"IF(График!#REF!=\"\",\"\",График!#REF!)","v":{"$error":"#REF!"}},{"$f":"IF(График!#REF!=\"\",\"\",График!#REF!)","v":{"$error":"#REF!"}},{"$f":"IF(График!#REF!=\"\",\"\",График!#REF!)","v":{"$error":"#REF!"}},{"$f":"IF(График!#REF!=\"\",\"\",График!#REF!)","v":{"$error":"#REF!"}},{"$f":"IF(График!#REF!=\"\",\"\",График!#REF!)","v":{"$error":"#REF!"}},{"$f":"IF(График!#REF!=\"\",\"\",График!#REF!)","v":{"$error":"#REF!"}},{"$f":"IF(График!#REF!=\"\",\"\",График!#REF!)","v":{"$error":"#REF!"}},{"$f":"IF(График!#REF!=\"\",\"\",График!#REF!)","v":{"$error":"#REF!"}},{"$f":"IF(График!#REF!=\"\",\"\",График!#REF!)","v":{"$error":"#REF!"}},{"$f":"IF(График!#REF!=\"\",\"\",График!#REF!)","v":{"$error":"#REF!"}},{"$f":"IF(График!#REF!=\"\",\"\",График!#REF!)","v":{"$error":"#REF!"}},{"$f":"IF(График!#REF!=\"\",\"\",График!#REF!)","v":{"$error":"#REF!"}},{"$f":"IF(График!#REF!=\"\",\"\",График!#REF!)","v":{"$error":"#REF!"}},{"$f":"IF(График!#REF!=\"\",\"\",График!#REF!)","v":{"$error":"#REF!"}},{"$f":"IF(График!#REF!=\"\",\"\",График!#REF!)","v":{"$error":"#REF!"}},{"$f":"IF(График!#REF!=\"\",\"\",График!#REF!)","v":{"$error":"#REF!"}},{"$f":"IF(График!#REF!=\"\",\"\",График!#REF!)","v":{"$error":"#REF!"}},{"$f":"IF(График!#REF!=\"\",\"\",График!#REF!)","v":{"$error":"#REF!"}},{"$f":"IF(График!#REF!=\"\",\"\",График!#REF!)","v":{"$error":"#REF!"}},{"$f":"IF(График!#REF!=\"\",\"\",График!#REF!)","v":{"$error":"#REF!"}},{"$f":"IF(График!#REF!=\"\",\"\",График!#REF!)","v":{"$error":"#REF!"}},{"$f":"IF(График!#REF!=\"\",\"\",График!#REF!)","v":{"$error":"#REF!"}}]
[null,3,{"$f":"IF(График!#REF!=\"\",\"\",График!#REF!)","v":{"$error":"#REF!"}},{"$f":"IF(График!#REF!=\"\",\"\",График!#REF!)","v":{"$error":"#REF!"}},{"$f":"IF(График!#REF!=\"\",\"\",График!#REF!)","v":{"$error":"#REF!"}},{"$f":"IF(График!#REF!=\"\",\"\",График!#REF!)","v":{"$error":"#REF!"}},{"$f":"IF(График!#REF!=\"\",\"\",График!#REF!)","v":{"$error":"#REF!"}},{"$f":"IF(График!#REF!=\"\",\"\",График!#REF!)","v":{"$error":"#REF!"}},{"$f":"IF(График!#REF!=\"\",\"\",График!#REF!)","v":{"$error":"#REF!"}},{"$f":"IF(График!#REF!=\"\",\"\",График!#REF!)","v":{"$error":"#REF!"}},{"$f":"IF(График!#REF!=\"\",\"\",График!#REF!)","v":{"$error":"#REF!"}},{"$f":"IF(График!#REF!=\"\",\"\",График!#REF!)","v":{"$error":"#REF!"}},{"$f":"IF(График!#REF!=\"\",\"\",График!#REF!)","v":{"$error":"#REF!"}},{"$f":"IF(График!#REF!=\"\",\"\",График!#REF!)","v":{"$error":"#REF!"}},{"$f":"IF(График!#REF!=\"\",\"\",График!#REF!)","v":{"$error":"#REF!"}},{"$f":"IF(График!#REF!=\"\",\"\",График!#REF!)","v":{"$error":"#REF!"}},{"$f":"IF(График!#REF!=\"\",\"\",График!#REF!)","v":{"$error":"#REF!"}},{"$f":"IF(График!#REF!=\"\",\"\",График!#REF!)","v":{"$error":"#REF!"}},{"$f":"IF(График!#REF!=\"\",\"\",График!#REF!)","v":{"$error":"#REF!"}},{"$f":"IF(График!#REF!=\"\",\"\",График!#REF!)","v":{"$error":"#REF!"}},{"$f":"IF(График!#REF!=\"\",\"\",График!#REF!)","v":{"$error":"#REF!"}},{"$f":"IF(График!#REF!=\"\",\"\",График!#REF!)","v":{"$error":"#REF!"}},{"$f":"IF(График!#REF!=\"\",\"\",График!#REF!)","v":{"$error":"#REF!"}},{"$f":"IF(График!#REF!=\"\",\"\",График!#REF!)","v":{"$error":"#REF!"}},{"$f":"IF(График!#REF!=\"\",\"\",График!#REF!)","v":{"$error":"#REF!"}},{"$f":"IF(График!#REF!=\"\",\"\",График!#REF!)","v":{"$error":"#REF!"}},{"$f":"IF(График!#REF!=\"\",\"\",График!#REF!)","v":{"$error":"#REF!"}},{"$f":"IF(График!#REF!=\"\",\"\",График!#REF!)","v":{"$error":"#REF!"}},{"$f":"IF(График!#REF!=\"\",\"\",График!#REF!)","v":{"$error":"#REF!"}},{"$f":"IF(График!#REF!=\"\",\"\",График!#REF!)","v":{"$error":"#REF!"}},{"$f":"IF(График!#REF!=\"\",\"\",График!#REF!)","v":{"$error":"#REF!"}},{"$f":"IF(График!#REF!=\"\",\"\",График!#REF!)","v":{"$error":"#REF!"}},{"$f":"IF(График!#REF!=\"\",\"\",График!#REF!)","v":{"$error":"#REF!"}},{"$f":"IF(График!#REF!=\"\",\"\",График!#REF!)","v":{"$error":"#REF!"}},{"$f":"IF(График!#REF!=\"\",\"\",График!#REF!)","v":{"$error":"#REF!"}},{"$f":"IF(График!#REF!=\"\",\"\",График!#REF!)","v":{"$error":"#REF!"}},{"$f":"IF(График!#REF!=\"\",\"\",График!#REF!)","v":{"$error":"#REF!"}},{"$f":"IF(График!#REF!=\"\",\"\",График!#REF!)","v":{"$error":"#REF!"}},{"$f":"IF(График!#REF!=\"\",\"\",График!#REF!)","v":{"$error":"#REF!"}},{"$f":"IF(График!#REF!=\"\",\"\",График!#REF!)","v":{"$error":"#REF!"}},{"$f":"IF(График!#REF!=\"\",\"\",График!#REF!)","v":{"$error":"#REF!"}},{"$f":"IF(График!#REF!=\"\",\"\",График!#REF!)","v":{"$error":"#REF!"}},{"$f":"IF(График!#REF!=\"\",\"\",График!#REF!)","v":{"$error":"#REF!"}},{"$f":"IF(График!#REF!=\"\",\"\",График!#REF!)","v":{"$error":"#REF!"}},{"$f":"IF(График!#REF!=\"\",\"\",График!#REF!)","v":{"$error":"#REF!"}}]
[null,4,{"$f":"IF(График!#REF!=\"\",\"\",График!#REF!)","v":{"$error":"#REF!"}},{"$f":"IF(График!#REF!=\"\",\"\",График!#REF!)","v":{"$error":"#REF!"}},{"$f":"IF(График!#REF!=\"\",\"\",График!#REF!)","v":{"$error":"#REF!"}},{"$f":"IF(График!#REF!=\"\",\"\",График!#REF!)","v":{"$error":"#REF!"}},{"$f":"IF(График!#REF!=\"\",\"\",График!#REF!)","v":{"$error":"#REF!"}},{"$f":"IF(График!#REF!=\"\",\"\",График!#REF!)","v":{"$error":"#REF!"}},{"$f":"IF(График!#REF!=\"\",\"\",График!#REF!)","v":{"$error":"#REF!"}},{"$f":"IF(График!#REF!=\"\",\"\",График!#REF!)","v":{"$error":"#REF!"}},{"$f":"IF(График!#REF!=\"\",\"\",График!#REF!)","v":{"$error":"#REF!"}},{"$f":"IF(График!#REF!=\"\",\"\",График!#REF!)","v":{"$error":"#REF!"}},{"$f":"IF(График!#REF!=\"\",\"\",График!#REF!)","v":{"$error":"#REF!"}},{"$f":"IF(График!#REF!=\"\",\"\",График!#REF!)","v":{"$error":"#REF!"}},{"$f":"IF(График!#REF!=\"\",\"\",График!#REF!)","v":{"$error":"#REF!"}},{"$f":"IF(График!#REF!=\"\",\"\",График!#REF!)","v":{"$error":"#REF!"}},{"$f":"IF(График!#REF!=\"\",\"\",График!#REF!)","v":{"$error":"#REF!"}},{"$f":"IF(График!#REF!=\"\",\"\",График!#REF!)","v":{"$error":"#REF!"}},{"$f":"IF(График!#REF!=\"\",\"\",График!#REF!)","v":{"$error":"#REF!"}},{"$f":"IF(График!#REF!=\"\",\"\",График!#REF!)","v":{"$error":"#REF!"}},{"$f":"IF(График!#REF!=\"\",\"\",График!#REF!)","v":{"$error":"#REF!"}},{"$f":"IF(График!#REF!=\"\",\"\",График!#REF!)","v":{"$error":"#REF!"}},{"$f":"IF(График!#REF!=\"\",\"\",График!#REF!)","v":{"$error":"#REF!"}},{"$f":"IF(График!#REF!=\"\",\"\",График!#REF!)","v":{"$error":"#REF!"}},{"$f":"IF(График!#REF!=\"\",\"\",График!#REF!)","v":{"$error":"#REF!"}},{"$f":"IF(График!#REF!=\"\",\"\",График!#REF!)","v":{"$error":"#REF!"}},{"$f":"IF(График!#REF!=\"\",\"\",График!#REF!)","v":{"$error":"#REF!"}},{"$f":"IF(График!#REF!=\"\",\"\",График!#REF!)","v":{"$error":"#REF!"}},{"$f":"IF(График!#REF!=\"\",\"\",График!#REF!)","v":{"$error":"#REF!"}},{"$f":"IF(График!#REF!=\"\",\"\",График!#REF!)","v":{"$error":"#REF!"}},{"$f":"IF(График!#REF!=\"\",\"\",График!#REF!)","v":{"$error":"#REF!"}},{"$f":"IF(График!#REF!=\"\",\"\",График!#REF!)","v":{"$error":"#REF!"}},{"$f":"IF(График!#REF!=\"\",\"\",График!#REF!)","v":{"$error":"#REF!"}},{"$f":"IF(График!#REF!=\"\",\"\",График!#REF!)","v":{"$error":"#REF!"}},{"$f":"IF(График!#REF!=\"\",\"\",График!#REF!)","v":{"$error":"#REF!"}},{"$f":"IF(График!#REF!=\"\",\"\",График!#REF!)","v":{"$error":"#REF!"}},{"$f":"IF(График!#REF!=\"\",\"\",График!#REF!)","v":{"$error":"#REF!"}},{"$f":"IF(График!#REF!=\"\",\"\",График!#REF!)","v":{"$error":"#REF!"}},{"$f":"IF(График!#REF!=\"\",\"\",График!#REF!)","v":{"$error":"#REF!"}},{"$f":"IF(График!#REF!=\"\",\"\",График!#REF!)","v":{"$error":"#REF!"}},{"$f":"IF(График!#REF!=\"\",\"\",График!#REF!)","v":{"$error":"#REF!"}},{"$f":"IF(График!#REF!=\"\",\"\",График!#REF!)","v":{"$error":"#REF!"}},{"$f":"IF(График!#REF!=\"\",\"\",График!#REF!)","v":{"$error":"#REF!"}},{"$f":"IF(График!#REF!=\"\",\"\",График!#REF!)","v":{"$error":"#REF!"}},{"$f":"IF(График!#REF!=\"\",\"\",График!#REF!)","v":{"$error":"#REF!"}}]
[null,5,{"$f":"IF(График!#REF!=\"\",\"\",График!#REF!)","v":{"$error":"#REF!"}},{"$f":"IF(График!#REF!=\"\",\"\",График!#REF!)","v":{"$error":"#REF!"}},{"$f":"IF(График!#REF!=\"\",\"\",График!#REF!)","v":{"$error":"#REF!"}},{"$f":"IF(График!#REF!=\"\",\"\",График!#REF!)","v":{"$error":"#REF!"}},{"$f":"IF(График!#REF!=\"\",\"\",График!#REF!)","v":{"$error":"#REF!"}},{"$f":"IF(График!#REF!=\"\",\"\",График!#REF!)","v":{"$error":"#REF!"}},{"$f":"IF(График!#REF!=\"\",\"\",График!#REF!)","v":{"$error":"#REF!"}},{"$f":"IF(График!#REF!=\"\",\"\",График!#REF!)","v":{"$error":"#REF!"}},{"$f":"IF(График!#REF!=\"\",\"\",График!#REF!)","v":{"$error":"#REF!"}},{"$f":"IF(График!#REF!=\"\",\"\",График!#REF!)","v":{"$error":"#REF!"}},{"$f":"IF(График!#REF!=\"\",\"\",График!#REF!)","v":{"$error":"#REF!"}},{"$f":"IF(График!#REF!=\"\",\"\",График!#REF!)","v":{"$error":"#REF!"}},{"$f":"IF(График!#REF!=\"\",\"\",График!#REF!)","v":{"$error":"#REF!"}},{"$f":"IF(График!#REF!=\"\",\"\",График!#REF!)","v":{"$error":"#REF!"}},{"$f":"IF(График!#REF!=\"\",\"\",График!#REF!)","v":{"$error":"#REF!"}},{"$f":"IF(График!#REF!=\"\",\"\",График!#REF!)","v":{"$error":"#REF!"}},{"$f":"IF(График!#REF!=\"\",\"\",График!#REF!)","v":{"$error":"#REF!"}},{"$f":"IF(График!#REF!=\"\",\"\",График!#REF!)","v":{"$error":"#REF!"}},{"$f":"IF(График!#REF!=\"\",\"\",График!#REF!)","v":{"$error":"#REF!"}},{"$f":"IF(График!#REF!=\"\",\"\",График!#REF!)","v":{"$error":"#REF!"}},{"$f":"IF(График!#REF!=\"\",\"\",График!#REF!)","v":{"$error":"#REF!"}},{"$f":"IF(График!#REF!=\"\",\"\",График!#REF!)","v":{"$error":"#REF!"}},{"$f":"IF(График!#REF!=\"\",\"\",График!#REF!)","v":{"$error":"#REF!"}},{"$f":"IF(График!#REF!=\"\",\"\",График!#REF!)","v":{"$error":"#REF!"}},{"$f":"IF(График!#REF!=\"\",\"\",График!#REF!)","v":{"$error":"#REF!"}},{"$f":"IF(График!#REF!=\"\",\"\",График!#REF!)","v":{"$error":"#REF!"}},{"$f":"IF(График!#REF!=\"\",\"\",График!#REF!)","v":{"$error":"#REF!"}},{"$f":"IF(График!#REF!=\"\",\"\",График!#REF!)","v":{"$error":"#REF!"}},{"$f":"IF(График!#REF!=\"\",\"\",График!#REF!)","v":{"$error":"#REF!"}},{"$f":"IF(График!#REF!=\"\",\"\",График!#REF!)","v":{"$error":"#REF!"}},{"$f":"IF(График!#REF!=\"\",\"\",График!#REF!)","v":{"$error":"#REF!"}},{"$f":"IF(График!#REF!=\"\",\"\",График!#REF!)","v":{"$error":"#REF!"}},{"$f":"IF(График!#REF!=\"\",\"\",График!#REF!)","v":{"$error":"#REF!"}},{"$f":"IF(График!#REF!=\"\",\"\",График!#REF!)","v":{"$error":"#REF!"}},{"$f":"IF(График!#REF!=\"\",\"\",График!#REF!)","v":{"$error":"#REF!"}},{"$f":"IF(График!#REF!=\"\",\"\",График!#REF!)","v":{"$error":"#REF!"}},{"$f":"IF(График!#REF!=\"\",\"\",График!#REF!)","v":{"$error":"#REF!"}},{"$f":"IF(График!#REF!=\"\",\"\",График!#REF!)","v":{"$error":"#REF!"}},{"$f":"IF(График!#REF!=\"\",\"\",График!#REF!)","v":{"$error":"#REF!"}},{"$f":"IF(График!#REF!=\"\",\"\",График!#REF!)","v":{"$error":"#REF!"}},{"$f":"IF(График!#REF!=\"\",\"\",График!#REF!)","v":{"$error":"#REF!"}},{"$f":"IF(График!#REF!=\"\",\"\",График!#REF!)","v":{"$error":"#REF!"}},{"$f":"IF(График!#REF!=\"\",\"\",График!#REF!)","v":{"$error":"#REF!"}}]
[null,6,{"$f":"IF(График!#REF!=\"\",\"\",График!#REF!)","v":{"$error":"#REF!"}},{"$f":"IF(График!#REF!=\"\",\"\",График!#REF!)","v":{"$error":"#REF!"}},{"$f":"IF(График!#REF!=\"\",\"\",График!#REF!)","v":{"$error":"#REF!"}},{"$f":"IF(График!#REF!=\"\",\"\",График!#REF!)","v":{"$error":"#REF!"}},{"$f":"IF(График!#REF!=\"\",\"\",График!#REF!)","v":{"$error":"#REF!"}},{"$f":"IF(График!#REF!=\"\",\"\",График!#REF!)","v":{"$error":"#REF!"}},{"$f":"IF(График!#REF!=\"\",\"\",График!#REF!)","v":{"$error":"#REF!"}},{"$f":"IF(График!#REF!=\"\",\"\",График!#REF!)","v":{"$error":"#REF!"}},{"$f":"IF(График!#REF!=\"\",\"\",График!#REF!)","v":{"$error":"#REF!"}},{"$f":"IF(График!#REF!=\"\",\"\",График!#REF!)","v":{"$error":"#REF!"}},{"$f":"IF(График!#REF!=\"\",\"\",График!#REF!)","v":{"$error":"#REF!"}},{"$f":"IF(График!#REF!=\"\",\"\",График!#REF!)","v":{"$error":"#REF!"}},{"$f":"IF(График!#REF!=\"\",\"\",График!#REF!)","v":{"$error":"#REF!"}},{"$f":"IF(График!#REF!=\"\",\"\",График!#REF!)","v":{"$error":"#REF!"}},{"$f":"IF(График!#REF!=\"\",\"\",График!#REF!)","v":{"$error":"#REF!"}},{"$f":"IF(График!#REF!=\"\",\"\",График!#REF!)","v":{"$error":"#REF!"}},{"$f":"IF(График!#REF!=\"\",\"\",График!#REF!)","v":{"$error":"#REF!"}},{"$f":"IF(График!#REF!=\"\",\"\",График!#REF!)","v":{"$error":"#REF!"}},{"$f":"IF(График!#REF!=\"\",\"\",График!#REF!)","v":{"$error":"#REF!"}},{"$f":"IF(График!#REF!=\"\",\"\",График!#REF!)","v":{"$error":"#REF!"}},{"$f":"IF(График!#REF!=\"\",\"\",График!#REF!)","v":{"$error":"#REF!"}},{"$f":"IF(График!#REF!=\"\",\"\",График!#REF!)","v":{"$error":"#REF!"}},{"$f":"IF(График!#REF!=\"\",\"\",График!#REF!)","v":{"$error":"#REF!"}},{"$f":"IF(График!#REF!=\"\",\"\",График!#REF!)","v":{"$error":"#REF!"}},{"$f":"IF(График!#REF!=\"\",\"\",График!#REF!)","v":{"$error":"#REF!"}},{"$f":"IF(График!#REF!=\"\",\"\",График!#REF!)","v":{"$error":"#REF!"}},{"$f":"IF(График!#REF!=\"\",\"\",График!#REF!)","v":{"$error":"#REF!"}},{"$f":"IF(График!#REF!=\"\",\"\",График!#REF!)","v":{"$error":"#REF!"}},{"$f":"IF(График!#REF!=\"\",\"\",График!#REF!)","v":{"$error":"#REF!"}},{"$f":"IF(График!#REF!=\"\",\"\",График!#REF!)","v":{"$error":"#REF!"}},{"$f":"IF(График!#REF!=\"\",\"\",График!#REF!)","v":{"$error":"#REF!"}},{"$f":"IF(График!#REF!=\"\",\"\",График!#REF!)","v":{"$error":"#REF!"}},{"$f":"IF(График!#REF!=\"\",\"\",График!#REF!)","v":{"$error":"#REF!"}},{"$f":"IF(График!#REF!=\"\",\"\",График!#REF!)","v":{"$error":"#REF!"}},{"$f":"IF(График!#REF!=\"\",\"\",График!#REF!)","v":{"$error":"#REF!"}},{"$f":"IF(График!#REF!=\"\",\"\",График!#REF!)","v":{"$error":"#REF!"}},{"$f":"IF(График!#REF!=\"\",\"\",График!#REF!)","v":{"$error":"#REF!"}},{"$f":"IF(График!#REF!=\"\",\"\",График!#REF!)","v":{"$error":"#REF!"}},{"$f":"IF(График!#REF!=\"\",\"\",График!#REF!)","v":{"$error":"#REF!"}},{"$f":"IF(График!#REF!=\"\",\"\",График!#REF!)","v":{"$error":"#REF!"}},{"$f":"IF(График!#REF!=\"\",\"\",График!#REF!)","v":{"$error":"#REF!"}},{"$f":"IF(График!#REF!=\"\",\"\",График!#REF!)","v":{"$error":"#REF!"}},{"$f":"IF(График!#REF!=\"\",\"\",График!#REF!)","v":{"$error":"#REF!"}}]
[null,7,{"$f":"IF(График!#REF!=\"\",\"\",График!#REF!)","v":{"$error":"#REF!"}},{"$f":"IF(График!#REF!=\"\",\"\",График!#REF!)","v":{"$error":"#REF!"}},{"$f":"IF(График!#REF!=\"\",\"\",График!#REF!)","v":{"$error":"#REF!"}},{"$f":"IF(График!#REF!=\"\",\"\",График!#REF!)","v":{"$error":"#REF!"}},{"$f":"IF(График!#REF!=\"\",\"\",График!#REF!)","v":{"$error":"#REF!"}},{"$f":"IF(График!#REF!=\"\",\"\",График!#REF!)","v":{"$error":"#REF!"}},{"$f":"IF(График!#REF!=\"\",\"\",График!#REF!)","v":{"$error":"#REF!"}},{"$f":"IF(График!#REF!=\"\",\"\",График!#REF!)","v":{"$error":"#REF!"}},{"$f":"IF(График!#REF!=\"\",\"\",График!#REF!)","v":{"$error":"#REF!"}},{"$f":"IF(График!#REF!=\"\",\"\",График!#REF!)","v":{"$error":"#REF!"}},{"$f":"IF(График!#REF!=\"\",\"\",График!#REF!)","v":{"$error":"#REF!"}},{"$f":"IF(График!#REF!=\"\",\"\",График!#REF!)","v":{"$error":"#REF!"}},{"$f":"IF(График!#REF!=\"\",\"\",График!#REF!)","v":{"$error":"#REF!"}},{"$f":"IF(График!#REF!=\"\",\"\",График!#REF!)","v":{"$error":"#REF!"}},{"$f":"IF(График!#REF!=\"\",\"\",График!#REF!)","v":{"$error":"#REF!"}},{"$f":"IF(График!#REF!=\"\",\"\",График!#REF!)","v":{"$error":"#REF!"}},{"$f":"IF(График!#REF!=\"\",\"\",График!#REF!)","v":{"$error":"#REF!"}},{"$f":"IF(График!#REF!=\"\",\"\",График!#REF!)","v":{"$error":"#REF!"}},{"$f":"IF(График!#REF!=\"\",\"\",График!#REF!)","v":{"$error":"#REF!"}},{"$f":"IF(График!#REF!=\"\",\"\",График!#REF!)","v":{"$error":"#REF!"}},{"$f":"IF(График!#REF!=\"\",\"\",График!#REF!)","v":{"$error":"#REF!"}},{"$f":"IF(График!#REF!=\"\",\"\",График!#REF!)","v":{"$error":"#REF!"}},{"$f":"IF(График!#REF!=\"\",\"\",График!#REF!)","v":{"$error":"#REF!"}},{"$f":"IF(График!#REF!=\"\",\"\",График!#REF!)","v":{"$error":"#REF!"}},{"$f":"IF(График!#REF!=\"\",\"\",График!#REF!)","v":{"$error":"#REF!"}},{"$f":"IF(График!#REF!=\"\",\"\",График!#REF!)","v":{"$error":"#REF!"}},{"$f":"IF(График!#REF!=\"\",\"\",График!#REF!)","v":{"$error":"#REF!"}},{"$f":"IF(График!#REF!=\"\",\"\",График!#REF!)","v":{"$error":"#REF!"}},{"$f":"IF(График!#REF!=\"\",\"\",График!#REF!)","v":{"$error":"#REF!"}},{"$f":"IF(График!#REF!=\"\",\"\",График!#REF!)","v":{"$error":"#REF!"}},{"$f":"IF(График!#REF!=\"\",\"\",График!#REF!)","v":{"$error":"#REF!"}},{"$f":"IF(График!#REF!=\"\",\"\",График!#REF!)","v":{"$error":"#REF!"}},{"$f":"IF(График!#REF!=\"\",\"\",График!#REF!)","v":{"$error":"#REF!"}},{"$f":"IF(График!#REF!=\"\",\"\",График!#REF!)","v":{"$error":"#REF!"}},{"$f":"IF(График!#REF!=\"\",\"\",График!#REF!)","v":{"$error":"#REF!"}},{"$f":"IF(График!#REF!=\"\",\"\",График!#REF!)","v":{"$error":"#REF!"}},{"$f":"IF(График!#REF!=\"\",\"\",График!#REF!)","v":{"$error":"#REF!"}},{"$f":"IF(График!#REF!=\"\",\"\",График!#REF!)","v":{"$error":"#REF!"}},{"$f":"IF(График!#REF!=\"\",\"\",График!#REF!)","v":{"$error":"#REF!"}},{"$f":"IF(График!#REF!=\"\",\"\",График!#REF!)","v":{"$error":"#REF!"}},{"$f":"IF(График!#REF!=\"\",\"\",График!#REF!)","v":{"$error":"#REF!"}},{"$f":"IF(График!#REF!=\"\",\"\",График!#REF!)","v":{"$error":"#REF!"}},{"$f":"IF(График!#REF!=\"\",\"\",График!#REF!)","v":{"$error":"#REF!"}}]
[null,null," ",null,null,null,null,null,null,null,null,null,null,null,null,null,null,null,null,null,null,null,null,null,null,null,null,null,null,null,null,null,null,null,null,{"$f":"SUBTOTAL(109,'График Печать'!$AJ$12:$AJ$18)","v":{"$error":"#REF!"}},{"$f":"SUBTOTAL(109,'График Печать'!$AK$12:$AK$18)","v":{"$error":"#REF!"}},{"$f":"SUBTOTAL(109,'График Печать'!$AL$12:$AL$18)","v":{"$error":"#REF!"}},{"$f":"SUBTOTAL(109,'График Печать'!$AM$12:$AM$18)","v":{"$error":"#REF!"}},{"$f":"SUBTOTAL(109,'График Печать'!$AN$12:$AN$18)","v":{"$error":"#REF!"}},{"$f":"SUBTOTAL(109,'График Печать'!$AO$12:$AO$18)","v":{"$error":"#REF!"}},{"$f":"SUBTOTAL(109,'График Печать'!$AP$12:$AP$18)","v":{"$error":"#REF!"}},{"$f":"SUBTOTAL(109,'График Печать'!$AQ$12:$AQ$18)","v":{"$error":"#REF!"}},{"$f":"SUBTOTAL(109,'График Печать'!$AR$12:$AR$18)","v":{"$error":"#REF!"}},{"$f":"SUBTOTAL(109,'График Печать'!$AS$12:$AS$18)","v":{"$error":"#REF!"}}]

{"sheet":"Табель Печать","index":4,"n_rows":19,"n_cols":45,"rows_kept":19,"cut":false,"hidden":false,"merged":[[7,1,7,42],[9,44,10,44],[9,38,10,38],[9,39,10,39],[9,40,10,40],[9,41,10,41],[9,42,10,42],[9,43,10,43],[9,1,10,1],[9,2,10,2],[9,3,10,3],[9,35,10,35],[9,36,10,36],[9,37,10,37]]}
[]
[]
[]
[]
[]
[]
[]
[null,{"$f":"Табель!B10","v":"Т а б е л ь"}]
[null,null,null,null,{"$f":"График!F7","v":7},{"$f":"График!G7","v":1},{"$f":"График!H7","v":2},{"$f":"График!I7","v":3},{"$f":"График!J7","v":4},{"$f":"График!K7","v":5},{"$f":"График!L7","v":6},{"$f":"График!M7","v":7},{"$f":"График!N7","v":1},{"$f":"График!O7","v":2},{"$f":"График!P7","v":3},{"$f":"График!Q7","v":4},{"$f":"График!R7","v":5},{"$f":"График!S7","v":6},{"$f":"График!T7","v":7},{"$f":"График!U7","v":1},{"$f":"График!V7","v":2},{"$f":"График!W7","v":3},{"$f":"График!X7","v":4},{"$f":"График!Y7","v":5},{"$f":"График!Z7","v":6},{"$f":"График!AA7","v":7},{"$f":"График!AB7","v":1},{"$f":"График!AC7","v":2},{"$f":"График!AD7","v":3},{"$f":"График!AE7","v":4},{"$f":"График!AF7","v":5},{"$f":"График!AG7","v":6},{"$f":"График!AH7","v":7},{"$f":"График!AI7","v":1},{"$f":"График!AJ7","v":2}]
[null,{"$f":"Табель!B11","v":"№ п/п"},{"$f":"Табель!D11","v":"ФИО"},{"$f":"Табель!E11","v":"Табельный номер"},1,2,3,4,5,6,7,8,9,10,11,12,13,14,15,16,17,18,19,20,21,22,23,24,25,26,27,28,29,30,31,{"$f":"Табель!AK11","v":"Часы"},{"$f":"Табель!AL11","v":0},{"$f":"Табель!AM11","v":"Вечер"},{"$f":"Табель!AN11","v":"Ночь"},{"$f":"Табель!AO11","v":"Отпуск"},{"$f":"Табель!AP11","v":"Больничный"},{"$f":"Табель!AQ11","v":"Дни"},{"$f":"Табель!AR11","v":0},{"$f":"Табель!AS11","v":0},{"$f":"Табель!AT11","v":0}]
[null,null,null,null,{"$f":"TEXT(График!F8,\"ДДД\")","v":"Вс"},{"$f":"TEXT(График!G8,\"ДДД\")","v":"Пн"},{"$f":"TEXT(График!H8,\"ДДД\")","v":"Вт"},{"$f":"TEXT(График!I8,\"ДДД\")","v":"Ср"},{"$f":"TEXT(График!J8,\"ДДД\")","v":"Чт"},{"$f":"TEXT(График!K8,\"ДДД\")","v":"Пт"},{"$f":"TEXT(График!L8,\"ДДД\")","v":"Сб"},{"$f":"TEXT(График!M8,\"ДДД\")","v":"Вс"},{"$f":"TEXT(График!N8,\"ДДД\")","v":"Пн"},{"$f":"TEXT(График!O8,\"ДДД\")","v":"Вт"},{"$f":"TEXT(График!P8,\"ДДД\")","v":"Ср"},{"$f":"TEXT(График!Q8,\"ДДД\")","v":"Чт"},{"$f":"TEXT(График!R8,\"ДДД\")","v":"Пт"},{"$f":"TEXT(График!S8,\"ДДД\")","v":"Сб"},{"$f":"TEXT(График!T8,\"ДДД\")","v":"Вс"},{"$f":"TEXT(График!U8,\"ДДД\")","v":"Пн"},{"$f":"TEXT(График!V8,\"ДДД\")","v":"Вт"},{"$f":"TEXT(График!W8,\"ДДД\")","v":"Ср"},{"$f":"TEXT(График!X8,\"ДДД\")","v":"Чт"},{"$f":"TEXT(График!Y8,\"ДДД\")","v":"Пт"},{"$f":"TEXT(График!Z8,\"ДДД\")","v":"Сб"},{"$f":"TEXT(График!AA8,\"ДДД\")","v":"Вс"},{"$f":"TEXT(График!AB8,\"ДДД\")","v":"Пн"},{"$f":"TEXT(График!AC8,\"ДДД\")","v":"Вт"},{"$f":"TEXT(График!AD8,\"ДДД\")","v":"Ср"},{"$f":"TEXT(График!AE8,\"ДДД\")","v":"Чт"},{"$f":"TEXT(График!AF8,\"ДДД\")","v":"Пт"},{"$f":"TEXT(График!AG8,\"ДДД\")","v":"Сб"},{"$f":"TEXT(График!AH8,\"ДДД\")","v":"Вс"},{"$f":"TEXT(График!AI8,\"ДДД\")","v":"Пн"},{"$f":"TEXT(График!AJ8,\"ДДД\")","v":"Вт"}]
[null,1,{"$f":"IF(Табель!D14=\"\",\"\",Табель!D14)","v":"Сидоров И. П."},{"$f":"IF(Табель!E14=\"\",\"\",Табель!E14)","v":101},{"$f":"IF(Табель!F14=\"\",\"\",Табель!F14)","v":""},{"$f":"IF(Табель!G14=\"\",\"\",Табель!G14)","v":""},{"$f":"IF(Табель!H14=\"\",\"\",Табель!H14)","v":""},{"$f":"IF(Табель!I14=\"\",\"\",Табель!I14)","v":""},{"$f":"IF(Табель!J14=\"\",\"\",Табель!J14)","v":""},{"$f":"IF(Табель!K14=\"\",\"\",Табель!K14)","v":""},{"$f":"IF(Табель!L14=\"\",\"\",Табель!L14)","v":""},{"$f":"IF(Табель!M14=\"\",\"\",Табель!M14)","v":""},{"$f":"IF(Табель!N14=\"\",\"\",Табель!N14)","v":""},{"$f":"IF(Табель!O14=\"\",\"\",Табель!O14)","v":""},{"$f":"IF(Табель!P14=\"\",\"\",Табель!P14)","v":""},{"$f":"IF(Табель!Q14=\"\",\"\",Табель!Q14)","v":""},{"$f":"IF(Табель!R14=\"\",\"\",Табель!R14)","v":""},{"$f":"IF(Табель!S14=\"\",\"\",Табель!S14)","v":""},{"$f":"IF(Табель!T14=\"\",\"\",Табель!T14)","v":""},{"$f":"IF(Табель!U14=\"\",\"\",Табель!U14)","v":""},{"$f":"IF(Табель!V14=\"\",\"\",Табель!V14)","v":""},{"$f":"IF(Табель!W14=\"\",\"\",Табель!W14)","v":8},{"$f":"IF(Табель!X14=\"\",\"\",Табель!X14)","v":8},{"$f":"IF(Табель!Y14=\"\",\"\",Табель!Y14)","v":8},{"$f":"IF(Табель!Z14=\"\",\"\",Табель!Z14)","v":""},{"$f":"IF(Табель!AA14=\"\",\"\",Табель!AA14)","v":""},{"$f":"IF(Табель!AB14=\"\",\"\",Табель!AB14)","v":8},{"$f":"IF(Табель!AC14=\"\",\"\",Табель!AC14)","v":8},{"$f":"IF(Табель!AD14=\"\",\"\",Табель!AD14)","v":8},{"$f":"IF(Табель!AE14=\"\",\"\",Табель!AE14)","v":8},{"$f":"IF(Табель!AF14=\"\",\"\",Табель!AF14)","v":8},{"$f":"IF(Табель!AG14=\"\",\"\",Табель!AG14)","v":""},{"$f":"IF(Табель!AH14=\"\",\"\",Табель!AH14)","v":""},{"$f":"IF(Табель!AI14=\"\",\"\",Табель!AI14)","v":8},{"$f":"IF(Табель!AJ14=\"\",\"\",Табель!AJ14)","v":8},{"$f":"IF(Табель!AK14=\"\",\"\",Табель!AK14)","v":80},{"$f":"IF(Табель!AL14=\"\",\"\",Табель!AL14)","v":""},{"$f":"IF(Табель!AM14=\"\",\"\",Табель!AM14)","v":""},{"$f":"IF(Табель!AN14=\"\",\"\",Табель!AN14)","v":""},{"$f":"IF(Табель!AO14=\"\",\"\",Табель!AO14)","v":""},{"$f":"IF(Табель!AP14=\"\",\"\",Табель!AP14)","v":""},{"$f":"IF(Табель!AQ14=\"\",\"\",Табель!AQ14)","v":10},{"$f":"IF(Табель!AR14=\"\",\"\",Табель!AR14)","v":""},{"$f":"IF(Табель!AS14=\"\",\"\",Табель!AS14)","v":""},{"$f":"IF(Табель!AT14=\"\",\"\",Табель!AT14)","v":""}]
[null,2,{"$f":"IF(Табель!#REF!=\"\",\"\",Табель!#REF!)","v":{"$error":"#REF!"}},{"$f":"IF(Табель!#REF!=\"\",\"\",Табель!#REF!)","v":{"$error":"#REF!"}},{"$f":"IF(Табель!#REF!=\"\",\"\",Табель!#REF!)","v":{"$error":"#REF!"}},{"$f":"IF(Табель!#REF!=\"\",\"\",Табель!#REF!)","v":{"$error":"#REF!"}},{"$f":"IF(Табель!#REF!=\"\",\"\",Табель!#REF!)","v":{"$error":"#REF!"}},{"$f":"IF(Табель!#REF!=\"\",\"\",Табель!#REF!)","v":{"$error":"#REF!"}},{"$f":"IF(Табель!#REF!=\"\",\"\",Табель!#REF!)","v":{"$error":"#REF!"}},{"$f":"IF(Табель!#REF!=\"\",\"\",Табель!#REF!)","v":{"$error":"#REF!"}},{"$f":"IF(Табель!#REF!=\"\",\"\",Табель!#REF!)","v":{"$error":"#REF!"}},{"$f":"IF(Табель!#REF!=\"\",\"\",Табель!#REF!)","v":{"$error":"#REF!"}},{"$f":"IF(Табель!#REF!=\"\",\"\",Табель!#REF!)","v":{"$error":"#REF!"}},{"$f":"IF(Табель!#REF!=\"\",\"\",Табель!#REF!)","v":{"$error":"#REF!"}},{"$f":"IF(Табель!#REF!=\"\",\"\",Табель!#REF!)","v":{"$error":"#REF!"}},{"$f":"IF(Табель!#REF!=\"\",\"\",Табель!#REF!)","v":{"$error":"#REF!"}},{"$f":"IF(Табель!#REF!=\"\",\"\",Табель!#REF!)","v":{"$error":"#REF!"}},{"$f":"IF(Табель!#REF!=\"\",\"\",Табель!#REF!)","v":{"$error":"#REF!"}},{"$f":"IF(Табель!#REF!=\"\",\"\",Табель!#REF!)","v":{"$error":"#REF!"}},{"$f":"IF(Табель!#REF!=\"\",\"\",Табель!#REF!)","v":{"$error":"#REF!"}},{"$f":"IF(Табель!#REF!=\"\",\"\",Табель!#REF!)","v":{"$error":"#REF!"}},{"$f":"IF(Табель!#REF!=\"\",\"\",Табель!#REF!)","v":{"$error":"#REF!"}},{"$f":"IF(Табель!#REF!=\"\",\"\",Табель!#REF!)","v":{"$error":"#REF!"}},{"$f":"IF(Табель!#REF!=\"\",\"\",Табель!#REF!)","v":{"$error":"#REF!"}},{"$f":"IF(Табель!#REF!=\"\",\"\",Табель!#REF!)","v":{"$error":"#REF!"}},{"$f":"IF(Табель!#REF!=\"\",\"\",Табель!#REF!)","v":{"$error":"#REF!"}},{"$f":"IF(Табель!#REF!=\"\",\"\",Табель!#REF!)","v":{"$error":"#REF!"}},{"$f":"IF(Табель!#REF!=\"\",\"\",Табель!#REF!)","v":{"$error":"#REF!"}},{"$f":"IF(Табель!#REF!=\"\",\"\",Табель!#REF!)","v":{"$error":"#REF!"}},{"$f":"IF(Табель!#REF!=\"\",\"\",Табель!#REF!)","v":{"$error":"#REF!"}},{"$f":"IF(Табель!#REF!=\"\",\"\",Табель!#REF!)","v":{"$error":"#REF!"}},{"$f":"IF(Табель!#REF!=\"\",\"\",Табель!#REF!)","v":{"$error":"#REF!"}},{"$f":"IF(Табель!#REF!=\"\",\"\",Табель!#REF!)","v":{"$error":"#REF!"}},{"$f":"IF(Табель!#REF!=\"\",\"\",Табель!#REF!)","v":{"$error":"#REF!"}},{"$f":"IF(Табель!#REF!=\"\",\"\",Табель!#REF!)","v":{"$error":"#REF!"}},{"$f":"IF(Табель!#REF!=\"\",\"\",Табель!#REF!)","v":{"$error":"#REF!"}},{"$f":"IF(Табель!#REF!=\"\",\"\",Табель!#REF!)","v":{"$error":"#REF!"}},{"$f":"IF(Табель!#REF!=\"\",\"\",Табель!#REF!)","v":{"$error":"#REF!"}},{"$f":"IF(Табель!#REF!=\"\",\"\",Табель!#REF!)","v":{"$error":"#REF!"}},{"$f":"IF(Табель!#REF!=\"\",\"\",Табель!#REF!)","v":{"$error":"#REF!"}},{"$f":"IF(Табель!#REF!=\"\",\"\",Табель!#REF!)","v":{"$error":"#REF!"}},{"$f":"IF(Табель!#REF!=\"\",\"\",Табель!#REF!)","v":{"$error":"#REF!"}},{"$f":"IF(Табель!#REF!=\"\",\"\",Табель!#REF!)","v":{"$error":"#REF!"}},{"$f":"IF(Табель!#REF!=\"\",\"\",Табель!#REF!)","v":{"$error":"#REF!"}},{"$f":"IF(Табель!#REF!=\"\",\"\",Табель!#REF!)","v":{"$error":"#REF!"}}]
[null,3,{"$f":"IF(Табель!#REF!=\"\",\"\",Табель!#REF!)","v":{"$error":"#REF!"}},{"$f":"IF(Табель!#REF!=\"\",\"\",Табель!#REF!)","v":{"$error":"#REF!"}},{"$f":"IF(Табель!#REF!=\"\",\"\",Табель!#REF!)","v":{"$error":"#REF!"}},{"$f":"IF(Табель!#REF!=\"\",\"\",Табель!#REF!)","v":{"$error":"#REF!"}},{"$f":"IF(Табель!#REF!=\"\",\"\",Табель!#REF!)","v":{"$error":"#REF!"}},{"$f":"IF(Табель!#REF!=\"\",\"\",Табель!#REF!)","v":{"$error":"#REF!"}},{"$f":"IF(Табель!#REF!=\"\",\"\",Табель!#REF!)","v":{"$error":"#REF!"}},{"$f":"IF(Табель!#REF!=\"\",\"\",Табель!#REF!)","v":{"$error":"#REF!"}},{"$f":"IF(Табель!#REF!=\"\",\"\",Табель!#REF!)","v":{"$error":"#REF!"}},{"$f":"IF(Табель!#REF!=\"\",\"\",Табель!#REF!)","v":{"$error":"#REF!"}},{"$f":"IF(Табель!#REF!=\"\",\"\",Табель!#REF!)","v":{"$error":"#REF!"}},{"$f":"IF(Табель!#REF!=\"\",\"\",Табель!#REF!)","v":{"$error":"#REF!"}},{"$f":"IF(Табель!#REF!=\"\",\"\",Табель!#REF!)","v":{"$error":"#REF!"}},{"$f":"IF(Табель!#REF!=\"\",\"\",Табель!#REF!)","v":{"$error":"#REF!"}},{"$f":"IF(Табель!#REF!=\"\",\"\",Табель!#REF!)","v":{"$error":"#REF!"}},{"$f":"IF(Табель!#REF!=\"\",\"\",Табель!#REF!)","v":{"$error":"#REF!"}},{"$f":"IF(Табель!#REF!=\"\",\"\",Табель!#REF!)","v":{"$error":"#REF!"}},{"$f":"IF(Табель!#REF!=\"\",\"\",Табель!#REF!)","v":{"$error":"#REF!"}},{"$f":"IF(Табель!#REF!=\"\",\"\",Табель!#REF!)","v":{"$error":"#REF!"}},{"$f":"IF(Табель!#REF!=\"\",\"\",Табель!#REF!)","v":{"$error":"#REF!"}},{"$f":"IF(Табель!#REF!=\"\",\"\",Табель!#REF!)","v":{"$error":"#REF!"}},{"$f":"IF(Табель!#REF!=\"\",\"\",Табель!#REF!)","v":{"$error":"#REF!"}},{"$f":"IF(Табель!#REF!=\"\",\"\",Табель!#REF!)","v":{"$error":"#REF!"}},{"$f":"IF(Табель!#REF!=\"\",\"\",Табель!#REF!)","v":{"$error":"#REF!"}},{"$f":"IF(Табель!#REF!=\"\",\"\",Табель!#REF!)","v":{"$error":"#REF!"}},{"$f":"IF(Табель!#REF!=\"\",\"\",Табель!#REF!)","v":{"$error":"#REF!"}},{"$f":"IF(Табель!#REF!=\"\",\"\",Табель!#REF!)","v":{"$error":"#REF!"}},{"$f":"IF(Табель!#REF!=\"\",\"\",Табель!#REF!)","v":{"$error":"#REF!"}},{"$f":"IF(Табель!#REF!=\"\",\"\",Табель!#REF!)","v":{"$error":"#REF!"}},{"$f":"IF(Табель!#REF!=\"\",\"\",Табель!#REF!)","v":{"$error":"#REF!"}},{"$f":"IF(Табель!#REF!=\"\",\"\",Табель!#REF!)","v":{"$error":"#REF!"}},{"$f":"IF(Табель!#REF!=\"\",\"\",Табель!#REF!)","v":{"$error":"#REF!"}},{"$f":"IF(Табель!#REF!=\"\",\"\",Табель!#REF!)","v":{"$error":"#REF!"}},{"$f":"IF(Табель!#REF!=\"\",\"\",Табель!#REF!)","v":{"$error":"#REF!"}},{"$f":"IF(Табель!#REF!=\"\",\"\",Табель!#REF!)","v":{"$error":"#REF!"}},{"$f":"IF(Табель!#REF!=\"\",\"\",Табель!#REF!)","v":{"$error":"#REF!"}},{"$f":"IF(Табель!#REF!=\"\",\"\",Табель!#REF!)","v":{"$error":"#REF!"}},{"$f":"IF(Табель!#REF!=\"\",\"\",Табель!#REF!)","v":{"$error":"#REF!"}},{"$f":"IF(Табель!#REF!=\"\",\"\",Табель!#REF!)","v":{"$error":"#REF!"}},{"$f":"IF(Табель!#REF!=\"\",\"\",Табель!#REF!)","v":{"$error":"#REF!"}},{"$f":"IF(Табель!#REF!=\"\",\"\",Табель!#REF!)","v":{"$error":"#REF!"}},{"$f":"IF(Табель!#REF!=\"\",\"\",Табель!#REF!)","v":{"$error":"#REF!"}},{"$f":"IF(Табель!#REF!=\"\",\"\",Табель!#REF!)","v":{"$error":"#REF!"}}]
[null,4,{"$f":"IF(Табель!#REF!=\"\",\"\",Табель!#REF!)","v":{"$error":"#REF!"}},{"$f":"IF(Табель!#REF!=\"\",\"\",Табель!#REF!)","v":{"$error":"#REF!"}},{"$f":"IF(Табель!#REF!=\"\",\"\",Табель!#REF!)","v":{"$error":"#REF!"}},{"$f":"IF(Табель!#REF!=\"\",\"\",Табель!#REF!)","v":{"$error":"#REF!"}},{"$f":"IF(Табель!#REF!=\"\",\"\",Табель!#REF!)","v":{"$error":"#REF!"}},{"$f":"IF(Табель!#REF!=\"\",\"\",Табель!#REF!)","v":{"$error":"#REF!"}},{"$f":"IF(Табель!#REF!=\"\",\"\",Табель!#REF!)","v":{"$error":"#REF!"}},{"$f":"IF(Табель!#REF!=\"\",\"\",Табель!#REF!)","v":{"$error":"#REF!"}},{"$f":"IF(Табель!#REF!=\"\",\"\",Табель!#REF!)","v":{"$error":"#REF!"}},{"$f":"IF(Табель!#REF!=\"\",\"\",Табель!#REF!)","v":{"$error":"#REF!"}},{"$f":"IF(Табель!#REF!=\"\",\"\",Табель!#REF!)","v":{"$error":"#REF!"}},{"$f":"IF(Табель!#REF!=\"\",\"\",Табель!#REF!)","v":{"$error":"#REF!"}},{"$f":"IF(Табель!#REF!=\"\",\"\",Табель!#REF!)","v":{"$error":"#REF!"}},{"$f":"IF(Табель!#REF!=\"\",\"\",Табель!#REF!)","v":{"$error":"#REF!"}},{"$f":"IF(Табель!#REF!=\"\",\"\",Табель!#REF!)","v":{"$error":"#REF!"}},{"$f":"IF(Табель!#REF!=\"\",\"\",Табель!#REF!)","v":{"$error":"#REF!"}},{"$f":"IF(Табель!#REF!=\"\",\"\",Табель!#REF!)","v":{"$error":"#REF!"}},{"$f":"IF(Табель!#REF!=\"\",\"\",Табель!#REF!)","v":{"$error":"#REF!"}},{"$f":"IF(Табель!#REF!=\"\",\"\",Табель!#REF!)","v":{"$error":"#REF!"}},{"$f":"IF(Табель!#REF!=\"\",\"\",Табель!#REF!)","v":{"$error":"#REF!"}},{"$f":"IF(Табель!#REF!=\"\",\"\",Табель!#REF!)","v":{"$error":"#REF!"}},{"$f":"IF(Табель!#REF!=\"\",\"\",Табель!#REF!)","v":{"$error":"#REF!"}},{"$f":"IF(Табель!#REF!=\"\",\"\",Табель!#REF!)","v":{"$error":"#REF!"}},{"$f":"IF(Табель!#REF!=\"\",\"\",Табель!#REF!)","v":{"$error":"#REF!"}},{"$f":"IF(Табель!#REF!=\"\",\"\",Табель!#REF!)","v":{"$error":"#REF!"}},{"$f":"IF(Табель!#REF!=\"\",\"\",Табель!#REF!)","v":{"$error":"#REF!"}},{"$f":"IF(Табель!#REF!=\"\",\"\",Табель!#REF!)","v":{"$error":"#REF!"}},{"$f":"IF(Табель!#REF!=\"\",\"\",Табель!#REF!)","v":{"$error":"#REF!"}},{"$f":"IF(Табель!#REF!=\"\",\"\",Табель!#REF!)","v":{"$error":"#REF!"}},{"$f":"IF(Табель!#REF!=\"\",\"\",Табель!#REF!)","v":{"$error":"#REF!"}},{"$f":"IF(Табель!#REF!=\"\",\"\",Табель!#REF!)","v":{"$error":"#REF!"}},{"$f":"IF(Табель!#REF!=\"\",\"\",Табель!#REF!)","v":{"$error":"#REF!"}},{"$f":"IF(Табель!#REF!=\"\",\"\",Табель!#REF!)","v":{"$error":"#REF!"}},{"$f":"IF(Табель!#REF!=\"\",\"\",Табель!#REF!)","v":{"$error":"#REF!"}},{"$f":"IF(Табель!#REF!=\"\",\"\",Табель!#REF!)","v":{"$error":"#REF!"}},{"$f":"IF(Табель!#REF!=\"\",\"\",Табель!#REF!)","v":{"$error":"#REF!"}},{"$f":"IF(Табель!#REF!=\"\",\"\",Табель!#REF!)","v":{"$error":"#REF!"}},{"$f":"IF(Табель!#REF!=\"\",\"\",Табель!#REF!)","v":{"$error":"#REF!"}},{"$f":"IF(Табель!#REF!=\"\",\"\",Табель!#REF!)","v":{"$error":"#REF!"}},{"$f":"IF(Табель!#REF!=\"\",\"\",Табель!#REF!)","v":{"$error":"#REF!"}},{"$f":"IF(Табель!#REF!=\"\",\"\",Табель!#REF!)","v":{"$error":"#REF!"}},{"$f":"IF(Табель!#REF!=\"\",\"\",Табель!#REF!)","v":{"$error":"#REF!"}},{"$f":"IF(Табель!#REF!=\"\",\"\",Табель!#REF!)","v":{"$error":"#REF!"}}]
[null,5,{"$f":"IF(Табель!#REF!=\"\",\"\",Табель!#REF!)","v":{"$error":"#REF!"}},{"$f":"IF(Табель!#REF!=\"\",\"\",Табель!#REF!)","v":{"$error":"#REF!"}},{"$f":"IF(Табель!#REF!=\"\",\"\",Табель!#REF!)","v":{"$error":"#REF!"}},{"$f":"IF(Табель!#REF!=\"\",\"\",Табель!#REF!)","v":{"$error":"#REF!"}},{"$f":"IF(Табель!#REF!=\"\",\"\",Табель!#REF!)","v":{"$error":"#REF!"}},{"$f":"IF(Табель!#REF!=\"\",\"\",Табель!#REF!)","v":{"$error":"#REF!"}},{"$f":"IF(Табель!#REF!=\"\",\"\",Табель!#REF!)","v":{"$error":"#REF!"}},{"$f":"IF(Табель!#REF!=\"\",\"\",Табель!#REF!)","v":{"$error":"#REF!"}},{"$f":"IF(Табель!#REF!=\"\",\"\",Табель!#REF!)","v":{"$error":"#REF!"}},{"$f":"IF(Табель!#REF!=\"\",\"\",Табель!#REF!)","v":{"$error":"#REF!"}},{"$f":"IF(Табель!#REF!=\"\",\"\",Табель!#REF!)","v":{"$error":"#REF!"}},{"$f":"IF(Табель!#REF!=\"\",\"\",Табель!#REF!)","v":{"$error":"#REF!"}},{"$f":"IF(Табель!#REF!=\"\",\"\",Табель!#REF!)","v":{"$error":"#REF!"}},{"$f":"IF(Табель!#REF!=\"\",\"\",Табель!#REF!)","v":{"$error":"#REF!"}},{"$f":"IF(Табель!#REF!=\"\",\"\",Табель!#REF!)","v":{"$error":"#REF!"}},{"$f":"IF(Табель!#REF!=\"\",\"\",Табель!#REF!)","v":{"$error":"#REF!"}},{"$f":"IF(Табель!#REF!=\"\",\"\",Табель!#REF!)","v":{"$error":"#REF!"}},{"$f":"IF(Табель!#REF!=\"\",\"\",Табель!#REF!)","v":{"$error":"#REF!"}},{"$f":"IF(Табель!#REF!=\"\",\"\",Табель!#REF!)","v":{"$error":"#REF!"}},{"$f":"IF(Табель!#REF!=\"\",\"\",Табель!#REF!)","v":{"$error":"#REF!"}},{"$f":"IF(Табель!#REF!=\"\",\"\",Табель!#REF!)","v":{"$error":"#REF!"}},{"$f":"IF(Табель!#REF!=\"\",\"\",Табель!#REF!)","v":{"$error":"#REF!"}},{"$f":"IF(Табель!#REF!=\"\",\"\",Табель!#REF!)","v":{"$error":"#REF!"}},{"$f":"IF(Табель!#REF!=\"\",\"\",Табель!#REF!)","v":{"$error":"#REF!"}},{"$f":"IF(Табель!#REF!=\"\",\"\",Табель!#REF!)","v":{"$error":"#REF!"}},{"$f":"IF(Табель!#REF!=\"\",\"\",Табель!#REF!)","v":{"$error":"#REF!"}},{"$f":"IF(Табель!#REF!=\"\",\"\",Табель!#REF!)","v":{"$error":"#REF!"}},{"$f":"IF(Табель!#REF!=\"\",\"\",Табель!#REF!)","v":{"$error":"#REF!"}},{"$f":"IF(Табель!#REF!=\"\",\"\",Табель!#REF!)","v":{"$error":"#REF!"}},{"$f":"IF(Табель!#REF!=\"\",\"\",Табель!#REF!)","v":{"$error":"#REF!"}},{"$f":"IF(Табель!#REF!=\"\",\"\",Табель!#REF!)","v":{"$error":"#REF!"}},{"$f":"IF(Табель!#REF!=\"\",\"\",Табель!#REF!)","v":{"$error":"#REF!"}},{"$f":"IF(Табель!#REF!=\"\",\"\",Табель!#REF!)","v":{"$error":"#REF!"}},{"$f":"IF(Табель!#REF!=\"\",\"\",Табель!#REF!)","v":{"$error":"#REF!"}},{"$f":"IF(Табель!#REF!=\"\",\"\",Табель!#REF!)","v":{"$error":"#REF!"}},{"$f":"IF(Табель!#REF!=\"\",\"\",Табель!#REF!)","v":{"$error":"#REF!"}},{"$f":"IF(Табель!#REF!=\"\",\"\",Табель!#REF!)","v":{"$error":"#REF!"}},{"$f":"IF(Табель!#REF!=\"\",\"\",Табель!#REF!)","v":{"$error":"#REF!"}},{"$f":"IF(Табель!#REF!=\"\",\"\",Табель!#REF!)","v":{"$error":"#REF!"}},{"$f":"IF(Табель!#REF!=\"\",\"\",Табель!#REF!)","v":{"$error":"#REF!"}},{"$f":"IF(Табель!#REF!=\"\",\"\",Табель!#REF!)","v":{"$error":"#REF!"}},{"$f":"IF(Табель!#REF!=\"\",\"\",Табель!#REF!)","v":{"$error":"#REF!"}},{"$f":"IF(Табель!#REF!=\"\",\"\",Табель!#REF!)","v":{"$error":"#REF!"}}]
[null,6,{"$f":"IF(Табель!#REF!=\"\",\"\",Табель!#REF!)","v":{"$error":"#REF!"}},{"$f":"IF(Табель!#REF!=\"\",\"\",Табель!#REF!)","v":{"$error":"#REF!"}},{"$f":"IF(Табель!#REF!=\"\",\"\",Табель!#REF!)","v":{"$error":"#REF!"}},{"$f":"IF(Табель!#REF!=\"\",\"\",Табель!#REF!)","v":{"$error":"#REF!"}},{"$f":"IF(Табель!#REF!=\"\",\"\",Табель!#REF!)","v":{"$error":"#REF!"}},{"$f":"IF(Табель!#REF!=\"\",\"\",Табель!#REF!)","v":{"$error":"#REF!"}},{"$f":"IF(Табель!#REF!=\"\",\"\",Табель!#REF!)","v":{"$error":"#REF!"}},{"$f":"IF(Табель!#REF!=\"\",\"\",Табель!#REF!)","v":{"$error":"#REF!"}},{"$f":"IF(Табель!#REF!=\"\",\"\",Табель!#REF!)","v":{"$error":"#REF!"}},{"$f":"IF(Табель!#REF!=\"\",\"\",Табель!#REF!)","v":{"$error":"#REF!"}},{"$f":"IF(Табель!#REF!=\"\",\"\",Табель!#REF!)","v":{"$error":"#REF!"}},{"$f":"IF(Табель!#REF!=\"\",\"\",Табель!#REF!)","v":{"$error":"#REF!"}},{"$f":"IF(Табель!#REF!=\"\",\"\",Табель!#REF!)","v":{"$error":"#REF!"}},{"$f":"IF(Табель!#REF!=\"\",\"\",Табель!#REF!)","v":{"$error":"#REF!"}},{"$f":"IF(Табель!#REF!=\"\",\"\",Табель!#REF!)","v":{"$error":"#REF!"}},{"$f":"IF(Табель!#REF!=\"\",\"\",Табель!#REF!)","v":{"$error":"#REF!"}},{"$f":"IF(Табель!#REF!=\"\",\"\",Табель!#REF!)","v":{"$error":"#REF!"}},{"$f":"IF(Табель!#REF!=\"\",\"\",Табель!#REF!)","v":{"$error":"#REF!"}},{"$f":"IF(Табель!#REF!=\"\",\"\",Табель!#REF!)","v":{"$error":"#REF!"}},{"$f":"IF(Табель!#REF!=\"\",\"\",Табель!#REF!)","v":{"$error":"#REF!"}},{"$f":"IF(Табель!#REF!=\"\",\"\",Табель!#REF!)","v":{"$error":"#REF!"}},{"$f":"IF(Табель!#REF!=\"\",\"\",Табель!#REF!)","v":{"$error":"#REF!"}},{"$f":"IF(Табель!#REF!=\"\",\"\",Табель!#REF!)","v":{"$error":"#REF!"}},{"$f":"IF(Табель!#REF!=\"\",\"\",Табель!#REF!)","v":{"$error":"#REF!"}},{"$f":"IF(Табель!#REF!=\"\",\"\",Табель!#REF!)","v":{"$error":"#REF!"}},{"$f":"IF(Табель!#REF!=\"\",\"\",Табель!#REF!)","v":{"$error":"#REF!"}},{"$f":"IF(Табель!#REF!=\"\",\"\",Табель!#REF!)","v":{"$error":"#REF!"}},{"$f":"IF(Табель!#REF!=\"\",\"\",Табель!#REF!)","v":{"$error":"#REF!"}},{"$f":"IF(Табель!#REF!=\"\",\"\",Табель!#REF!)","v":{"$error":"#REF!"}},{"$f":"IF(Табель!#REF!=\"\",\"\",Табель!#REF!)","v":{"$error":"#REF!"}},{"$f":"IF(Табель!#REF!=\"\",\"\",Табель!#REF!)","v":{"$error":"#REF!"}},{"$f":"IF(Табель!#REF!=\"\",\"\",Табель!#REF!)","v":{"$error":"#REF!"}},null,{"$f":"IF(Табель!#REF!=\"\",\"\",Табель!#REF!)","v":{"$error":"#REF!"}},null,null,null,null,null,{"$f":"IF(Табель!#REF!=\"\",\"\",Табель!#REF!)","v":{"$error":"#REF!"}}]
[null,7,{"$f":"IF(Табель!#REF!=\"\",\"\",Табель!#REF!)","v":{"$error":"#REF!"}},{"$f":"IF(Табель!#REF!=\"\",\"\",Табель!#REF!)","v":{"$error":"#REF!"}},{"$f":"IF(Табель!#REF!=\"\",\"\",Табель!#REF!)","v":{"$error":"#REF!"}},{"$f":"IF(Табель!#REF!=\"\",\"\",Табель!#REF!)","v":{"$error":"#REF!"}},{"$f":"IF(Табель!#REF!=\"\",\"\",Табель!#REF!)","v":{"$error":"#REF!"}},{"$f":"IF(Табель!#REF!=\"\",\"\",Табель!#REF!)","v":{"$error":"#REF!"}},{"$f":"IF(Табель!#REF!=\"\",\"\",Табель!#REF!)","v":{"$error":"#REF!"}},{"$f":"IF(Табель!#REF!=\"\",\"\",Табель!#REF!)","v":{"$error":"#REF!"}},{"$f":"IF(Табель!#REF!=\"\",\"\",Табель!#REF!)","v":{"$error":"#REF!"}},{"$f":"IF(Табель!#REF!=\"\",\"\",Табель!#REF!)","v":{"$error":"#REF!"}},{"$f":"IF(Табель!#REF!=\"\",\"\",Табель!#REF!)","v":{"$error":"#REF!"}},{"$f":"IF(Табель!#REF!=\"\",\"\",Табель!#REF!)","v":{"$error":"#REF!"}},{"$f":"IF(Табель!#REF!=\"\",\"\",Табель!#REF!)","v":{"$error":"#REF!"}},{"$f":"IF(Табель!#REF!=\"\",\"\",Табель!#REF!)","v":{"$error":"#REF!"}},{"$f":"IF(Табель!#REF!=\"\",\"\",Табель!#REF!)","v":{"$error":"#REF!"}},{"$f":"IF(Табель!#REF!=\"\",\"\",Табель!#REF!)","v":{"$error":"#REF!"}},{"$f":"IF(Табель!#REF!=\"\",\"\",Табель!#REF!)","v":{"$error":"#REF!"}},{"$f":"IF(Табель!#REF!=\"\",\"\",Табель!#REF!)","v":{"$error":"#REF!"}},{"$f":"IF(Табель!#REF!=\"\",\"\",Табель!#REF!)","v":{"$error":"#REF!"}},{"$f":"IF(Табель!#REF!=\"\",\"\",Табель!#REF!)","v":{"$error":"#REF!"}},{"$f":"IF(Табель!#REF!=\"\",\"\",Табель!#REF!)","v":{"$error":"#REF!"}},{"$f":"IF(Табель!#REF!=\"\",\"\",Табель!#REF!)","v":{"$error":"#REF!"}},{"$f":"IF(Табель!#REF!=\"\",\"\",Табель!#REF!)","v":{"$error":"#REF!"}},{"$f":"IF(Табель!#REF!=\"\",\"\",Табель!#REF!)","v":{"$error":"#REF!"}},{"$f":"IF(Табель!#REF!=\"\",\"\",Табель!#REF!)","v":{"$error":"#REF!"}},{"$f":"IF(Табель!#REF!=\"\",\"\",Табель!#REF!)","v":{"$error":"#REF!"}},{"$f":"IF(Табель!#REF!=\"\",\"\",Табель!#REF!)","v":{"$error":"#REF!"}},{"$f":"IF(Табель!#REF!=\"\",\"\",Табель!#REF!)","v":{"$error":"#REF!"}},{"$f":"IF(Табель!#REF!=\"\",\"\",Табель!#REF!)","v":{"$error":"#REF!"}},{"$f":"IF(Табель!#REF!=\"\",\"\",Табель!#REF!)","v":{"$error":"#REF!"}},{"$f":"IF(Табель!#REF!=\"\",\"\",Табель!#REF!)","v":{"$error":"#REF!"}},{"$f":"IF(Табель!#REF!=\"\",\"\",Табель!#REF!)","v":{"$error":"#REF!"}},{"$f":"IF(Табель!#REF!=\"\",\"\",Табель!#REF!)","v":{"$error":"#REF!"}},{"$f":"IF(Табель!#REF!=\"\",\"\",Табель!#REF!)","v":{"$error":"#REF!"}},{"$f":"IF(Табель!#REF!=\"\",\"\",Табель!#REF!)","v":{"$error":"#REF!"}},{"$f":"IF(Табель!#REF!=\"\",\"\",Табель!#REF!)","v":{"$error":"#REF!"}},{"$f":"IF(Табель!#REF!=\"\",\"\",Табель!#REF!)","v":{"$error":"#REF!"}},{"$f":"IF(Табель!#REF!=\"\",\"\",Табель!#REF!)","v":{"$error":"#REF!"}},{"$f":"IF(Табель!#REF!=\"\",\"\",Табель!#REF!)","v":{"$error":"#REF!"}},{"$f":"IF(Табель!#REF!=\"\",\"\",Табель!#REF!)","v":{"$error":"#REF!"}},{"$f":"IF(Табель!#REF!=\"\",\"\",Табель!#REF!)","v":{"$error":"#REF!"}},{"$f":"IF(Табель!#REF!=\"\",\"\",Табель!#REF!)","v":{"$error":"#REF!"}},{"$f":"IF(Табель!#REF!=\"\",\"\",Табель!#REF!)","v":{"$error":"#REF!"}}]
[null,null," ",null,null,null,null,null,null,null,null,null,null,null,null,null,null,null,null,null,null,null,null,null,null,null,null,null,null,null,null,null,null,null,null,{"$f":"SUBTOTAL(109,'График Печать'!$AJ$12:$AJ$18)","v":{"$error":"#REF!"}},{"$f":"SUBTOTAL(109,'График Печать'!$AK$12:$AK$18)","v":{"$error":"#REF!"}},{"$f":"SUBTOTAL(109,'График Печать'!$AL$12:$AL$18)","v":{"$error":"#REF!"}},{"$f":"SUBTOTAL(109,'График Печать'!$AM$12:$AM$18)","v":{"$error":"#REF!"}},{"$f":"SUBTOTAL(109,'График Печать'!$AN$12:$AN$18)","v":{"$error":"#REF!"}},{"$f":"SUBTOTAL(109,'График Печать'!$AO$12:$AO$18)","v":{"$error":"#REF!"}},{"$f":"SUBTOTAL(109,'График Печать'!$AP$12:$AP$18)","v":{"$error":"#REF!"}},{"$f":"SUBTOTAL(109,'График Печать'!$AQ$12:$AQ$18)","v":{"$error":"#REF!"}},{"$f":"SUBTOTAL(109,'График Печать'!$AR$12:$AR$18)","v":{"$error":"#REF!"}},{"$f":"SUBTOTAL(109,'График Печать'!$AS$12:$AS$18)","v":{"$error":"#REF!"}}]

{"sheet":"Сотрудники","index":5,"n_rows":9,"n_cols":25,"rows_kept":9,"cut":false,"hidden":false,"merged":[[0,0,0,16],[0,21,0,24]]}
["Сотрудники",null,null,null,null,null,null,null,null,null,null,null,null,null,null,null,null,null,null,null,null,"Отделы"]
["id сотрудника","Табельный номер","ФИО","Дата первого выхода","Дата начала смены","id типа смены","Отдел","Должность","Сотрудник1","Сотрудник2","Сотрудник3","Сотрудник4","Сотрудник5","Сотрудник6","Сотрудник7","Сотрудник8","Сотрудник9",null,null,null,null,"Отдел","Имя файла","Папка выгрузки","Папка загрузки"]
[1,101,"Сидоров И. П.","2022-05-18","2022-05-16",1,"Сварочный","Начальник","Начальник",null,null,null,null,null,null,null,null,null,null,null,null,"Сварочный","Сварочный","D:\\FL\\Табель\\Выгрузка","D:\\FL\\Табель\\Выгрузка"]
[2,202,"Иванов И. И.","2021-09-06","2021-09-06",2,"Сварочный","Инженер","Инженер",null,null,null,null,null,null,null,null,null,null,null,null,"ИТ","ИТ","D:\\FL\\Табель\\ИТВ","D:\\FL\\Табель\\ИТВ"]
[3,155,"Петров Н. С.","2021-09-07","2021-09-07",2,"Сварочный","Техник","Техник",null,null,null,null,null,null,null,null,null,null,null,null,"Все"]
[4,203,"Шариков Ю. С.","2021-09-08","2021-09-08",2,"Сварочный","Техник","Техник"]
[5,206,"Шарапов П. К.","2021-09-09","2021-09-09",2,"Сварочный","Техник","Техник"]
[6,308,"Васячкин В. В.","2022-01-12","2022-01-12",1,"ИТ","Начальник"]
[7,309,"Кисилев К. М.","2022-01-05","2022-01-05",2,"ИТ","Инженер"]

{"sheet":"Типы Выходов","index":6,"n_rows":11,"n_cols":22,"rows_kept":11,"cut":false,"hidden":false,"merged":[[0,0,0,21]]}
["Типы выходов"]
["id типа выхода","График","Табель","Всего часов","Часы день","Часы вечер","Часы Ночь","Отпускные","Больничные","Дней","Декретные","Командировочные","Праздничные","Неявка разрешеный","Выход3","Выход4","Выход5","Выход6","Выход7","Выход8","Выход9","Выход10"]
[1," 8/17 ",8,8,null,null,null,null,null,1]
[2," 8/20 ",12,10,null,2,null,null,null,1]
[3,"20/24 ",4,null,null,2,2,null,null,1]
[4," 0/8 ",8,2,null,null,6,null,null,1]
[5," 8/16 ",7,7,null,null,null,null,null,1]
[6,"Б","Б",null,null,null,null,null,1]
[7,"О","О",null,null,null,null,1]
[8,"Д","Д",null,null,null,null,null,null,null,null,null,null,1]
[9,"От","От",null,null,null,null,null,null,null,null,null,null,1]

{"sheet":"Типы Смен","index":7,"n_rows":4,"n_cols":31,"rows_kept":4,"cut":false,"hidden":false,"merged":[[0,0,0,30]]}
["Типы смен (здесь указывается цикличность с первого дня)"]
["id типа смены","Цикл дней","id проставления","1","2","3","4","5","6","7","8","9","10","11","12","13","14","15","16","17","18","19","20","21","22","23","24","25","26","27","28"]
[1,7,1,1,1,1,1,1]
[2,4,2,2,3,4]

{"sheet":"Изменения","index":8,"n_rows":4,"n_cols":3,"rows_kept":4,"cut":false,"hidden":true,"merged":[]}
["id сотрудника","Дата ","id типа выхода"]
[1,"2022-02-06",3]
[5,"2022-02-21",6]
[5,"2022-02-25",5]

{"sheet":"Праздники и Отпуска","index":9,"n_rows":4,"n_cols":24,"rows_kept":4,"cut":false,"hidden":false,"merged":[[0,3,0,6],[0,0,0,1],[0,9,0,13],[0,17,0,21]]}
["Типы смен (здесь указывается цикличность с первого дня)",null,null,"Перенесенные дни",null,null,null,null,null,"Отпуска, Командировки и др.",null,null,null,null,null,null,null,"Период действия режима смены"]
["дата","Тип",null,"Дата1","Дата2","Тип1","Тип2",null,null,"№","Табельный номер","ФИО","с","по","Тип Выхода","Дней",null,"№","Табельный номер","ФИО","с","по","Тип смены","Дата начала смены"]
["2021-12-31",8,null,"2021-12-31","2026-12-27",8,8,null,null,1,202,{"$f":"VLOOKUP(TOtpuska[[#This Row],[Табельный номер]],TSotrudniki[[Табельный номер]:[ФИО]],2,0)","v":"Иванов И. И."},"2022-06-06","2022-06-16","О",10,null,1,206,{"$f":"VLOOKUP(TPeriod[[#This Row],[Табельный номер]],TSotrudniki[[Табельный номер]:[ФИО]],2,0)","v":"Шарапов П. К."},"2022-05-19","2022-05-31",2,"2022-05-17"]
["2022-01-14",8]

{"sheet":"Правила","index":10,"n_rows":15,"n_cols":21,"rows_kept":15,"cut":false,"hidden":false,"merged":[[0,0,0,1],[0,9,0,15],[0,3,0,7],[1,18,1,20]]}
["Перед праздником делать подмену",null,null,"Проставления в графике",null,null,null,null,null,"Исключения"]
["id типа выхода1","id типа выхода2",null,"id типа проставления","Не проставлять в праздники","Применять перенесенные","Не проставлять в субботу","Не проставлять в воскресенье",null,"id типа выхода","Исключать в праздники","Исключать в субботу","Исключать в воскресенье","Не проставлять в праздники","Не проставлять в субботу","Не проставлять в воскресенье",null,null,"Делать подмену"]
[1,5,null,1,1,1,1,1,null,1,1,null,null,1,1,1,null,null,"id типа выхода до","Тип дня","id типа выхода после"]
[null,null,null,2,null,null,null,null,null,2,null,null,null,null,null,null,null,null,3,4,4]
[null,null,null,3,null,null,null,null,null,3]
[null,null,null,4,null,null,null,null,null,4]
[null,null,null,5,null,null,null,null,null,5]
[null,null,null,6,null,null,null,null,null,6,null,1,1,null,1,1]
[null,null,null,7,null,null,null,null,null,7,null,null,1,1,null,1]
[null,null,null,8,null,null,null,null,null,8,null,null,1,null,null,1]
[null,null,null,9,null,null,null,null,null,9,null,1,1,null,1,1]
[null,null,null,10,null,null,null,null,null,10]
[null,null,null,11,null,null,null,null,null,11]
[null,null,null,12,null,null,null,null,null,12]
[null,null,null,13,null,null,null,null,null,13]

{"sheet":"Справочник","index":11,"n_rows":32,"n_cols":30,"rows_kept":32,"cut":false,"hidden":false,"merged":[[0,0,0,1],[0,5,0,6],[0,8,0,9],[0,11,0,12],[0,28,0,29]]}
["Месяцы",null,null,"Годы",null,"Скрытие столбцов несуществующих дат на листах для печати",null,null,"Скрытие столбца, если в диапазоне пусто",null,null,"Скрытие строк, если в диапазоне пусто",null,null,"Видимые листы при выгрузке",null,"Установить пароль на книгу при выгрузке",null,"Выбор языка",null,null,null,null,null,null,null,null,null,"Календарь"]
["Месяц текст","Месяц",null,"Год",null,"Настройки отображения","Столбец на печати",null,"Лист","Диапазон",null,"Лист","Диапазон",null,"Лист",null,"Пароль на книгу",null,"Язык",null,null,null,null,null,null,null,null,null,"Лист","Состояние"]
["январь",1,null,2021,null,"Укажите номер столбца для 31 числа на листе График Печать",35,null,"График Печать","AM13:AN13",null,"График Печать","C14:C50",null,"График Печать",null,123,null,"Русский",null,null,null,null,null,null,null,null,null,"Сотрудники","Влючен"]
["февраль",2,null,2022,null,"Укажите номер столбца для 31 числа на листе Табель Печать",35,null,null,null,null,"Табель Печать","C14:C50",null,"Табель Печать",null,null,null,null,null,null,null,null,null,null,null,null,null,"Праздники и отпуска","Выключен"]
["март",3,null,2023,null,null,null,null,null,null,null,null,null,null,"График"]
["апрель",4,null,2024]
["май",5,null,2025]
["июнь",6,null,2026]
["июль",7,null,2027]
["август",8,null,2028]
["сентябрь",9,null,2029]
["октябрь",10,null,2030]
["ноябрь",11,null,2031]
["декабрь",12,null,2032]
[null,null,null,2033]
[null,null,null,2034]
[null,null,null,2035]
[null,null,null,2036]
[null,null,null,2037]
[null,null,null,2038]
[null,null,null,2039]
[null,null,null,2040]
[null,null,null,2041]
[null,null,null,2042]
[null,null,null,2043]
[null,null,null,2044]
[null,null,null,2045]
[null,null,null,2046]
[null,null,null,2047]
[null,null,null,2048]
[null,null,null,2049]
[null,null,null,2050]

{"sheet":"MultiLang","index":12,"n_rows":283,"n_cols":27,"rows_kept":283,"cut":false,"hidden":false,"merged":[]}
["Sheet","Button","Language","Text",null,null,"Sheet","Language","Text",null,null,"Sheet","Range","Language","Text",null,null,"Key","Language","Text",null,null,"Key","Language","Text",null,"Языки"]
["ShPersonal","BTF","Русский","Путь к папке",null,null,"ShCelebrates","Русский","Праздники и Отпуска",null,null,"ShSpravochnik","A1","Русский","Месяцы",null,null,1,"Русский","Графики загружены успешно!",null,null,1,"Русский","Выбор даты",null,"Русский"]
["ShGrafik","BTV","Русский","Выгрузить График",null,null,"ShGrafik","Русский","График",null,null,"ShSpravochnik","D1","Русский","Годы",null,null,2,"Русский","Информация",null,null,1,"English","Выбор даты",null,"English"]
["ShGrafik","BTVA","Русский","Выгрузить все Графики",null,null,"ShGrafikPrint","Русский","График Печать",null,null,"ShSpravochnik","A2","Русский","Месяц текст",null,null,3,"Русский","Сообщение"]
["ShGrafik","BTZ","Русский","Загрузить График",null,null,"ShPersonal","Русский","Сотрудники",null,null,"ShSpravochnik","B2","Русский","Месяц",null,null,4,"Русский","Графики загружены успешно!"]
["ShGrafik","BTZA","Русский","Загрузить все Графики",null,null,"ShPravila","Русский","Правила",null,null,"ShSpravochnik","D2","Русский","Год",null,null,5,"Русский","Не удалось загрузить Графики!"]
["ShGrafik","BTC","Русский","Отменить все изменения",null,null,"ShSmena","Русский","Типы Смен",null,null,"ShSpravochnik","F1","Русский","Скрытие столбцов несуществующих дат на листах для печати",null,null,6,"Русский","График загружен успешно"]
["ShGrafik","BTR","Русский","Получить График и Табель",null,null,"ShSource","Русский","Источник",null,null,"ShSpravochnik","F2","Русский","Настройки отображения",null,null,7,"Русский","Не удалось загрузить График"]
["ShPersonal","BTF","English","Путь к папке",null,null,"ShSpravochnik","Русский","Справочник",null,null,"ShSpravochnik","G2","Русский","Столбец на печати",null,null,8,"Русский","Нет сотрудников для этого отдела!"]
["ShGrafik","BTV","English","Выгрузить График",null,null,"ShTabelPrint","Русский","Табель Печать",null,null,"ShSpravochnik","F3","Русский","Укажите номер столбца для 31 числа на листе График Печать",null,null,9,"Русский","Неверно указана дата перенесенного выходного "]
["ShGrafik","BTVA","English","Выгрузить все Графики",null,null,"ShTabel","Русский","Табель",null,null,"ShSpravochnik","F4","Русский","Укажите номер столбца для 31 числа на листе Табель Печать",null,null,10,"Русский","Неверно указана дата праздника "]
["ShGrafik","BTZ","English","Загрузить График",null,null,"ShVihod","Русский","Типы Выходов",null,null,"ShSpravochnik","I1","Русский","Скрытие столбца, если в диапазоне пусто",null,null,11,"Русский","Для сотрудника"]
["ShGrafik","BTZA","English","Загрузить все Графики",null,null,"ShCelebrates","English","Праздники и Отпуска",null,null,"ShSpravochnik","I2","Русский","Лист",null,null,12,"Русский","неверно указана дата первого вхождения!"]
["ShGrafik","BTC","English","Отменить все изменения",null,null,"ShGrafik","English","График",null,null,"ShSpravochnik","J2","Русский","Диапазон",null,null,13,"Русский","неверно указан id типа смены!"]
["ShGrafik","BTR","English","Получить График и Табель",null,null,"ShGrafikPrint","English","График Печать",null,null,"ShSpravochnik","I3","Русский","График Печать",null,null,14,"Русский","Неверно указана дата перенесенного выходного "]
["ShSpravochnik","BTRALL","Русский","Сбросить все",null,null,"ShPersonal","English","Сотрудники",null,null,"ShSpravochnik","L1","Русский","Скрытие строк, если в диапазоне пусто",null,null,15,"Русский","Не существует id типа выхода "]
["ShSpravochnik","BTRALL","English","Сбросить все2",null,null,"ShPravila","English","Правила",null,null,"ShSpravochnik","L2","Русский","Лист",null,null,16,"Русский","Графики выгружены успешно!"]
["ShSpravochnik","BTSF","Русский","Синхронизировать из файла",null,null,"ShSmena","English","Типы Смен",null,null,"ShSpravochnik","M2","Русский","Диапазон",null,null,17,"Русский","Не удалось выгрузить Графики!"]
["ShSpravochnik","BTSF","English","Синхронизировать из файла",null,null,"ShSource","English","Источник",null,null,"ShSpravochnik","L3","Русский","График Печать",null,null,18,"Русский","График выгружен успешно!"]
[null,null,null,null,null,null,"ShSpravochnik","English","Справочник",null,null,"ShSpravochnik","L4","Русский","Табель Печать",null,null,19,"Русский","Не удалось выгрузить График!"]
[null,null,null,null,null,null,"ShTabelPrint","English","Табель Печать",null,null,"ShSpravochnik","O1","Русский","Видимые листы при выгрузке",null,null,20,"Русский","Готово!"]
[null,null,null,null,null,null,"ShTabel","English","Табель",null,null,"ShSpravochnik","O2","Русский","Лист",null,null,21,"Русский","Есть пересечение дат в таблице отпусков для сотрудника: "]
[null,null,null,null,null,null,"ShVihod","English","Типы Выходов",null,null,"ShSpravochnik","O3","Русский","График Печать",null,null,1,"English","Графики загружены успешно!"]
[null,null,null,null,null,null,null,null,null,null,null,"ShSpravochnik","O4","Русский","Табель Печать",null,null,2,"English","Информация"]
[null,null,null,null,null,null,null,null,null,null,null,"ShSpravochnik","O5","Русский","График",null,null,3,"English","Сообщение"]
[null,null,null,null,null,null,null,null,null,null,null,"ShSpravochnik","Q1","Русский","Установить пароль на книгу при выгрузке",null,null,4,"English","Графики загружены успешно!"]
[null,null,null,null,null,null,null,null,null,null,null,"ShSpravochnik","Q2","Русский","Пароль на книгу",null,null,5,"English","Не удалось загрузить Графики!"]
[null,null,null,null,null,null,null,null,null,null,null,"ShPravila","A1","Русский","Перед праздником делать подмену",null,null,6,"English","График загружен успешно"]
[null,null,null,null,null,null,null,null,null,null,null,"ShPravila","A2","Русский","id типа выхода1",null,null,7,"English","Не удалось загрузить График"]
[null,null,null,null,null,null,null,null,null,null,null,"ShPravila","B2","Русский","id типа выхода2",null,null,8,"English","Нет сотрудников для этого отдела!"]
[null,null,null,null,null,null,null,null,null,null,null,"ShPravila","D1","Русский","Проставления в графике",null,null,9,"English","Неверно указана дата перенесенного выходного "]
[null,null,null,null,null,null,null,null,null,null,null,"ShPravila","D2","Русский","id типа проставления",null,null,10,"English","Неверно указана дата праздника "]
[null,null,null,null,null,null,null,null,null,null,null,"ShPravila","E2","Русский","Не проставлять в праздники",null,null,11,"English","Для сотрудника"]
[null,null,null,null,null,null,null,null,null,null,null,"ShPravila","F2","Русский","Применять перенесенные",null,null,12,"English","неверно указана дата первого вхождения!"]
[null,null,null,null,null,null,null,null,null,null,null,"ShPravila","G2","Русский","Не проставлять в субботу",null,null,13,"English","неверно указан id типа смены!"]
[null,null,null,null,null,null,null,null,null,null,null,"ShPravila","H2","Русский","Не проставлять в воскресенье",null,null,14,"English","Неверно указана дата перенесенного выходного "]
[null,null,null,null,null,null,null,null,null,null,null,"ShPravila","J1","Русский","Исключения",null,null,15,"English","Не существует id типа выхода "]
[null,null,null,null,null,null,null,null,null,null,null,"ShPravila","J2","Русский","id типа выхода",null,null,16,"English","Графики выгружены успешно!"]
[null,null,null,null,null,null,null,null,null,null,null,"ShPravila","K2","Русский","Исключать в праздники",null,null,17,"English","Не удалось выгрузить Графики!"]
[null,null,null,null,null,null,null,null,null,null,null,"ShPravila","L2","Русский","Исключать в субботу",null,null,18,"English","График выгружен успешно!"]
[null,null,null,null,null,null,null,null,null,null,null,"ShPravila","M2","Русский","Исключать в воскресенье",null,null,19,"English","Не удалось выгрузить График!"]
[null,null,null,null,null,null,null,null,null,null,null,"ShPravila","N2","Русский","Не проставлять в праздники",null,null,20,"English","Готово!"]
[null,null,null,null,null,null,null,null,null,null,null,"ShPravila","O2","Русский","Не проставлять в субботу",null,null,21,"English","Есть пересечение дат в таблице отпусков для сотрудника: "]
[null,null,null,null,null,null,null,null,null,null,null,"ShPravila","P2","Русский","Не проставлять в воскресенье",null,null,22,"Русский","Строка: "]
[null,null,null,null,null,null,null,null,null,null,null,"ShCelebrates","A1","Русский","Праздники",null,null,22,"English","Строка: "]
[null,null,null,null,null,null,null,null,null,null,null,"ShCelebrates","A2","Русский","дата",null,null,23,"Русский","Выбрать файл"]
[null,null,null,null,null,null,null,null,null,null,null,"ShCelebrates","B2","Русский","Тип",null,null,23,"English","Выбрать файл"]
[null,null,null,null,null,null,null,null,null,null,null,"ShCelebrates","D1","Русский","Перенесенные дни",null,null,24,"Русский","Файл не выбран!"]
[null,null,null,null,null,null,null,null,null,null,null,"ShCelebrates","D2","Русский","Дата1",null,null,24,"English","Файл не выбран!"]
[null,null,null,null,null,null,null,null,null,null,null,"ShCelebrates","E2","Русский","Дата2",null,null,25,"Русский","Вы уверены, что хотите очистить все!"]
[null,null,null,null,null,null,null,null,null,null,null,"ShCelebrates","F2","Русский","Тип1",null,null,25,"English","Вы уверены, что хотите очистить все!"]
[null,null,null,null,null,null,null,null,null,null,null,"ShCelebrates","G2","Русский","Тип2"]
[null,null,null,null,null,null,null,null,null,null,null,"ShCelebrates","J1","Русский","Отпуска, Командировки и др."]
[null,null,null,null,null,null,null,null,null,null,null,"ShCelebrates","J2","Русский","№"]
[null,null,null,null,null,null,null,null,null,null,null,"ShCelebrates","K2","Русский","Табельный номер"]
[null,null,null,null,null,null,null,null,null,null,null,"ShCelebrates","L2","Русский","ФИО"]
[null,null,null,null,null,null,null,null,null,null,null,"ShCelebrates","M2","Русский","с"]
[null,null,null,null,null,null,null,null,null,null,null,"ShCelebrates","N2","Русский","по"]
[null,null,null,null,null,null,null,null,null,null,null,"ShCelebrates","O2","Русский","Тип Выхода2"]
[null,null,null,null,null,null,null,null,null,null,null,"ShCelebrates","R1","Русский","Период действия режима смены"]
[null,null,null,null,null,null,null,null,null,null,null,"ShCelebrates","R2","Русский","№"]
[null,null,null,null,null,null,null,null,null,null,null,"ShCelebrates","S2","Русский","Табельный номер"]
[null,null,null,null,null,null,null,null,null,null,null,"ShCelebrates","T2","Русский","ФИО"]
[null,null,null,null,null,null,null,null,null,null,null,"ShCelebrates","U2","Русский","с"]
[null,null,null,null,null,null,null,null,null,null,null,"ShCelebrates","V2","Русский","по"]
[null,null,null,null,null,null,null,null,null,null,null,"ShCelebrates","W2","Русский","Тип смены"]
[null,null,null,null,null,null,null,null,null,null,null,"ShCelebrates","A1","Русский","Типы смен (здесь указывается цикличность с первого дня)"]
[null,null,null,null,null,null,null,null,null,null,null,"ShSmena","A2","Русский","id типа смены"]
[null,null,null,null,null,null,null,null,null,null,null,"ShSmena","B2","Русский","Цикл дней"]
[null,null,null,null,null,null,null,null,null,null,null,"ShSmena","C2","Русский","id проставления"]
[null,null,null,null,null,null,null,null,null,null,null,"ShVihod","A1","Русский","Типы выходов"]
[null,null,null,null,null,null,null,null,null,null,null,"ShVihod","A2","Русский","id типа выхода"]
[null,null,null,null,null,null,null,null,null,null,null,"ShVihod","B2","Русский","График"]
[null,null,null,null,null,null,null,null,null,null,null,"ShVihod","C2","Русский","Табель"]
[null,null,null,null,null,null,null,null,null,null,null,"ShVihod","D2","Русский","Всего часов"]
[null,null,null,null,null,null,null,null,null,null,null,"ShVihod","E2","Русский","Часы день"]
[null,null,null,null,null,null,null,null,null,null,null,"ShVihod","F2","Русский","Часы вечер"]
[null,null,null,null,null,null,null,null,null,null,null,"ShVihod","G2","Русский","Часы Ночь"]
[null,null,null,null,null,null,null,null,null,null,null,"ShVihod","H2","Русский","Отпускные"]
[null,null,null,null,null,null,null,null,null,null,null,"ShVihod","I2","Русский","Больничные"]
[null,null,null,null,null,null,null,null,null,null,null,"ShVihod","J2","Русский","Дней"]
[null,null,null,null,null,null,null,null,null,null,null,"ShVihod","K2","Русский","Декретные"]
[null,null,null,null,null,null,null,null,null,null,null,"ShVihod","L2","Русский","Командировочные"]
[null,null,null,null,null,null,null,null,null,null,null,"ShVihod","M2","Русский","Праздничные"]
[null,null,null,null,null,null,null,null,null,null,null,"ShPersonal","A1","Русский","Сотрудники"]
[null,null,null,null,null,null,null,null,null,null,null,"ShPersonal","A2","Русский","id сотрудника"]
[null,null,null,null,null,null,null,null,null,null,null,"ShPersonal","B2","Русский","Табельный номер"]
[null,null,null,null,null,null,null,null,null,null,null,"ShPersonal","C2","Русский","ФИО"]
[null,null,null,null,null,null,null,null,null,null,null,"ShPersonal","D2","Русский","Дата первого вхождения"]
[null,null,null,null,null,null,null,null,null,null,null,"ShPersonal","E2","Русский","id типа смены"]
[null,null,null,null,null,null,null,null,null,null,null,"ShPersonal","F2","Русский","Отдел"]
[null,null,null,null,null,null,null,null,null,null,null,"ShPersonal","G2","Русский","Должность"]
[null,null,null,null,null,null,null,null,null,null,null,"ShGrafik","N3","Русский","Год"]
[null,null,null,null,null,null,null,null,null,null,null,"ShGrafik","O3","Русский","Месяц"]
[null,null,null,null,null,null,null,null,null,null,null,"ShGrafik","S2","Русский","Отдел"]
[null,null,null,null,null,null,null,null,null,null,null,"ShGrafik","B13","Русский","№ п/п"]
[null,null,null,null,null,null,null,null,null,null,null,"ShGrafik","C13","Русский","id сотрудника"]
[null,null,null,null,null,null,null,null,null,null,null,"ShGrafik","D13","Русский","ФИО"]
[null,null,null,null,null,null,null,null,null,null,null,"ShGrafik","E13","Русский","Табельный номер"]
[null,null,null,null,null,null,null,null,null,null,null,"ShGrafik","B10","Русский","Г р а ф и к"]
[null,null,null,null,null,null,null,null,null,null,null,"ShGrafik","AK13","Русский","Всего часов"]
[null,null,null,null,null,null,null,null,null,null,null,"ShGrafik","AL13","Русский","Часы день"]
[null,null,null,null,null,null,null,null,null,null,null,"ShGrafik","AM13","Русский","Часы вечер"]
[null,null,null,null,null,null,null,null,null,null,null,"ShGrafik","AN13","Русский","Часы Ночь"]
[null,null,null,null,null,null,null,null,null,null,null,"ShGrafik","AO13","Русский","Отпускные"]
[null,null,null,null,null,null,null,null,null,null,null,"ShGrafik","AP13","Русский","Больничные"]
[null,null,null,null,null,null,null,null,null,null,null,"ShGrafik","AQ13","Русский","Дней"]
[null,null,null,null,null,null,null,null,null,null,null,"ShGrafik","AR13","Русский","Декретные"]
[null,null,null,null,null,null,null,null,null,null,null,"ShGrafik","AS13","Русский","Командировочные"]
[null,null,null,null,null,null,null,null,null,null,null,"ShGrafik","AT13","Русский","Праздничные"]
[null,null,null,null,null,null,null,null,null,null,null,"ShGrafik","AU13","Русский","Неявка разрешеный"]
[null,null,null,null,null,null,null,null,null,null,null,"ShTabel","B10","Русский","Т а б е л ь"]
[null,null,null,null,null,null,null,null,null,null,null,"ShTabel","AK13","Русский","Всего часов"]
[null,null,null,null,null,null,null,null,null,null,null,"ShTabel","AL13","Русский","Часы день"]
[null,null,null,null,null,null,null,null,null,null,null,"ShTabel","AM13","Русский","Часы вечер"]
[null,null,null,null,null,null,null,null,null,null,null,"ShTabel","AN13","Русский","Часы Ночь"]
[null,null,null,null,null,null,null,null,null,null,null,"ShTabel","AO13","Русский","Отпускные"]
[null,null,null,null,null,null,null,null,null,null,null,"ShTabel","AP13","Русский","Больничные"]
[null,null,null,null,null,null,null,null,null,null,null,"ShTabel","AQ13","Русский","Дней"]
[null,null,null,null,null,null,null,null,null,null,null,"ShTabel","AR13","Русский","Декретные"]
[null,null,null,null,null,null,null,null,null,null,null,"ShTabel","AS13","Русский","Командировочные"]
[null,null,null,null,null,null,null,null,null,null,null,"ShTabel","AT13","Русский","Праздничные"]
[null,null,null,null,null,null,null,null,null,null,null,"ShTabel","AU13","Русский","Неявка разрешеный"]
[null,null,null,null,null,null,null,null,null,null,null,"ShSpravochnik","A3","Русский","январь"]
[null,null,null,null,null,null,null,null,null,null,null,"ShSpravochnik","A4","Русский","февраль"]
[null,null,null,null,null,null,null,null,null,null,null,"ShSpravochnik","A5","Русский","март"]
[null,null,null,null,null,null,null,null,null,null,null,"ShSpravochnik","A6","Русский","апрель"]
[null,null,null,null,null,null,null,null,null,null,null,"ShSpravochnik","A7","Русский","май"]
[null,null,null,null,null,null,null,null,null,null,null,"ShSpravochnik","A8","Русский","июнь"]
[null,null,null,null,null,null,null,null,null,null,null,"ShSpravochnik","A9","Русский","июль"]
[null,null,null,null,null,null,null,null,null,null,null,"ShSpravochnik","A10","Русский","август"]
[null,null,null,null,null,null,null,null,null,null,null,"ShSpravochnik","A11","Русский","сентябрь"]
[null,null,null,null,null,null,null,null,null,null,null,"ShSpravochnik","A12","Русский","октябрь"]
[null,null,null,null,null,null,null,null,null,null,null,"ShSpravochnik","A13","Русский","ноябрь"]
[null,null,null,null,null,null,null,null,null,null,null,"ShSpravochnik","A14","Русский","декабрь"]
[null,null,null,null,null,null,null,null,null,null,null,"ShSpravochnik","A1","English","Месяцы"]
[null,null,null,null,null,null,null,null,null,null,null,"ShSpravochnik","D1","English","Годы"]
[null,null,null,null,null,null,null,null,null,null,null,"ShSpravochnik","A2","English","Месяц текст"]
[null,null,null,null,null,null,null,null,null,null,null,"ShSpravochnik","B2","English","Месяц"]
[null,null,null,null,null,null,null,null,null,null,null,"ShSpravochnik","D2","English","Год"]
[null,null,null,null,null,null,null,null,null,null,null,"ShSpravochnik","F1","English","Скрытие столбцов несуществующих дат на листах для печати"]
[null,null,null,null,null,null,null,null,null,null,null,"ShSpravochnik","F2","English","Настройки отображения"]
[null,null,null,null,null,null,null,null,null,null,null,"ShSpravochnik","G2","English","Столбец на печати"]
[null,null,null,null,null,null,null,null,null,null,null,"ShSpravochnik","F3","English","Укажите номер столбца для 31 числа на листе График Печать"]
[null,null,null,null,null,null,null,null,null,null,null,"ShSpravochnik","F4","English","Укажите номер столбца для 31 числа на листе Табель Печать"]
[null,null,null,null,null,null,null,null,null,null,null,"ShSpravochnik","I1","English","Скрытие столбца, если в диапазоне пусто"]
[null,null,null,null,null,null,null,null,null,null,null,"ShSpravochnik","I2","English","Лист"]
[null,null,null,null,null,null,null,null,null,null,null,"ShSpravochnik","J2","English","Диапазон"]
[null,null,null,null,null,null,null,null,null,null,null,"ShSpravochnik","I3","English","График Печать"]
[null,null,null,null,null,null,null,null,null,null,null,"ShSpravochnik","L1","English","Скрытие строк, если в диапазоне пусто"]
[null,null,null,null,null,null,null,null,null,null,null,"ShSpravochnik","L2","English","Лист"]
[null,null,null,null,null,null,null,null,null,null,null,"ShSpravochnik","M2","English","Диапазон"]
[null,null,null,null,null,null,null,null,null,null,null,"ShSpravochnik","L3","English","График Печать"]
[null,null,null,null,null,null,null,null,null,null,null,"ShSpravochnik","L4","English","Табель Печать"]
[null,null,null,null,null,null,null,null,null,null,null,"ShSpravochnik","O1","English","Видимые листы при выгрузке"]
[null,null,null,null,null,null,null,null,null,null,null,"ShSpravochnik","O2","English","Лист"]
[null,null,null,null,null,null,null,null,null,null,null,"ShSpravochnik","O3","English","График Печать"]
[null,null,null,null,null,null,null,null,null,null,null,"ShSpravochnik","O4","English","Табель Печать"]
[null,null,null,null,null,null,null,null,null,null,null,"ShSpravochnik","O5","English","График"]
[null,null,null,null,null,null,null,null,null,null,null,"ShSpravochnik","Q1","English","Установить пароль на книгу при выгрузке"]
[null,null,null,null,null,null,null,null,null,null,null,"ShSpravochnik","Q2","English","Passwod to WorkBook"]
[null,null,null,null,null,null,null,null,null,null,null,"ShSpravochnik","AC2","Русский","Лист"]
[null,null,null,null,null,null,null,null,null,null,null,"ShSpravochnik","AD2","Русский","Состояние"]
[null,null,null,null,null,null,null,null,null,null,null,"ShSpravochnik","AC2","English","Лист"]
[null,null,null,null,null,null,null,null,null,null,null,"ShSpravochnik","AD2","English","Состояние"]
[null,null,null,null,null,null,null,null,null,null,null,"ShSpravochnik","AC1","Русский","Календарь"]
[null,null,null,null,null,null,null,null,null,null,null,"ShSpravochnik","AC1","English","Календарь"]
[null,null,null,null,null,null,null,null,null,null,null,"ShPravila","A1","English","Перед праздником делать подмену"]
[null,null,null,null,null,null,null,null,null,null,null,"ShPravila","A2","English","id типа выхода1"]
[null,null,null,null,null,null,null,null,null,null,null,"ShPravila","B2","English","id типа выхода2"]
[null,null,null,null,null,null,null,null,null,null,null,"ShPravila","D1","English","Проставления в графике"]
[null,null,null,null,null,null,null,null,null,null,null,"ShPravila","D2","English","id типа проставления"]
[null,null,null,null,null,null,null,null,null,null,null,"ShPravila","E2","English","Не проставлять в праздники"]
[null,null,null,null,null,null,null,null,null,null,null,"ShPravila","F2","English","Применять перенесенные"]
[null,null,null,null,null,null,null,null,null,null,null,"ShPravila","G2","English","Не проставлять в субботу"]
[null,null,null,null,null,null,null,null,null,null,null,"ShPravila","H2","English","Не проставлять в воскресенье"]
[null,null,null,null,null,null,null,null,null,null,null,"ShPravila","J1","English","Исключения"]
[null,null,null,null,null,null,null,null,null,null,null,"ShPravila","J2","English","id типа выхода"]
[null,null,null,null,null,null,null,null,null,null,null,"ShPravila","K2","English","Исключать в праздники"]
[null,null,null,null,null,null,null,null,null,null,null,"ShPravila","L2","English","Исключать в субботу"]
[null,null,null,null,null,null,null,null,null,null,null,"ShPravila","M2","English","Исключать в воскресенье"]
[null,null,null,null,null,null,null,null,null,null,null,"ShPravila","N2","English","Не проставлять в праздники"]
[null,null,null,null,null,null,null,null,null,null,null,"ShPravila","O2","English","Не проставлять в субботу"]
[null,null,null,null,null,null,null,null,null,null,null,"ShPravila","P2","English","Не проставлять в воскресенье"]
[null,null,null,null,null,null,null,null,null,null,null,"ShCelebrates","A1","English","Праздники"]
[null,null,null,null,null,null,null,null,null,null,null,"ShCelebrates","A2","English","дата"]
[null,null,null,null,null,null,null,null,null,null,null,"ShCelebrates","B2","English","Тип"]
[null,null,null,null,null,null,null,null,null,null,null,"ShCelebrates","D1","English","Перенесенные дни"]
[null,null,null,null,null,null,null,null,null,null,null,"ShCelebrates","D2","English","Дата1"]
[null,null,null,null,null,null,null,null,null,null,null,"ShCelebrates","E2","English","Дата2"]
[null,null,null,null,null,null,null,null,null,null,null,"ShCelebrates","F2","English","Тип1"]
[null,null,null,null,null,null,null,null,null,null,null,"ShCelebrates","G2","English","Тип2"]
[null,null,null,null,null,null,null,null,null,null,null,"ShCelebrates","J1","English","Отпуска, Командировки и др."]
[null,null,null,null,null,null,null,null,null,null,null,"ShCelebrates","J2","English","№"]
[null,null,null,null,null,null,null,null,null,null,null,"ShCelebrates","K2","English","Табельный номер"]
[null,null,null,null,null,null,null,null,null,null,null,"ShCelebrates","L2","English","ФИО"]
[null,null,null,null,null,null,null,null,null,null,null,"ShCelebrates","M2","English","с"]
[null,null,null,null,null,null,null,null,null,null,null,"ShCelebrates","N2","English","по"]
[null,null,null,null,null,null,null,null,null,null,null,"ShCelebrates","O2","English","Тип Выхода2"]
[null,null,null,null,null,null,null,null,null,null,null,"ShCelebrates","R1","English","Период действия режима смены"]
[null,null,null,null,null,null,null,null,null,null,null,"ShCelebrates","R2","English","№"]
[null,null,null,null,null,null,null,null,null,null,null,"ShCelebrates","S2","English","Табельный номер"]
[null,null,null,null,null,null,null,null,null,null,null,"ShCelebrates","T2","English","ФИО"]
[null,null,null,null,null,null,null,null,null,null,null,"ShCelebrates","U2","English","с"]
[null,null,null,null,null,null,null,null,null,null,null,"ShCelebrates","V2","English","по"]
[null,null,null,null,null,null,null,null,null,null,null,"ShCelebrates","W2","English","Тип смены"]
[null,null,null,null,null,null,null,null,null,null,null,"ShCelebrates","A1","English","Типы смен (здесь указывается цикличность с первого дня)"]
[null,null,null,null,null,null,null,null,null,null,null,"ShSmena","A2","English","id типа смены"]
[null,null,null,null,null,null,null,null,null,null,null,"ShSmena","B2","English","Цикл дней"]
[null,null,null,null,null,null,null,null,null,null,null,"ShSmena","C2","English","id проставления"]
[null,null,null,null,null,null,null,null,null,null,null,"ShVihod","A1","English","Типы выходов"]
[null,null,null,null,null,null,null,null,null,null,null,"ShVihod","A2","English","id типа выхода"]
[null,null,null,null,null,null,null,null,null,null,null,"ShVihod","B2","English","График"]
[null,null,null,null,null,null,null,null,null,null,null,"ShVihod","C2","English","Табель"]
[null,null,null,null,null,null,null,null,null,null,null,"ShVihod","D2","English","Всего часов"]
[null,null,null,null,null,null,null,null,null,null,null,"ShVihod","E2","English","Часы день"]
[null,null,null,null,null,null,null,null,null,null,null,"ShVihod","F2","English","Часы вечер"]
[null,null,null,null,null,null,null,null,null,null,null,"ShVihod","G2","English","Часы Ночь"]
[null,null,null,null,null,null,null,null,null,null,null,"ShVihod","H2","English","Отпускные"]
[null,null,null,null,null,null,null,null,null,null,null,"ShVihod","I2","English","Больничные"]
[null,null,null,null,null,null,null,null,null,null,null,"ShVihod","J2","English","Дней"]
[null,null,null,null,null,null,null,null,null,null,null,"ShVihod","K2","English","Декретные"]
[null,null,null,null,null,null,null,null,null,null,null,"ShVihod","L2","English","Командировочные"]
[null,null,null,null,null,null,null,null,null,null,null,"ShVihod","M2","English","Праздничные"]
[null,null,null,null,null,null,null,null,null,null,null,"ShPersonal","A1","English","Сотрудники"]
[null,null,null,null,null,null,null,null,null,null,null,"ShPersonal","A2","English","id сотрудника"]
[null,null,null,null,null,null,null,null,null,null,null,"ShPersonal","B2","English","Табельный номер"]
[null,null,null,null,null,null,null,null,null,null,null,"ShPersonal","C2","English","ФИО"]
[null,null,null,null,null,null,null,null,null,null,null,"ShPersonal","D2","English","Дата первого вхождения"]
[null,null,null,null,null,null,null,null,null,null,null,"ShPersonal","E2","English","id типа смены"]
[null,null,null,null,null,null,null,null,null,null,null,"ShPersonal","F2","English","Отдел"]
[null,null,null,null,null,null,null,null,null,null,null,"ShPersonal","G2","English","Должность"]
[null,null,null,null,null,null,null,null,null,null,null,"ShGrafik","N3","English","Год"]
[null,null,null,null,null,null,null,null,null,null,null,"ShGrafik","O3","English","Месяц"]
[null,null,null,null,null,null,null,null,null,null,null,"ShGrafik","S2","English","Отдел"]
[null,null,null,null,null,null,null,null,null,null,null,"ShGrafik","B13","English","№ п/п"]
[null,null,null,null,null,null,null,null,null,null,null,"ShGrafik","C13","English","id сотрудника"]
[null,null,null,null,null,null,null,null,null,null,null,"ShGrafik","D13","English","ФИО"]
[null,null,null,null,null,null,null,null,null,null,null,"ShGrafik","E13","English","Табельный номер"]
[null,null,null,null,null,null,null,null,null,null,null,"ShGrafik","B10","English","Г р а ф и к"]
[null,null,null,null,null,null,null,null,null,null,null,"ShGrafik","AK13","English","Всего часов"]
[null,null,null,null,null,null,null,null,null,null,null,"ShGrafik","AL13","English","Часы день"]
[null,null,null,null,null,null,null,null,null,null,null,"ShGrafik","AM13","English","Часы вечер"]
[null,null,null,null,null,null,null,null,null,null,null,"ShGrafik","AN13","English","Часы Ночь"]
[null,null,null,null,null,null,null,null,null,null,null,"ShGrafik","AO13","English","Отпускные"]
[null,null,null,null,null,null,null,null,null,null,null,"ShGrafik","AP13","English","Больничные"]
[null,null,null,null,null,null,null,null,null,null,null,"ShGrafik","AQ13","English","Дней"]
[null,null,null,null,null,null,null,null,null,null,null,"ShGrafik","AR13","English","Декретные"]
[null,null,null,null,null,null,null,null,null,null,null,"ShGrafik","AS13","English","Командировочные"]
[null,null,null,null,null,null,null,null,null,null,null,"ShGrafik","AT13","English","Праздничные"]
[null,null,null,null,null,null,null,null,null,null,null,"ShGrafik","AU13","English","Неявка разрешеный"]
[null,null,null,null,null,null,null,null,null,null,null,"ShTabel","B10","English","Т а б е л ь"]
[null,null,null,null,null,null,null,null,null,null,null,"ShTabel","AK13","English","Всего часов"]
[null,null,null,null,null,null,null,null,null,null,null,"ShTabel","AL13","English","Часы день"]
[null,null,null,null,null,null,null,null,null,null,null,"ShTabel","AM13","English","Часы вечер"]
[null,null,null,null,null,null,null,null,null,null,null,"ShTabel","AN13","English","Часы Ночь"]
[null,null,null,null,null,null,null,null,null,null,null,"ShTabel","AO13","English","Отпускные"]
[null,null,null,null,null,null,null,null,null,null,null,"ShTabel","AP13","English","Больничные"]
[null,null,null,null,null,null,null,null,null,null,null,"ShTabel","AQ13","English","Дней"]
[null,null,null,null,null,null,null,null,null,null,null,"ShTabel","AR13","English","Декретные"]
[null,null,null,null,null,null,null,null,null,null,null,"ShTabel","AS13","English","Командировочные"]
[null,null,null,null,null,null,null,null,null,null,null,"ShTabel","AT13","English","Праздничные"]
[null,null,null,null,null,null,null,null,null,null,null,"ShTabel","AU13","English","Неявка разрешеный"]
[null,null,null,null,null,null,null,null,null,null,null,"ShSpravochnik","A3","English","январь"]
[null,null,null,null,null,null,null,null,null,null,null,"ShSpravochnik","A4","English","февраль"]
[null,null,null,null,null,null,null,null,null,null,null,"ShSpravochnik","A5","English","март"]
[null,null,null,null,null,null,null,null,null,null,null,"ShSpravochnik","A6","English","апрель"]
[null,null,null,null,null,null,null,null,null,null,null,"ShSpravochnik","A7","English","май"]
[null,null,null,null,null,null,null,null,null,null,null,"ShSpravochnik","A8","English","июнь"]
[null,null,null,null,null,null,null,null,null,null,null,"ShSpravochnik","A9","English","июль"]
[null,null,null,null,null,null,null,null,null,null,null,"ShSpravochnik","A10","English","август"]
[null,null,null,null,null,null,null,null,null,null,null,"ShSpravochnik","A11","English","сентябрь"]
[null,null,null,null,null,null,null,null,null,null,null,"ShSpravochnik","A12","English","октябрь"]
[null,null,null,null,null,null,null,null,null,null,null,"ShSpravochnik","A13","English","ноябрь"]
[null,null,null,null,null,null,null,null,null,null,null,"ShSpravochnik","A14","English","декабрь"]
[null,null,null,null,null,null,null,null,null,null,null,"ShSpravochnik","S1","Русский","Выбор языка"]
[null,null,null,null,null,null,null,null,null,null,null,"ShSpravochnik","S2","Русский","Язык"]
[null,null,null,null,null,null,null,null,null,null,null,"ShSpravochnik","S1","English","Выбор языка"]
[null,null,null,null,null,null,null,null,null,null,null,"ShSpravochnik","S2","English","Язык"]
[null,null,null,null,null,null,null,null,null,null,null,"ShCelebrates","X2","Русский","Дата начала смены"]
[null,null,null,null,null,null,null,null,null,null,null,"ShCelebrates","X2","English","Дата начала смены"]
[null,null,null,null,null,null,null,null,null,null,null,"ShPersonal","E2","Русский","Дата первого выхода"]
[null,null,null,null,null,null,null,null,null,null,null,"ShPersonal","E2","English","Дата первого выхода"]

{"sheet":"Источник Начальный","index":13,"n_rows":156,"n_cols":42,"rows_kept":156,"cut":false,"hidden":true,"merged":[]}
["Дата","День недели","Тип дня","id сотрудника","Табельный номер","ФИО","Дата первого вхождения","id типа смены","Отдел","Должность","Сотрудник1","Сотрудник2","Сотрудник3","Сотрудник4","Сотрудник5","Сотрудник6","Сотрудник7","Сотрудник8","Сотрудник9","Сотрудник10","id типа выхода","График","Табель","Всего часов","Часы день","Часы вечер","Часы Ночь","Отпускные","Больничные","Дней","Декретные","Командировочные","Праздничные","Выход2","Выход3","Выход4","Выход5","Выход6","Выход7","Выход8","Выход9","Выход10"]
["2022-05-01",7,null,1,101,"Сидоров И. П.","2022-05-18","5/16/2022",1,"Сварочный","Начальник","Начальник"]
["2022-05-02",1,null,1,101,"Сидоров И. П.","2022-05-18",44697,1,"Сварочный","Начальник","Начальник"]
["2022-05-03",2,null,1,101,"Сидоров И. П.","2022-05-18",44697,1,"Сварочный","Начальник","Начальник"]
["2022-05-04",3,null,1,101,"Сидоров И. П.","2022-05-18",44697,1,"Сварочный","Начальник","Начальник"]
["2022-05-05",4,null,1,101,"Сидоров И. П.","2022-05-18",44697,1,"Сварочный","Начальник","Начальник"]
["2022-05-06",5,null,1,101,"Сидоров И. П.","2022-05-18",44697,1,"Сварочный","Начальник","Начальник"]
["2022-05-07",6,null,1,101,"Сидоров И. П.","2022-05-18",44697,1,"Сварочный","Начальник","Начальник"]
["2022-05-08",7,null,1,101,"Сидоров И. П.","2022-05-18",44697,1,"Сварочный","Начальник","Начальник"]
["2022-05-09",1,null,1,101,"Сидоров И. П.","2022-05-18",44697,1,"Сварочный","Начальник","Начальник"]
["2022-05-10",2,null,1,101,"Сидоров И. П.","2022-05-18",44697,1,"Сварочный","Начальник","Начальник"]
["2022-05-11",3,null,1,101,"Сидоров И. П.","2022-05-18",44697,1,"Сварочный","Начальник","Начальник"]
["2022-05-12",4,null,1,101,"Сидоров И. П.","2022-05-18",44697,1,"Сварочный","Начальник","Начальник"]
["2022-05-13",5,null,1,101,"Сидоров И. П.","2022-05-18",44697,1,"Сварочный","Начальник","Начальник"]
["2022-05-14",6,null,1,101,"Сидоров И. П.","2022-05-18",44697,1,"Сварочный","Начальник","Начальник"]
["2022-05-15",7,null,1,101,"Сидоров И. П.","2022-05-18",44697,1,"Сварочный","Начальник","Начальник"]
["2022-05-16",1,null,1,101,"Сидоров И. П.","2022-05-18",44697,1,"Сварочный","Начальник","Начальник"]
["2022-05-17",2,null,1,101,"Сидоров И. П.","2022-05-18",44697,1,"Сварочный","Начальник","Начальник"]
["2022-05-18",3,null,1,101,"Сидоров И. П.","2022-05-18",44697,1,"Сварочный","Начальник","Начальник",null,null,null,null,null,null,null,null,1," 8/17 ",8,8,null,null,null,null,null,1]
["2022-05-19",4,null,1,101,"Сидоров И. П.","2022-05-18",44697,1,"Сварочный","Начальник","Начальник",null,null,null,null,null,null,null,null,1," 8/17 ",8,8,null,null,null,null,null,1]
["2022-05-20",5,null,1,101,"Сидоров И. П.","2022-05-18",44697,1,"Сварочный","Начальник","Начальник",null,null,null,null,null,null,null,null,1," 8/17 ",8,8,null,null,null,null,null,1]
["2022-05-21",6,null,1,101,"Сидоров И. П.","2022-05-18",44697,1,"Сварочный","Начальник","Начальник"]
["2022-05-22",7,null,1,101,"Сидоров И. П.","2022-05-18",44697,1,"Сварочный","Начальник","Начальник"]
["2022-05-23",1,null,1,101,"Сидоров И. П.","2022-05-18",44697,1,"Сварочный","Начальник","Начальник",null,null,null,null,null,null,null,null,1," 8/17 ",8,8,null,null,null,null,null,1]
["2022-05-24",2,null,1,101,"Сидоров И. П.","2022-05-18",44697,1,"Сварочный","Начальник","Начальник",null,null,null,null,null,null,null,null,1," 8/17 ",8,8,null,null,null,null,null,1]
["2022-05-25",3,null,1,101,"Сидоров И. П.","2022-05-18",44697,1,"Сварочный","Начальник","Начальник",null,null,null,null,null,null,null,null,1," 8/17 ",8,8,null,null,null,null,null,1]
["2022-05-26",4,null,1,101,"Сидоров И. П.","2022-05-18",44697,1,"Сварочный","Начальник","Начальник",null,null,null,null,null,null,null,null,1," 8/17 ",8,8,null,null,null,null,null,1]
["2022-05-27",5,null,1,101,"Сидоров И. П.","2022-05-18",44697,1,"Сварочный","Начальник","Начальник",null,null,null,null,null,null,null,null,1," 8/17 ",8,8,null,null,null,null,null,1]
["2022-05-28",6,null,1,101,"Сидоров И. П.","2022-05-18",44697,1,"Сварочный","Начальник","Начальник"]
["2022-05-29",7,null,1,101,"Сидоров И. П.","2022-05-18",44697,1,"Сварочный","Начальник","Начальник"]
["2022-05-30",1,null,1,101,"Сидоров И. П.","2022-05-18",44697,1,"Сварочный","Начальник","Начальник",null,null,null,null,null,null,null,null,1," 8/17 ",8,8,null,null,null,null,null,1]
["2022-05-31",2,null,1,101,"Сидоров И. П.","2022-05-18",44697,1,"Сварочный","Начальник","Начальник",null,null,null,null,null,null,null,null,1," 8/17 ",8,8,null,null,null,null,null,1]
["2022-05-01",7,null,2,202,"Иванов И. И.","2021-09-06",44445,2,"Сварочный","Инженер","Инженер",null,null,null,null,null,null,null,null,3,"20/24 ",4,null,null,2,2,null,null,1]
["2022-05-02",1,null,2,202,"Иванов И. И.","2021-09-06",44445,2,"Сварочный","Инженер","Инженер",null,null,null,null,null,null,null,null,4," 0/8 ",8,2,null,null,6,null,null,1]
["2022-05-03",2,null,2,202,"Иванов И. И.","2021-09-06",44445,2,"Сварочный","Инженер","Инженер"]
["2022-05-04",3,null,2,202,"Иванов И. И.","2021-09-06",44445,2,"Сварочный","Инженер","Инженер",null,null,null,null,null,null,null,null,2," 8/20 ",12,10,null,2,null,null,null,1]
["2022-05-05",4,null,2,202,"Иванов И. И.","2021-09-06",44445,2,"Сварочный","Инженер","Инженер",null,null,null,null,null,null,null,null,4," 0/8 ",8,2,null,null,6,null,null,1]
["2022-05-06",5,null,2,202,"Иванов И. И.","2021-09-06",44445,2,"Сварочный","Инженер","Инженер",null,null,null,null,null,null,null,null,4," 0/8 ",8,2,null,null,6,null,null,1]
["2022-05-07",6,null,2,202,"Иванов И. И.","2021-09-06",44445,2,"Сварочный","Инженер","Инженер"]
["2022-05-08",7,null,2,202,"Иванов И. И.","2021-09-06",44445,2,"Сварочный","Инженер","Инженер",null,null,null,null,null,null,null,null,2," 8/20 ",12,10,null,2,null,null,null,1]
["2022-05-09",1,null,2,202,"Иванов И. И.","2021-09-06",44445,2,"Сварочный","Инженер","Инженер",null,null,null,null,null,null,null,null,3,"20/24 ",4,null,null,2,2,null,null,1]
["2022-05-10",2,null,2,202,"Иванов И. И.","2021-09-06",44445,2,"Сварочный","Инженер","Инженер",null,null,null,null,null,null,null,null,4," 0/8 ",8,2,null,null,6,null,null,1]
["2022-05-11",3,null,2,202,"Иванов И. И.","2021-09-06",44445,2,"Сварочный","Инженер","Инженер"]
["2022-05-12",4,null,2,202,"Иванов И. И.","2021-09-06",44445,2,"Сварочный","Инженер","Инженер",null,null,null,null,null,null,null,null,2," 8/20 ",12,10,null,2,null,null,null,1]
["2022-05-13",5,null,2,202,"Иванов И. И.","2021-09-06",44445,2,"Сварочный","Инженер","Инженер",null,null,null,null,null,null,null,null,3,"20/24 ",4,null,null,2,2,null,null,1]
["2022-05-14",6,null,2,202,"Иванов И. И.","2021-09-06",44445,2,"Сварочный","Инженер","Инженер",null,null,null,null,null,null,null,null,4," 0/8 ",8,2,null,null,6,null,null,1]
["2022-05-15",7,null,2,202,"Иванов И. И.","2021-09-06",44445,2,"Сварочный","Инженер","Инженер"]
["2022-05-16",1,null,2,202,"Иванов И. И.","2021-09-06",44445,2,"Сварочный","Инженер","Инженер",null,null,null,null,null,null,null,null,2," 8/20 ",12,10,null,2,null,null,null,1]
["2022-05-17",2,null,2,202,"Иванов И. И.","2021-09-06",44445,2,"Сварочный","Инженер","Инженер",null,null,null,null,null,null,null,null,3,"20/24 ",4,null,null,2,2,null,null,1]
["2022-05-18",3,null,2,202,"Иванов И. И.","2021-09-06",44445,2,"Сварочный","Инженер","Инженер",null,null,null,null,null,null,null,null,4," 0/8 ",8,2,null,null,6,null,null,1]
["2022-05-19",4,null,2,202,"Иванов И. И.","2021-09-06",44445,2,"Сварочный","Инженер","Инженер"]
["2022-05-20",5,null,2,202,"Иванов И. И.","2021-09-06",44445,2,"Сварочный","Инженер","Инженер",null,null,null,null,null,null,null,null,2," 8/20 ",12,10,null,2,null,null,null,1]
["2022-05-21",6,null,2,202,"Иванов И. И.","2021-09-06",44445,2,"Сварочный","Инженер","Инженер",null,null,null,null,null,null,null,null,3,"20/24 ",4,null,null,2,2,null,null,1]
["2022-05-22",7,null,2,202,"Иванов И. И.","2021-09-06",44445,2,"Сварочный","Инженер","Инженер",null,null,null,null,null,null,null,null,4," 0/8 ",8,2,null,null,6,null,null,1]
["2022-05-23",1,null,2,202,"Иванов И. И.","2021-09-06",44445,2,"Сварочный","Инженер","Инженер"]
["2022-05-24",2,null,2,202,"Иванов И. И.","2021-09-06",44445,2,"Сварочный","Инженер","Инженер",null,null,null,null,null,null,null,null,2," 8/20 ",12,10,null,2,null,null,null,1]
["2022-05-25",3,null,2,202,"Иванов И. И.","2021-09-06",44445,2,"Сварочный","Инженер","Инженер",null,null,null,null,null,null,null,null,3,"20/24 ",4,null,null,2,2,null,null,1]
["2022-05-26",4,null,2,202,"Иванов И. И.","2021-09-06",44445,2,"Сварочный","Инженер","Инженер",null,null,null,null,null,null,null,null,4," 0/8 ",8,2,null,null,6,null,null,1]
["2022-05-27",5,null,2,202,"Иванов И. И.","2021-09-06",44445,2,"Сварочный","Инженер","Инженер"]
["2022-05-28",6,null,2,202,"Иванов И. И.","2021-09-06",44445,2,"Сварочный","Инженер","Инженер",null,null,null,null,null,null,null,null,2," 8/20 ",12,10,null,2,null,null,null,1]
["2022-05-29",7,null,2,202,"Иванов И. И.","2021-09-06",44445,2,"Сварочный","Инженер","Инженер",null,null,null,null,null,null,null,null,3,"20/24 ",4,null,null,2,2,null,null,1]
["2022-05-30",1,null,2,202,"Иванов И. И.","2021-09-06",44445,2,"Сварочный","Инженер","Инженер",null,null,null,null,null,null,null,null,4," 0/8 ",8,2,null,null,6,null,null,1]
["2022-05-31",2,null,2,202,"Иванов И. И.","2021-09-06",44445,2,"Сварочный","Инженер","Инженер"]
["2022-05-01",7,null,3,155,"Петров Н. С.","2021-09-07",44446,2,"Сварочный","Техник","Техник",null,null,null,null,null,null,null,null,2," 8/20 ",12,10,null,2,null,null,null,1]
["2022-05-02",1,null,3,155,"Петров Н. С.","2021-09-07",44446,2,"Сварочный","Техник","Техник",null,null,null,null,null,null,null,null,3,"20/24 ",4,null,null,2,2,null,null,1]
["2022-05-03",2,null,3,155,"Петров Н. С.","2021-09-07",44446,2,"Сварочный","Техник","Техник",null,null,null,null,null,null,null,null,4," 0/8 ",8,2,null,null,6,null,null,1]
["2022-05-04",3,null,3,155,"Петров Н. С.","2021-09-07",44446,2,"Сварочный","Техник","Техник"]
["2022-05-05",4,null,3,155,"Петров Н. С.","2021-09-07",44446,2,"Сварочный","Техник","Техник",null,null,null,null,null,null,null,null,2," 8/20 ",12,10,null,2,null,null,null,1]
["2022-05-06",5,null,3,155,"Петров Н. С.","2021-09-07",44446,2,"Сварочный","Техник","Техник",null,null,null,null,null,null,null,null,3,"20/24 ",4,null,null,2,2,null,null,1]
["2022-05-07",6,null,3,155,"Петров Н. С.","2021-09-07",44446,2,"Сварочный","Техник","Техник",null,null,null,null,null,null,null,null,4," 0/8 ",8,2,null,null,6,null,null,1]
["2022-05-08",7,null,3,155,"Петров Н. С.","2021-09-07",44446,2,"Сварочный","Техник","Техник"]
["2022-05-09",1,null,3,155,"Петров Н. С.","2021-09-07",44446,2,"Сварочный","Техник","Техник",null,null,null,null,null,null,null,null,2," 8/20 ",12,10,null,2,null,null,null,1]
["2022-05-10",2,null,3,155,"Петров Н. С.","2021-09-07",44446,2,"Сварочный","Техник","Техник",null,null,null,null,null,null,null,null,3,"20/24 ",4,null,null,2,2,null,null,1]
["2022-05-11",3,null,3,155,"Петров Н. С.","2021-09-07",44446,2,"Сварочный","Техник","Техник",null,null,null,null,null,null,null,null,4," 0/8 ",8,2,null,null,6,null,null,1]
["2022-05-12",4,null,3,155,"Петров Н. С.","2021-09-07",44446,2,"Сварочный","Техник","Техник"]
["2022-05-13",5,null,3,155,"Петров Н. С.","2021-09-07",44446,2,"Сварочный","Техник","Техник",null,null,null,null,null,null,null,null,2," 8/20 ",12,10,null,2,null,null,null,1]
["2022-05-14",6,null,3,155,"Петров Н. С.","2021-09-07",44446,2,"Сварочный","Техник","Техник",null,null,null,null,null,null,null,null,3,"20/24 ",4,null,null,2,2,null,null,1]
["2022-05-15",7,null,3,155,"Петров Н. С.","2021-09-07",44446,2,"Сварочный","Техник","Техник",null,null,null,null,null,null,null,null,4," 0/8 ",8,2,null,null,6,null,null,1]
["2022-05-16",1,null,3,155,"Петров Н. С.","2021-09-07",44446,2,"Сварочный","Техник","Техник"]
["2022-05-17",2,null,3,155,"Петров Н. С.","2021-09-07",44446,2,"Сварочный","Техник","Техник",null,null,null,null,null,null,null,null,2," 8/20 ",12,10,null,2,null,null,null,1]
["2022-05-18",3,null,3,155,"Петров Н. С.","2021-09-07",44446,2,"Сварочный","Техник","Техник",null,null,null,null,null,null,null,null,3,"20/24 ",4,null,null,2,2,null,null,1]
["2022-05-19",4,null,3,155,"Петров Н. С.","2021-09-07",44446,2,"Сварочный","Техник","Техник",null,null,null,null,null,null,null,null,4," 0/8 ",8,2,null,null,6,null,null,1]
["2022-05-20",5,null,3,155,"Петров Н. С.","2021-09-07",44446,2,"Сварочный","Техник","Техник"]
["2022-05-21",6,null,3,155,"Петров Н. С.","2021-09-07",44446,2,"Сварочный","Техник","Техник",null,null,null,null,null,null,null,null,2," 8/20 ",12,10,null,2,null,null,null,1]
["2022-05-22",7,null,3,155,"Петров Н. С.","2021-09-07",44446,2,"Сварочный","Техник","Техник",null,null,null,null,null,null,null,null,3,"20/24 ",4,null,null,2,2,null,null,1]
["2022-05-23",1,null,3,155,"Петров Н. С.","2021-09-07",44446,2,"Сварочный","Техник","Техник",null,null,null,null,null,null,null,null,4," 0/8 ",8,2,null,null,6,null,null,1]
["2022-05-24",2,null,3,155,"Петров Н. С.","2021-09-07",44446,2,"Сварочный","Техник","Техник"]
["2022-05-25",3,null,3,155,"Петров Н. С.","2021-09-07",44446,2,"Сварочный","Техник","Техник",null,null,null,null,null,null,null,null,2," 8/20 ",12,10,null,2,null,null,null,1]
["2022-05-26",4,null,3,155,"Петров Н. С.","2021-09-07",44446,2,"Сварочный","Техник","Техник",null,null,null,null,null,null,null,null,4," 0/8 ",8,2,null,null,6,null,null,1]
["2022-05-27",5,null,3,155,"Петров Н. С.","2021-09-07",44446,2,"Сварочный","Техник","Техник",null,null,null,null,null,null,null,null,4," 0/8 ",8,2,null,null,6,null,null,1]
["2022-05-28",6,null,3,155,"Петров Н. С.","2021-09-07",44446,2,"Сварочный","Техник","Техник"]
["2022-05-29",7,null,3,155,"Петров Н. С.","2021-09-07",44446,2,"Сварочный","Техник","Техник",null,null,null,null,null,null,null,null,2," 8/20 ",12,10,null,2,null,null,null,1]
["2022-05-30",1,null,3,155,"Петров Н. С.","2021-09-07",44446,2,"Сварочный","Техник","Техник",null,null,null,null,null,null,null,null,3,"20/24 ",4,null,null,2,2,null,null,1]
["2022-05-31",2,null,3,155,"Петров Н. С.","2021-09-07",44446,2,"Сварочный","Техник","Техник",null,null,null,null,null,null,null,null,4," 0/8 ",8,2,null,null,6,null,null,1]
["2022-05-01",7,null,4,203,"Шариков Ю. С.","2021-09-08",44447,2,"Сварочный","Техник","Техник"]
["2022-05-02",1,null,4,203,"Шариков Ю. С.","2021-09-08",44447,2,"Сварочный","Техник","Техник",null,null,null,null,null,null,null,null,2," 8/20 ",12,10,null,2,null,null,null,1]
["2022-05-03",2,null,4,203,"Шариков Ю. С.","2021-09-08",44447,2,"Сварочный","Техник","Техник",null,null,null,null,null,null,null,null,3,"20/24 ",4,null,null,2,2,null,null,1]
["2022-05-04",3,null,4,203,"Шариков Ю. С.","2021-09-08",44447,2,"Сварочный","Техник","Техник",null,null,null,null,null,null,null,null,4," 0/8 ",8,2,null,null,6,null,null,1]
["2022-05-05",4,null,4,203,"Шариков Ю. С.","2021-09-08",44447,2,"Сварочный","Техник","Техник"]
["2022-05-06",5,null,4,203,"Шариков Ю. С.","2021-09-08",44447,2,"Сварочный","Техник","Техник",null,null,null,null,null,null,null,null,2," 8/20 ",12,10,null,2,null,null,null,1]
["2022-05-07",6,null,4,203,"Шариков Ю. С.","2021-09-08",44447,2,"Сварочный","Техник","Техник",null,null,null,null,null,null,null,null,3,"20/24 ",4,null,null,2,2,null,null,1]
["2022-05-08",7,null,4,203,"Шариков Ю. С.","2021-09-08",44447,2,"Сварочный","Техник","Техник",null,null,null,null,null,null,null,null,4," 0/8 ",8,2,null,null,6,null,null,1]
["2022-05-09",1,null,4,203,"Шариков Ю. С.","2021-09-08",44447,2,"Сварочный","Техник","Техник"]
["2022-05-10",2,null,4,203,"Шариков Ю. С.","2021-09-08",44447,2,"Сварочный","Техник","Техник",null,null,null,null,null,null,null,null,2," 8/20 ",12,10,null,2,null,null,null,1]
["2022-05-11",3,null,4,203,"Шариков Ю. С.","2021-09-08",44447,2,"Сварочный","Техник","Техник",null,null,null,null,null,null,null,null,3,"20/24 ",4,null,null,2,2,null,null,1]
["2022-05-12",4,null,4,203,"Шариков Ю. С.","2021-09-08",44447,2,"Сварочный","Техник","Техник",null,null,null,null,null,null,null,null,4," 0/8 ",8,2,null,null,6,null,null,1]
["2022-05-13",5,null,4,203,"Шариков Ю. С.","2021-09-08",44447,2,"Сварочный","Техник","Техник"]
["2022-05-14",6,null,4,203,"Шариков Ю. С.","2021-09-08",44447,2,"Сварочный","Техник","Техник",null,null,null,null,null,null,null,null,2," 8/20 ",12,10,null,2,null,null,null,1]
["2022-05-15",7,null,4,203,"Шариков Ю. С.","2021-09-08",44447,2,"Сварочный","Техник","Техник",null,null,null,null,null,null,null,null,3,"20/24 ",4,null,null,2,2,null,null,1]
["2022-05-16",1,null,4,203,"Шариков Ю. С.","2021-09-08",44447,2,"Сварочный","Техник","Техник",null,null,null,null,null,null,null,null,4," 0/8 ",8,2,null,null,6,null,null,1]
["2022-05-17",2,null,4,203,"Шариков Ю. С.","2021-09-08",44447,2,"Сварочный","Техник","Техник"]
["2022-05-18",3,null,4,203,"Шариков Ю. С.","2021-09-08",44447,2,"Сварочный","Техник","Техник",null,null,null,null,null,null,null,null,2," 8/20 ",12,10,null,2,null,null,null,1]
["2022-05-19",4,null,4,203,"Шариков Ю. С.","2021-09-08",44447,2,"Сварочный","Техник","Техник",null,null,null,null,null,null,null,null,4," 0/8 ",8,2,null,null,6,null,null,1]
["2022-05-20",5,null,4,203,"Шариков Ю. С.","2021-09-08",44447,2,"Сварочный","Техник","Техник",null,null,null,null,null,null,null,null,4," 0/8 ",8,2,null,null,6,null,null,1]
["2022-05-21",6,null,4,203,"Шариков Ю. С.","2021-09-08",44447,2,"Сварочный","Техник","Техник"]
["2022-05-22",7,null,4,203,"Шариков Ю. С.","2021-09-08",44447,2,"Сварочный","Техник","Техник",null,null,null,null,null,null,null,null,2," 8/20 ",12,10,null,2,null,null,null,1]
["2022-05-23",1,null,4,203,"Шариков Ю. С.","2021-09-08",44447,2,"Сварочный","Техник","Техник",null,null,null,null,null,null,null,null,3,"20/24 ",4,null,null,2,2,null,null,1]
["2022-05-24",2,null,4,203,"Шариков Ю. С.","2021-09-08",44447,2,"Сварочный","Техник","Техник",null,null,null,null,null,null,null,null,4," 0/8 ",8,2,null,null,6,null,null,1]
["2022-05-25",3,null,4,203,"Шариков Ю. С.","2021-09-08",44447,2,"Сварочный","Техник","Техник"]
["2022-05-26",4,null,4,203,"Шариков Ю. С.","2021-09-08",44447,2,"Сварочный","Техник","Техник",null,null,null,null,null,null,null,null,2," 8/20 ",12,10,null,2,null,null,null,1]
["2022-05-27",5,null,4,203,"Шариков Ю. С.","2021-09-08",44447,2,"Сварочный","Техник","Техник",null,null,null,null,null,null,null,null,3,"20/24 ",4,null,null,2,2,null,null,1]
["2022-05-28",6,null,4,203,"Шариков Ю. С.","2021-09-08",44447,2,"Сварочный","Техник","Техник",null,null,null,null,null,null,null,null,4," 0/8 ",8,2,null,null,6,null,null,1]
["2022-05-29",7,null,4,203,"Шариков Ю. С.","2021-09-08",44447,2,"Сварочный","Техник","Техник"]
["2022-05-30",1,null,4,203,"Шариков Ю. С.","2021-09-08",44447,2,"Сварочный","Техник","Техник",null,null,null,null,null,null,null,null,2," 8/20 ",12,10,null,2,null,null,null,1]
["2022-05-31",2,null,4,203,"Шариков Ю. С.","2021-09-08",44447,2,"Сварочный","Техник","Техник",null,null,null,null,null,null,null,null,3,"20/24 ",4,null,null,2,2,null,null,1]
["2022-05-01",7,null,5,206,"Шарапов П. К.","2021-09-09",44448,2,"Сварочный","Техник","Техник",null,null,null,null,null,null,null,null,4," 0/8 ",8,2,null,null,6,null,null,1]
["2022-05-02",1,null,5,206,"Шарапов П. К.","2021-09-09",44448,2,"Сварочный","Техник","Техник"]
["2022-05-03",2,null,5,206,"Шарапов П. К.","2021-09-09",44448,2,"Сварочный","Техник","Техник",null,null,null,null,null,null,null,null,2," 8/20 ",12,10,null,2,null,null,null,1]
["2022-05-04",3,null,5,206,"Шарапов П. К.","2021-09-09",44448,2,"Сварочный","Техник","Техник",null,null,null,null,null,null,null,null,3,"20/24 ",4,null,null,2,2,null,null,1]
["2022-05-05",4,null,5,206,"Шарапов П. К.","2021-09-09",44448,2,"Сварочный","Техник","Техник",null,null,null,null,null,null,null,null,4," 0/8 ",8,2,null,null,6,null,null,1]
["2022-05-06",5,null,5,206,"Шарапов П. К.","2021-09-09",44448,2,"Сварочный","Техник","Техник"]
["2022-05-07",6,null,5,206,"Шарапов П. К.","2021-09-09",44448,2,"Сварочный","Техник","Техник",null,null,null,null,null,null,null,null,2," 8/20 ",12,10,null,2,null,null,null,1]
["2022-05-08",7,null,5,206,"Шарапов П. К.","2021-09-09",44448,2,"Сварочный","Техник","Техник",null,null,null,null,null,null,null,null,3,"20/24 ",4,null,null,2,2,null,null,1]
["2022-05-09",1,null,5,206,"Шарапов П. К.","2021-09-09",44448,2,"Сварочный","Техник","Техник",null,null,null,null,null,null,null,null,4," 0/8 ",8,2,null,null,6,null,null,1]
["2022-05-10",2,null,5,206,"Шарапов П. К.","2021-09-09",44448,2,"Сварочный","Техник","Техник"]
["2022-05-11",3,null,5,206,"Шарапов П. К.","2021-09-09",44448,2,"Сварочный","Техник","Техник",null,null,null,null,null,null,null,null,2," 8/20 ",12,10,null,2,null,null,null,1]
["2022-05-12",4,null,5,206,"Шарапов П. К.","2021-09-09",44448,2,"Сварочный","Техник","Техник",null,null,null,null,null,null,null,null,4," 0/8 ",8,2,null,null,6,null,null,1]
["2022-05-13",5,null,5,206,"Шарапов П. К.","2021-09-09",44448,2,"Сварочный","Техник","Техник",null,null,null,null,null,null,null,null,4," 0/8 ",8,2,null,null,6,null,null,1]
["2022-05-14",6,null,5,206,"Шарапов П. К.","2021-09-09",44448,2,"Сварочный","Техник","Техник"]
["2022-05-15",7,null,5,206,"Шарапов П. К.","2021-09-09",44448,2,"Сварочный","Техник","Техник",null,null,null,null,null,null,null,null,2," 8/20 ",12,10,null,2,null,null,null,1]
["2022-05-16",1,null,5,206,"Шарапов П. К.","2021-09-09",44448,2,"Сварочный","Техник","Техник",null,null,null,null,null,null,null,null,3,"20/24 ",4,null,null,2,2,null,null,1]
["2022-05-17",2,null,5,206,"Шарапов П. К.","2021-09-09",44448,2,"Сварочный","Техник","Техник",null,null,null,null,null,null,null,null,4," 0/8 ",8,2,null,null,6,null,null,1]
["2022-05-18",3,null,5,206,"Шарапов П. К.","2021-09-09",44448,2,"Сварочный","Техник","Техник"]
["2022-05-19",4,null,5,206,"Шарапов П. К.","2021-09-09",44448,2,"Сварочный","Техник","Техник",null,null,null,null,null,null,null,null,4," 0/8 ",8,2,null,null,6,null,null,1]
["2022-05-20",5,null,5,206,"Шарапов П. К.","2021-09-09",44448,2,"Сварочный","Техник","Техник"]
["2022-05-21",6,null,5,206,"Шарапов П. К.","2021-09-09",44448,2,"Сварочный","Техник","Техник",null,null,null,null,null,null,null,null,2," 8/20 ",12,10,null,2,null,null,null,1]
["2022-05-22",7,null,5,206,"Шарапов П. К.","2021-09-09",44448,2,"Сварочный","Техник","Техник",null,null,null,null,null,null,null,null,3,"20/24 ",4,null,null,2,2,null,null,1]
["2022-05-23",1,null,5,206,"Шарапов П. К.","2021-09-09",44448,2,"Сварочный","Техник","Техник",null,null,null,null,null,null,null,null,4," 0/8 ",8,2,null,null,6,null,null,1]
["2022-05-24",2,null,5,206,"Шарапов П. К.","2021-09-09",44448,2,"Сварочный","Техник","Техник"]
["2022-05-25",3,null,5,206,"Шарапов П. К.","2021-09-09",44448,2,"Сварочный","Техник","Техник",null,null,null,null,null,null,null,null,2," 8/20 ",12,10,null,2,null,null,null,1]
["2022-05-26",4,null,5,206,"Шарапов П. К.","2021-09-09",44448,2,"Сварочный","Техник","Техник",null,null,null,null,null,null,null,null,4," 0/8 ",8,2,null,null,6,null,null,1]
["2022-05-27",5,null,5,206,"Шарапов П. К.","2021-09-09",44448,2,"Сварочный","Техник","Техник",null,null,null,null,null,null,null,null,4," 0/8 ",8,2,null,null,6,null,null,1]
["2022-05-28",6,null,5,206,"Шарапов П. К.","2021-09-09",44448,2,"Сварочный","Техник","Техник"]
["2022-05-29",7,null,5,206,"Шарапов П. К.","2021-09-09",44448,2,"Сварочный","Техник","Техник",null,null,null,null,null,null,null,null,2," 8/20 ",12,10,null,2,null,null,null,1]
["2022-05-30",1,null,5,206,"Шарапов П. К.","2021-09-09",44448,2,"Сварочный","Техник","Техник",null,null,null,null,null,null,null,null,3,"20/24 ",4,null,null,2,2,null,null,1]
["2022-05-31",2,null,5,206,"Шарапов П. К.","2021-09-09",44448,2,"Сварочный","Техник","Техник",null,null,null,null,null,null,null,null,4," 0/8 ",8,2,null,null,6,null,null,1]

{"sheet":"Источник","index":14,"n_rows":156,"n_cols":42,"rows_kept":156,"cut":false,"hidden":false,"merged":[]}
["Дата","День недели","Тип дня","id сотрудника","Табельный номер","ФИО","Дата первого вхождения","id типа смены","Отдел","Должность","Сотрудник1","Сотрудник2","Сотрудник3","Сотрудник4","Сотрудник5","Сотрудник6","Сотрудник7","Сотрудник8","Сотрудник9","Сотрудник10","id типа выхода","График","Табель","Всего часов","Часы день","Часы вечер","Часы Ночь","Отпускные","Больничные","Дней","Декретные","Командировочные","Праздничные","Неявка разрешеный","Выход3","Выход4","Выход5","Выход6","Выход7","Выход8","Выход9","Выход10"]
["2022-05-01",7,null,1,101,"Сидоров И. П.","2022-05-18","5/16/2022",1,"Сварочный","Начальник","Начальник"]
["2022-05-02",1,null,1,101,"Сидоров И. П.","2022-05-18",44697,1,"Сварочный","Начальник","Начальник"]
["2022-05-03",2,null,1,101,"Сидоров И. П.","2022-05-18",44697,1,"Сварочный","Начальник","Начальник"]
["2022-05-04",3,null,1,101,"Сидоров И. П.","2022-05-18",44697,1,"Сварочный","Начальник","Начальник"]
["2022-05-05",4,null,1,101,"Сидоров И. П.","2022-05-18",44697,1,"Сварочный","Начальник","Начальник"]
["2022-05-06",5,null,1,101,"Сидоров И. П.","2022-05-18",44697,1,"Сварочный","Начальник","Начальник"]
["2022-05-07",6,null,1,101,"Сидоров И. П.","2022-05-18",44697,1,"Сварочный","Начальник","Начальник"]
["2022-05-08",7,null,1,101,"Сидоров И. П.","2022-05-18",44697,1,"Сварочный","Начальник","Начальник"]
["2022-05-09",1,null,1,101,"Сидоров И. П.","2022-05-18",44697,1,"Сварочный","Начальник","Начальник"]
["2022-05-10",2,null,1,101,"Сидоров И. П.","2022-05-18",44697,1,"Сварочный","Начальник","Начальник"]
["2022-05-11",3,null,1,101,"Сидоров И. П.","2022-05-18",44697,1,"Сварочный","Начальник","Начальник"]
["2022-05-12",4,null,1,101,"Сидоров И. П.","2022-05-18",44697,1,"Сварочный","Начальник","Начальник"]
["2022-05-13",5,null,1,101,"Сидоров И. П.","2022-05-18",44697,1,"Сварочный","Начальник","Начальник"]
["2022-05-14",6,null,1,101,"Сидоров И. П.","2022-05-18",44697,1,"Сварочный","Начальник","Начальник"]
["2022-05-15",7,null,1,101,"Сидоров И. П.","2022-05-18",44697,1,"Сварочный","Начальник","Начальник"]
["2022-05-16",1,null,1,101,"Сидоров И. П.","2022-05-18",44697,1,"Сварочный","Начальник","Начальник"]
["2022-05-17",2,null,1,101,"Сидоров И. П.","2022-05-18",44697,1,"Сварочный","Начальник","Начальник"]
["2022-05-18",3,null,1,101,"Сидоров И. П.","2022-05-18",44697,1,"Сварочный","Начальник","Начальник",null,null,null,null,null,null,null,null,1," 8/17 ",8,8,null,null,null,null,null,1]
["2022-05-19",4,null,1,101,"Сидоров И. П.","2022-05-18",44697,1,"Сварочный","Начальник","Начальник",null,null,null,null,null,null,null,null,1," 8/17 ",8,8,null,null,null,null,null,1]
["2022-05-20",5,null,1,101,"Сидоров И. П.","2022-05-18",44697,1,"Сварочный","Начальник","Начальник",null,null,null,null,null,null,null,null,1," 8/17 ",8,8,null,null,null,null,null,1]
["2022-05-21",6,null,1,101,"Сидоров И. П.","2022-05-18",44697,1,"Сварочный","Начальник","Начальник"]
["2022-05-22",7,null,1,101,"Сидоров И. П.","2022-05-18",44697,1,"Сварочный","Начальник","Начальник"]
["2022-05-23",1,null,1,101,"Сидоров И. П.","2022-05-18",44697,1,"Сварочный","Начальник","Начальник",null,null,null,null,null,null,null,null,1," 8/17 ",8,8,null,null,null,null,null,1]
["2022-05-24",2,null,1,101,"Сидоров И. П.","2022-05-18",44697,1,"Сварочный","Начальник","Начальник",null,null,null,null,null,null,null,null,1," 8/17 ",8,8,null,null,null,null,null,1]
["2022-05-25",3,null,1,101,"Сидоров И. П.","2022-05-18",44697,1,"Сварочный","Начальник","Начальник",null,null,null,null,null,null,null,null,1," 8/17 ",8,8,null,null,null,null,null,1]
["2022-05-26",4,null,1,101,"Сидоров И. П.","2022-05-18",44697,1,"Сварочный","Начальник","Начальник",null,null,null,null,null,null,null,null,1," 8/17 ",8,8,null,null,null,null,null,1]
["2022-05-27",5,null,1,101,"Сидоров И. П.","2022-05-18",44697,1,"Сварочный","Начальник","Начальник",null,null,null,null,null,null,null,null,1," 8/17 ",8,8,null,null,null,null,null,1]
["2022-05-28",6,null,1,101,"Сидоров И. П.","2022-05-18",44697,1,"Сварочный","Начальник","Начальник"]
["2022-05-29",7,null,1,101,"Сидоров И. П.","2022-05-18",44697,1,"Сварочный","Начальник","Начальник"]
["2022-05-30",1,null,1,101,"Сидоров И. П.","2022-05-18",44697,1,"Сварочный","Начальник","Начальник",null,null,null,null,null,null,null,null,1," 8/17 ",8,8,null,null,null,null,null,1]
["2022-05-31",2,null,1,101,"Сидоров И. П.","2022-05-18",44697,1,"Сварочный","Начальник","Начальник",null,null,null,null,null,null,null,null,1," 8/17 ",8,8,null,null,null,null,null,1]
["2022-05-01",7,null,2,202,"Иванов И. И.","2021-09-06",44445,2,"Сварочный","Инженер","Инженер",null,null,null,null,null,null,null,null,3,"20/24 ",4,null,null,2,2,null,null,1]
["2022-05-02",1,null,2,202,"Иванов И. И.","2021-09-06",44445,2,"Сварочный","Инженер","Инженер",null,null,null,null,null,null,null,null,4," 0/8 ",8,2,null,null,6,null,null,1]
["2022-05-03",2,null,2,202,"Иванов И. И.","2021-09-06",44445,2,"Сварочный","Инженер","Инженер"]
["2022-05-04",3,null,2,202,"Иванов И. И.","2021-09-06",44445,2,"Сварочный","Инженер","Инженер",null,null,null,null,null,null,null,null,2," 8/20 ",12,10,null,2,null,null,null,1]
["2022-05-05",4,null,2,202,"Иванов И. И.","2021-09-06",44445,2,"Сварочный","Инженер","Инженер",null,null,null,null,null,null,null,null,4," 0/8 ",8,2,null,null,6,null,null,1]
["2022-05-06",5,null,2,202,"Иванов И. И.","2021-09-06",44445,2,"Сварочный","Инженер","Инженер",null,null,null,null,null,null,null,null,4," 0/8 ",8,2,null,null,6,null,null,1]
["2022-05-07",6,null,2,202,"Иванов И. И.","2021-09-06",44445,2,"Сварочный","Инженер","Инженер"]
["2022-05-08",7,null,2,202,"Иванов И. И.","2021-09-06",44445,2,"Сварочный","Инженер","Инженер",null,null,null,null,null,null,null,null,2," 8/20 ",12,10,null,2,null,null,null,1]
["2022-05-09",1,null,2,202,"Иванов И. И.","2021-09-06",44445,2,"Сварочный","Инженер","Инженер",null,null,null,null,null,null,null,null,3,"20/24 ",4,null,null,2,2,null,null,1]
["2022-05-10",2,null,2,202,"Иванов И. И.","2021-09-06",44445,2,"Сварочный","Инженер","Инженер",null,null,null,null,null,null,null,null,4," 0/8 ",8,2,null,null,6,null,null,1]
["2022-05-11",3,null,2,202,"Иванов И. И.","2021-09-06",44445,2,"Сварочный","Инженер","Инженер"]
["2022-05-12",4,null,2,202,"Иванов И. И.","2021-09-06",44445,2,"Сварочный","Инженер","Инженер",null,null,null,null,null,null,null,null,2," 8/20 ",12,10,null,2,null,null,null,1]
["2022-05-13",5,null,2,202,"Иванов И. И.","2021-09-06",44445,2,"Сварочный","Инженер","Инженер",null,null,null,null,null,null,null,null,3,"20/24 ",4,null,null,2,2,null,null,1]
["2022-05-14",6,null,2,202,"Иванов И. И.","2021-09-06",44445,2,"Сварочный","Инженер","Инженер",null,null,null,null,null,null,null,null,4," 0/8 ",8,2,null,null,6,null,null,1]
["2022-05-15",7,null,2,202,"Иванов И. И.","2021-09-06",44445,2,"Сварочный","Инженер","Инженер"]
["2022-05-16",1,null,2,202,"Иванов И. И.","2021-09-06",44445,2,"Сварочный","Инженер","Инженер",null,null,null,null,null,null,null,null,2," 8/20 ",12,10,null,2,null,null,null,1]
["2022-05-17",2,null,2,202,"Иванов И. И.","2021-09-06",44445,2,"Сварочный","Инженер","Инженер",null,null,null,null,null,null,null,null,3,"20/24 ",4,null,null,2,2,null,null,1]
["2022-05-18",3,null,2,202,"Иванов И. И.","2021-09-06",44445,2,"Сварочный","Инженер","Инженер",null,null,null,null,null,null,null,null,4," 0/8 ",8,2,null,null,6,null,null,1]
["2022-05-19",4,null,2,202,"Иванов И. И.","2021-09-06",44445,2,"Сварочный","Инженер","Инженер"]
["2022-05-20",5,null,2,202,"Иванов И. И.","2021-09-06",44445,2,"Сварочный","Инженер","Инженер",null,null,null,null,null,null,null,null,2," 8/20 ",12,10,null,2,null,null,null,1]
["2022-05-21",6,null,2,202,"Иванов И. И.","2021-09-06",44445,2,"Сварочный","Инженер","Инженер",null,null,null,null,null,null,null,null,3,"20/24 ",4,null,null,2,2,null,null,1]
["2022-05-22",7,null,2,202,"Иванов И. И.","2021-09-06",44445,2,"Сварочный","Инженер","Инженер",null,null,null,null,null,null,null,null,4," 0/8 ",8,2,null,null,6,null,null,1]
["2022-05-23",1,null,2,202,"Иванов И. И.","2021-09-06",44445,2,"Сварочный","Инженер","Инженер"]
["2022-05-24",2,null,2,202,"Иванов И. И.","2021-09-06",44445,2,"Сварочный","Инженер","Инженер",null,null,null,null,null,null,null,null,2," 8/20 ",12,10,null,2,null,null,null,1]
["2022-05-25",3,null,2,202,"Иванов И. И.","2021-09-06",44445,2,"Сварочный","Инженер","Инженер",null,null,null,null,null,null,null,null,3,"20/24 ",4,null,null,2,2,null,null,1]
["2022-05-26",4,null,2,202,"Иванов И. И.","2021-09-06",44445,2,"Сварочный","Инженер","Инженер",null,null,null,null,null,null,null,null,4," 0/8 ",8,2,null,null,6,null,null,1]
["2022-05-27",5,null,2,202,"Иванов И. И.","2021-09-06",44445,2,"Сварочный","Инженер","Инженер"]
["2022-05-28",6,null,2,202,"Иванов И. И.","2021-09-06",44445,2,"Сварочный","Инженер","Инженер",null,null,null,null,null,null,null,null,2," 8/20 ",12,10,null,2,null,null,null,1]
["2022-05-29",7,null,2,202,"Иванов И. И.","2021-09-06",44445,2,"Сварочный","Инженер","Инженер",null,null,null,null,null,null,null,null,3,"20/24 ",4,null,null,2,2,null,null,1]
["2022-05-30",1,null,2,202,"Иванов И. И.","2021-09-06",44445,2,"Сварочный","Инженер","Инженер",null,null,null,null,null,null,null,null,4," 0/8 ",8,2,null,null,6,null,null,1]
["2022-05-31",2,null,2,202,"Иванов И. И.","2021-09-06",44445,2,"Сварочный","Инженер","Инженер"]
["2022-05-01",7,null,3,155,"Петров Н. С.","2021-09-07",44446,2,"Сварочный","Техник","Техник",null,null,null,null,null,null,null,null,2," 8/20 ",12,10,null,2,null,null,null,1]
["2022-05-02",1,null,3,155,"Петров Н. С.","2021-09-07",44446,2,"Сварочный","Техник","Техник",null,null,null,null,null,null,null,null,3,"20/24 ",4,null,null,2,2,null,null,1]
["2022-05-03",2,null,3,155,"Петров Н. С.","2021-09-07",44446,2,"Сварочный","Техник","Техник",null,null,null,null,null,null,null,null,4," 0/8 ",8,2,null,null,6,null,null,1]
["2022-05-04",3,null,3,155,"Петров Н. С.","2021-09-07",44446,2,"Сварочный","Техник","Техник"]
["2022-05-05",4,null,3,155,"Петров Н. С.","2021-09-07",44446,2,"Сварочный","Техник","Техник",null,null,null,null,null,null,null,null,2," 8/20 ",12,10,null,2,null,null,null,1]
["2022-05-06",5,null,3,155,"Петров Н. С.","2021-09-07",44446,2,"Сварочный","Техник","Техник",null,null,null,null,null,null,null,null,3,"20/24 ",4,null,null,2,2,null,null,1]
["2022-05-07",6,null,3,155,"Петров Н. С.","2021-09-07",44446,2,"Сварочный","Техник","Техник",null,null,null,null,null,null,null,null,4," 0/8 ",8,2,null,null,6,null,null,1]
["2022-05-08",7,null,3,155,"Петров Н. С.","2021-09-07",44446,2,"Сварочный","Техник","Техник"]
["2022-05-09",1,null,3,155,"Петров Н. С.","2021-09-07",44446,2,"Сварочный","Техник","Техник",null,null,null,null,null,null,null,null,2," 8/20 ",12,10,null,2,null,null,null,1]
["2022-05-10",2,null,3,155,"Петров Н. С.","2021-09-07",44446,2,"Сварочный","Техник","Техник",null,null,null,null,null,null,null,null,3,"20/24 ",4,null,null,2,2,null,null,1]
["2022-05-11",3,null,3,155,"Петров Н. С.","2021-09-07",44446,2,"Сварочный","Техник","Техник",null,null,null,null,null,null,null,null,4," 0/8 ",8,2,null,null,6,null,null,1]
["2022-05-12",4,null,3,155,"Петров Н. С.","2021-09-07",44446,2,"Сварочный","Техник","Техник"]
["2022-05-13",5,null,3,155,"Петров Н. С.","2021-09-07",44446,2,"Сварочный","Техник","Техник",null,null,null,null,null,null,null,null,2," 8/20 ",12,10,null,2,null,null,null,1]
["2022-05-14",6,null,3,155,"Петров Н. С.","2021-09-07",44446,2,"Сварочный","Техник","Техник",null,null,null,null,null,null,null,null,3,"20/24 ",4,null,null,2,2,null,null,1]
["2022-05-15",7,null,3,155,"Петров Н. С.","2021-09-07",44446,2,"Сварочный","Техник","Техник",null,null,null,null,null,null,null,null,4," 0/8 ",8,2,null,null,6,null,null,1]
["2022-05-16",1,null,3,155,"Петров Н. С.","2021-09-07",44446,2,"Сварочный","Техник","Техник"]
["2022-05-17",2,null,3,155,"Петров Н. С.","2021-09-07",44446,2,"Сварочный","Техник","Техник",null,null,null,null,null,null,null,null,2," 8/20 ",12,10,null,2,null,null,null,1]
["2022-05-18",3,null,3,155,"Петров Н. С.","2021-09-07",44446,2,"Сварочный","Техник","Техник",null,null,null,null,null,null,null,null,3,"20/24 ",4,null,null,2,2,null,null,1]
["2022-05-19",4,null,3,155,"Петров Н. С.","2021-09-07",44446,2,"Сварочный","Техник","Техник",null,null,null,null,null,null,null,null,4," 0/8 ",8,2,null,null,6,null,null,1]
["2022-05-20",5,null,3,155,"Петров Н. С.","2021-09-07",44446,2,"Сварочный","Техник","Техник"]
["2022-05-21",6,null,3,155,"Петров Н. С.","2021-09-07",44446,2,"Сварочный","Техник","Техник",null,null,null,null,null,null,null,null,2," 8/20 ",12,10,null,2,null,null,null,1]
["2022-05-22",7,null,3,155,"Петров Н. С.","2021-09-07",44446,2,"Сварочный","Техник","Техник",null,null,null,null,null,null,null,null,3,"20/24 ",4,null,null,2,2,null,null,1]
["2022-05-23",1,null,3,155,"Петров Н. С.","2021-09-07",44446,2,"Сварочный","Техник","Техник",null,null,null,null,null,null,null,null,4," 0/8 ",8,2,null,null,6,null,null,1]
["2022-05-24",2,null,3,155,"Петров Н. С.","2021-09-07",44446,2,"Сварочный","Техник","Техник"]
["2022-05-25",3,null,3,155,"Петров Н. С.","2021-09-07",44446,2,"Сварочный","Техник","Техник",null,null,null,null,null,null,null,null,2," 8/20 ",12,10,null,2,null,null,null,1]
["2022-05-26",4,null,3,155,"Петров Н. С.","2021-09-07",44446,2,"Сварочный","Техник","Техник",null,null,null,null,null,null,null,null,4," 0/8 ",8,2,null,null,6,null,null,1]
["2022-05-27",5,null,3,155,"Петров Н. С.","2021-09-07",44446,2,"Сварочный","Техник","Техник",null,null,null,null,null,null,null,null,4," 0/8 ",8,2,null,null,6,null,null,1]
["2022-05-28",6,null,3,155,"Петров Н. С.","2021-09-07",44446,2,"Сварочный","Техник","Техник"]
["2022-05-29",7,null,3,155,"Петров Н. С.","2021-09-07",44446,2,"Сварочный","Техник","Техник",null,null,null,null,null,null,null,null,2," 8/20 ",12,10,null,2,null,null,null,1]
["2022-05-30",1,null,3,155,"Петров Н. С.","2021-09-07",44446,2,"Сварочный","Техник","Техник",null,null,null,null,null,null,null,null,3,"20/24 ",4,null,null,2,2,null,null,1]
["2022-05-31",2,null,3,155,"Петров Н. С.","2021-09-07",44446,2,"Сварочный","Техник","Техник",null,null,null,null,null,null,null,null,4," 0/8 ",8,2,null,null,6,null,null,1]
["2022-05-01",7,null,4,203,"Шариков Ю. С.","2021-09-08",44447,2,"Сварочный","Техник","Техник"]
["2022-05-02",1,null,4,203,"Шариков Ю. С.","2021-09-08",44447,2,"Сварочный","Техник","Техник",null,null,null,null,null,null,null,null,2," 8/20 ",12,10,null,2,null,null,null,1]
["2022-05-03",2,null,4,203,"Шариков Ю. С.","2021-09-08",44447,2,"Сварочный","Техник","Техник",null,null,null,null,null,null,null,null,3,"20/24 ",4,null,null,2,2,null,null,1]
["2022-05-04",3,null,4,203,"Шариков Ю. С.","2021-09-08",44447,2,"Сварочный","Техник","Техник",null,null,null,null,null,null,null,null,4," 0/8 ",8,2,null,null,6,null,null,1]
["2022-05-05",4,null,4,203,"Шариков Ю. С.","2021-09-08",44447,2,"Сварочный","Техник","Техник"]
["2022-05-06",5,null,4,203,"Шариков Ю. С.","2021-09-08",44447,2,"Сварочный","Техник","Техник",null,null,null,null,null,null,null,null,2," 8/20 ",12,10,null,2,null,null,null,1]
["2022-05-07",6,null,4,203,"Шариков Ю. С.","2021-09-08",44447,2,"Сварочный","Техник","Техник",null,null,null,null,null,null,null,null,3,"20/24 ",4,null,null,2,2,null,null,1]
["2022-05-08",7,null,4,203,"Шариков Ю. С.","2021-09-08",44447,2,"Сварочный","Техник","Техник",null,null,null,null,null,null,null,null,4," 0/8 ",8,2,null,null,6,null,null,1]
["2022-05-09",1,null,4,203,"Шариков Ю. С.","2021-09-08",44447,2,"Сварочный","Техник","Техник"]
["2022-05-10",2,null,4,203,"Шариков Ю. С.","2021-09-08",44447,2,"Сварочный","Техник","Техник",null,null,null,null,null,null,null,null,2," 8/20 ",12,10,null,2,null,null,null,1]
["2022-05-11",3,null,4,203,"Шариков Ю. С.","2021-09-08",44447,2,"Сварочный","Техник","Техник",null,null,null,null,null,null,null,null,3,"20/24 ",4,null,null,2,2,null,null,1]
["2022-05-12",4,null,4,203,"Шариков Ю. С.","2021-09-08",44447,2,"Сварочный","Техник","Техник",null,null,null,null,null,null,null,null,4," 0/8 ",8,2,null,null,6,null,null,1]
["2022-05-13",5,null,4,203,"Шариков Ю. С.","2021-09-08",44447,2,"Сварочный","Техник","Техник"]
["2022-05-14",6,null,4,203,"Шариков Ю. С.","2021-09-08",44447,2,"Сварочный","Техник","Техник",null,null,null,null,null,null,null,null,2," 8/20 ",12,10,null,2,null,null,null,1]
["2022-05-15",7,null,4,203,"Шариков Ю. С.","2021-09-08",44447,2,"Сварочный","Техник","Техник",null,null,null,null,null,null,null,null,3,"20/24 ",4,null,null,2,2,null,null,1]
["2022-05-16",1,null,4,203,"Шариков Ю. С.","2021-09-08",44447,2,"Сварочный","Техник","Техник",null,null,null,null,null,null,null,null,4," 0/8 ",8,2,null,null,6,null,null,1]
["2022-05-17",2,null,4,203,"Шариков Ю. С.","2021-09-08",44447,2,"Сварочный","Техник","Техник"]
["2022-05-18",3,null,4,203,"Шариков Ю. С.","2021-09-08",44447,2,"Сварочный","Техник","Техник",null,null,null,null,null,null,null,null,2," 8/20 ",12,10,null,2,null,null,null,1]
["2022-05-19",4,null,4,203,"Шариков Ю. С.","2021-09-08",44447,2,"Сварочный","Техник","Техник",null,null,null,null,null,null,null,null,4," 0/8 ",8,2,null,null,6,null,null,1]
["2022-05-20",5,null,4,203,"Шариков Ю. С.","2021-09-08",44447,2,"Сварочный","Техник","Техник",null,null,null,null,null,null,null,null,4," 0/8 ",8,2,null,null,6,null,null,1]
["2022-05-21",6,null,4,203,"Шариков Ю. С.","2021-09-08",44447,2,"Сварочный","Техник","Техник"]
["2022-05-22",7,null,4,203,"Шариков Ю. С.","2021-09-08",44447,2,"Сварочный","Техник","Техник",null,null,null,null,null,null,null,null,2," 8/20 ",12,10,null,2,null,null,null,1]
["2022-05-23",1,null,4,203,"Шариков Ю. С.","2021-09-08",44447,2,"Сварочный","Техник","Техник",null,null,null,null,null,null,null,null,3,"20/24 ",4,null,null,2,2,null,null,1]
["2022-05-24",2,null,4,203,"Шариков Ю. С.","2021-09-08",44447,2,"Сварочный","Техник","Техник",null,null,null,null,null,null,null,null,4," 0/8 ",8,2,null,null,6,null,null,1]
["2022-05-25",3,null,4,203,"Шариков Ю. С.","2021-09-08",44447,2,"Сварочный","Техник","Техник"]
["2022-05-26",4,null,4,203,"Шариков Ю. С.","2021-09-08",44447,2,"Сварочный","Техник","Техник",null,null,null,null,null,null,null,null,2," 8/20 ",12,10,null,2,null,null,null,1]
["2022-05-27",5,null,4,203,"Шариков Ю. С.","2021-09-08",44447,2,"Сварочный","Техник","Техник",null,null,null,null,null,null,null,null,3,"20/24 ",4,null,null,2,2,null,null,1]
["2022-05-28",6,null,4,203,"Шариков Ю. С.","2021-09-08",44447,2,"Сварочный","Техник","Техник",null,null,null,null,null,null,null,null,4," 0/8 ",8,2,null,null,6,null,null,1]
["2022-05-29",7,null,4,203,"Шариков Ю. С.","2021-09-08",44447,2,"Сварочный","Техник","Техник"]
["2022-05-30",1,null,4,203,"Шариков Ю. С.","2021-09-08",44447,2,"Сварочный","Техник","Техник",null,null,null,null,null,null,null,null,2," 8/20 ",12,10,null,2,null,null,null,1]
["2022-05-31",2,null,4,203,"Шариков Ю. С.","2021-09-08",44447,2,"Сварочный","Техник","Техник",null,null,null,null,null,null,null,null,3,"20/24 ",4,null,null,2,2,null,null,1]
["2022-05-01",7,null,5,206,"Шарапов П. К.","2021-09-09",44448,2,"Сварочный","Техник","Техник",null,null,null,null,null,null,null,null,4," 0/8 ",8,2,null,null,6,null,null,1]
["2022-05-02",1,null,5,206,"Шарапов П. К.","2021-09-09",44448,2,"Сварочный","Техник","Техник"]
["2022-05-03",2,null,5,206,"Шарапов П. К.","2021-09-09",44448,2,"Сварочный","Техник","Техник",null,null,null,null,null,null,null,null,2," 8/20 ",12,10,null,2,null,null,null,1]
["2022-05-04",3,null,5,206,"Шарапов П. К.","2021-09-09",44448,2,"Сварочный","Техник","Техник",null,null,null,null,null,null,null,null,3,"20/24 ",4,null,null,2,2,null,null,1]
["2022-05-05",4,null,5,206,"Шарапов П. К.","2021-09-09",44448,2,"Сварочный","Техник","Техник",null,null,null,null,null,null,null,null,4," 0/8 ",8,2,null,null,6,null,null,1]
["2022-05-06",5,null,5,206,"Шарапов П. К.","2021-09-09",44448,2,"Сварочный","Техник","Техник"]
["2022-05-07",6,null,5,206,"Шарапов П. К.","2021-09-09",44448,2,"Сварочный","Техник","Техник",null,null,null,null,null,null,null,null,2," 8/20 ",12,10,null,2,null,null,null,1]
["2022-05-08",7,null,5,206,"Шарапов П. К.","2021-09-09",44448,2,"Сварочный","Техник","Техник",null,null,null,null,null,null,null,null,3,"20/24 ",4,null,null,2,2,null,null,1]
["2022-05-09",1,null,5,206,"Шарапов П. К.","2021-09-09",44448,2,"Сварочный","Техник","Техник",null,null,null,null,null,null,null,null,4," 0/8 ",8,2,null,null,6,null,null,1]
["2022-05-10",2,null,5,206,"Шарапов П. К.","2021-09-09",44448,2,"Сварочный","Техник","Техник"]
["2022-05-11",3,null,5,206,"Шарапов П. К.","2021-09-09",44448,2,"Сварочный","Техник","Техник",null,null,null,null,null,null,null,null,2," 8/20 ",12,10,null,2,null,null,null,1]
["2022-05-12",4,null,5,206,"Шарапов П. К.","2021-09-09",44448,2,"Сварочный","Техник","Техник",null,null,null,null,null,null,null,null,4," 0/8 ",8,2,null,null,6,null,null,1]
["2022-05-13",5,null,5,206,"Шарапов П. К.","2021-09-09",44448,2,"Сварочный","Техник","Техник",null,null,null,null,null,null,null,null,4," 0/8 ",8,2,null,null,6,null,null,1]
["2022-05-14",6,null,5,206,"Шарапов П. К.","2021-09-09",44448,2,"Сварочный","Техник","Техник"]
["2022-05-15",7,null,5,206,"Шарапов П. К.","2021-09-09",44448,2,"Сварочный","Техник","Техник",null,null,null,null,null,null,null,null,2," 8/20 ",12,10,null,2,null,null,null,1]
["2022-05-16",1,null,5,206,"Шарапов П. К.","2021-09-09",44448,2,"Сварочный","Техник","Техник",null,null,null,null,null,null,null,null,3,"20/24 ",4,null,null,2,2,null,null,1]
["2022-05-17",2,null,5,206,"Шарапов П. К.","2021-09-09",44448,2,"Сварочный","Техник","Техник",null,null,null,null,null,null,null,null,4," 0/8 ",8,2,null,null,6,null,null,1]
["2022-05-18",3,null,5,206,"Шарапов П. К.","2021-09-09",44448,2,"Сварочный","Техник","Техник"]
["2022-05-19",4,null,5,206,"Шарапов П. К.","2021-09-09",44448,2,"Сварочный","Техник","Техник",null,null,null,null,null,null,null,null,4," 0/8 ",8,2,null,null,6,null,null,1]
["2022-05-20",5,null,5,206,"Шарапов П. К.","2021-09-09",44448,2,"Сварочный","Техник","Техник"]
["2022-05-21",6,null,5,206,"Шарапов П. К.","2021-09-09",44448,2,"Сварочный","Техник","Техник",null,null,null,null,null,null,null,null,2," 8/20 ",12,10,null,2,null,null,null,1]
["2022-05-22",7,null,5,206,"Шарапов П. К.","2021-09-09",44448,2,"Сварочный","Техник","Техник",null,null,null,null,null,null,null,null,3,"20/24 ",4,null,null,2,2,null,null,1]
["2022-05-23",1,null,5,206,"Шарапов П. К.","2021-09-09",44448,2,"Сварочный","Техник","Техник",null,null,null,null,null,null,null,null,4," 0/8 ",8,2,null,null,6,null,null,1]
["2022-05-24",2,null,5,206,"Шарапов П. К.","2021-09-09",44448,2,"Сварочный","Техник","Техник"]
["2022-05-25",3,null,5,206,"Шарапов П. К.","2021-09-09",44448,2,"Сварочный","Техник","Техник",null,null,null,null,null,null,null,null,2," 8/20 ",12,10,null,2,null,null,null,1]
["2022-05-26",4,null,5,206,"Шарапов П. К.","2021-09-09",44448,2,"Сварочный","Техник","Техник",null,null,null,null,null,null,null,null,4," 0/8 ",8,2,null,null,6,null,null,1]
["2022-05-27",5,null,5,206,"Шарапов П. К.","2021-09-09",44448,2,"Сварочный","Техник","Техник",null,null,null,null,null,null,null,null,4," 0/8 ",8,2,null,null,6,null,null,1]
["2022-05-28",6,null,5,206,"Шарапов П. К.","2021-09-09",44448,2,"Сварочный","Техник","Техник"]
["2022-05-29",7,null,5,206,"Шарапов П. К.","2021-09-09",44448,2,"Сварочный","Техник","Техник",null,null,null,null,null,null,null,null,2," 8/20 ",12,10,null,2,null,null,null,1]
["2022-05-30",1,null,5,206,"Шарапов П. К.","2021-09-09",44448,2,"Сварочный","Техник","Техник",null,null,null,null,null,null,null,null,3,"20/24 ",4,null,null,2,2,null,null,1]
["2022-05-31",2,null,5,206,"Шарапов П. К.","2021-09-09",44448,2,"Сварочный","Техник","Техник",null,null,null,null,null,null,null,null,4," 0/8 ",8,2,null,null,6,null,null,1]

{"sheet":"О программе","index":15,"n_rows":0,"n_cols":0,"rows_kept":0,"cut":false,"hidden":true,"merged":[]}

{"sheet":"Инструкция","index":16,"n_rows":0,"n_cols":0,"rows_kept":0,"cut":false,"hidden":true,"merged":[]}